Workbook

Sheet SSI Cover Sheet

Sheet Scoring Guidance
B1: Mass Transit BASE Scoring Guidance - Appendix IX
B2: As general guidance , scores are to be assigned on a scale of 0-4 as follows: “0” Security element should be in place but does not exist. (Equates to total non-adherence – 0%) “1” Security element exists, but does not include all essential recommended components. (Equates to minimal adherence – 25-50%) “2” Security element is in place with all essential components but not fully implemented or practiced. (Equates to partial adherence or implementation – 50-75%) “3” Security element is in place and practiced but not monitored or periodically reviewed. (Equates to strong adherence, but not full implementation – 75-99%) “4” Security element is in place, fully implemented and regularly reviewed/verified. (Equates to full implementation – 100%) Also assigned to “yes/no” question having a “Yes” response. “N/A” Checked - Security element is not applicable and rational must be given to support the N/A rating.
B3: Line Element | D3: SIDoT | E3: Comments | F3: Items of Interest | G3: Scoring Example
A4: Security Action Item 1 | B4: Establish Written System Security Plans (SSPs) and Emergency Response Plans (ERPs)
B5: System Security Plan (SSP)
B6: 1.101 | C6: Does the transit agency have a System Security Plan (SSP)? | D6: Document Review | E6: Inspectors should refer to the MT BASE Guidance, Pg12. | F6: Policies and procedures related to security--including personnel security, vehicle security, facility security, and threat/vulnerability management. | G6: 4 | H6: SSP is a well developed plan, complete with detailed policies and procedures related to personnel security, facility security, vehicle security, and threat/vulnerability management. SSP is missing no key elements and has been completely implemented by the agency.
G7: 3 | H7: SSP is a complete document with polices and procedures that have been appropriately implemented by the agency. Only a few minor security elements are missing. Key concepts are detailed with minimal exceptions.
G8: 2 | H8: Generic policies and procedures are documented and implemented adequately. Key concepts are documented, but lacking any depth. In fact, the plan simply appears to be a commonly available "template."
G9: 1 | H9: SSP is a generalized document that is lacking any detailed, agency-specific security elements. Key concepts are missing or not adequately implemented by the agency.
G10: 0 | H10: There is no SSP in place.
B11: 1.102 | C11: Does the SSP identify the goals and objectives for the security program? | D11: Document Review | F11: Documented method of effectively assessing and monitoring security program's purpose and progress. | G11: 4 | H11: Goals and objectives are identified, documented and actively monitored to ensure the SSP is fulfilling its purpose.
G12: 2 | H12: Goals and objectives are identified and documented, but not monitored. Items may be missing or ineffective.
G14: 1 | H14: Goals and objectives are minimal, lacking any specifics or depth. These items do not effectively assess and monitor the SSP's purpose and progress, respectively.
G15: 0 | H15: The SSP does not address goals or objectives of the security program.
B16: 1.103 | C16: Does a written policy statement exist that endorses and adopts the policies and procedures of the SSP that is approved and signed by top management, including the agency's chief executive? | D16: Document Review | E16: Justification should include at least two management and implementation statements | F16: Policy statement including: endorsement statement/signature, applicability, and authority/background of the plan. | G16: 4 | H16: Policy statement is a well developed written statement (memo, mission statement, etc.) that includes all elements: endorsement statement, applicability, authority establishing the plan, and approval signature from the agencies chief executive.
G17: 2 | H17: Policy statement a brief endorsement statement by chief executive and a signature.
G19: 1 | H19: Policy statement only includes a brief endorsement statement. No endorsement signature.
G20: 0 | H20: There is no policy statement of any sort in place.
B21: 1.104 | C21: Is the SSP separate from the agency’s System Safety Program Plan (SSPP)? | D21: Document Review | F21: "Yes" or "No." | G21: 4 | H21: SSP is a stand-alone document, separate from the System Safety Plan.
G24: 0 | H24: System Security Plan is part of another document. (Note: In the past, railroads/agencies would incorporate the Security Plan into the Safety Plan - using the APTA SSPP template, element 17: Security)
B26: 1.105 T1 | C26: Do the Security and Emergency Response Plans address protection and response for critical underwater tunnels, underground stations/ tunnels and other critical systems, where applicable? | D26: Document Review | E26: In addition to underwater tunnels, underground stations/ tunnels, this question also applies to other critical systems. | F26: Review SSP to determine if items are address effectively. | G26: 4 | H26: Security plans address specific policies and procedures related to security and emergency response for underwater / underground infrastructure (if system has any) and/or other critical systems.
G27: 2 | H27: Security plans address policies and procedures with varying degrees of implementation.
G30: 0 | H30: Security plans do not address items.
B31: 1.106 | C31: Does the SSP contain or reference other documents establishing procedures for the management of security incidents by the operations control center (or dispatch center)? | D31: Document Review | F31: Operation Control Center: managing incidents | G31: 4 | H31: Procedures for the management of security incidents by the OCC (or dispatch center) is identified in the Security Plan. Specific procedures are in place and documented in the SSP. If documented elsewhere, such as in a stand-alone Emergency Response Plan, the SSP references that document.
G32: 3 | H32: Plans and procedures are in place and function appropriately. However, minor aspects are missing. SSP includes--or references documents that contain--the procedures.
G33: 2 | H33: Well organized procedures are in place and contained as part of another document with no reference in the SSP.
G34: 1 | H34: Procedures are lacking any depth or clarity, plans are scattered between multiple documents with no reference in SSP, or responsibilities are otherwise ineffectively assigned.
G35: 0 | H35: Procedures are not in place or documented.
B36: 1.107 | C36: Does the SSP contain or reference other documents establishing plans, procedures, or protocols for responding to security events with external agencies (such as law enforcement, local EMA, fire departments, etc.)? | D36: Document Review | E36: In Justification, describe plans, procedures or protocols. | F36: Documented plans for coordinating with external agencies. | G36: 4 | H36: Well-developed, specific procedures are in place and documented in the SSP or as part of another document and referenced in the SSP.
G37: 2 | H37: Procedures are in place with varying degrees of implementation or documentation.
G40: 0 | H40: Procedures are not in place or documented.
B41: 1.108 | C41: Does the SSP contain or reference other documents that establish protocols addressing specific threats from (i) Improvised Explosive Devices (IED) and (ii) Weapons of Mass Destruction (chemical, biological, radiological hazards)? | D41: Document Review | F41: Protocols for IED and WMD | G41: 4 | H41: Well-developed, specific protocols are in place that address IED and WMD. These protocols are documented in the SSP or as part of another document, such as a stand-alone Emergency Response Plan, and referenced in the SSP.
G42: 2 | H42: Protocols are developed with varying degrees of implementation or documentation.
G45: 0 | H45: Protocols have not been developed.
B46: 1.109 T3 | C46: Are visible, random security measures integrated into security plans to introduce unpredictability into security activities for deterrent effect? | D46: Document Review | E46: Agency should strive to implement and document their own unpredictable security measures using their own resources. | F46: Random or unpredictable security measures that are documented in security plans. | G46: 4 | H46: Random, unpredictable measures are well-documented with specific measures assigned by employee-type. Includes both security and non-security personnel.
G47: 2 | H47: Random, unpredictable measures are documented. Measures are simply general guidance lacking specifics.
G49: 1 | H49: The agency relies on outside entities to provide random, unpredictable measures. Agency only participates in VIPR or other similar outreach. Participation in program is documented in the SSP.
G50: 0 | H50: Random, visible measures are not documented in the SSP.
B51: 1.110 | C51: Does the SSP include provisions requiring that security be addressed in extensions, major projects, new vehicles and equipment procurement and other capital projects, and including integration with the transit agency’s safety certification process? | D51: Document Review | F51: Project/procurement planning, engineering, design, construction, and testing. | G51: 4 | H51: Security plays a role in all new projects and procurements and is part of the safety certification process. This is required by the agency and documented in the SSP. There is a formal process in place for planning and implementing a project with security playing a role in various phases, including: planning, engineering, construction, testing, and final implementation.
G52: 3 | H52: Security plays a role in all new projects and procurements and is part of the safety certification process. There is a formal process in place for planning and implementing a project with security playing a role in various phases, including: planning, engineering, construction, testing, and final implementation. This is required by the agency and documented in the agency's Safety plan--not the SSP.
G53: 2 | H53: Specific security concerns are considered for all new projects, but implementation is an informal process and not required (recommended as opposed to required). Process is documented.
G54: 1 | H54: Security is addressed on an informal basis with only general security guidance considered. Process is documented.
G55: 0 | H55: There is no documented evidence in place that suggest security is addressed with new projects or procurements.
B56: 1.111 | C56: Does the SSP include or reference other documents adopting Crime Prevention Through Environmental Design (CPTED) principles as part of the agency's engineering practices? | D56: Document Review | F56: Project design, engineering, and construction. | G56: 4 | H56: CPTED principles are addressed in all facilities and fully implemented. These principles are documented in the SSP or other documents (which are referenced in the SSP).
G57: 3 | H57: CPTED principles are addressed and implemented in a majority of facilities. This is documented in the SSP or other documents (which are referenced in the SSP). Vulnerabilities have been identified.
G58: 2 | H58: CPTED principles are addressed with minimal implementation. Principles are documented in the SSP or other documents (which are referenced in the SSP).
G59: 1 | H59: CPTED adoption is merely a general acknowledgement contained in the SSP or other document (that is referenced in the SSP).
G60: 0 | H60: CPTED is not adopted by the agency.
B61: 1.112 | C61: Does the SSP require an annual review? | D61: Document Review | E61: Reference date of last review in justification. | F61: Annual review requirement. A review is focused on written policy and ensuring policies are sufficient. | G61: 4 | H61: Annual review is a written requirement with verification measures in place (signed and dated)
G62: 2 | H62: Annual review is a "commonly known" requirement (not documented) or a written requirement with no verification measure in place.
G64: 1 | H64: SSP is reviewed on an "as-needed" basis, but at least every two years.
G65: 0 | H65: There are no review requirements in place, and the SSP is not regularly reviewed.
B66: 1.113 | C66: Does the transit agency produce periodic reports reviewing its progress in meeting its SSP goals and objectives? | D66: Document Review | F66: An example of periodic reports reviewing SSP progress | G66: 4 | H66: Reports are produced once per year at a minimum and are detailed and developed regularly to track the agency's progress in meeting the goals and objectives identified in the SSP.
G67: 3 | H67: Periodic reports are detailed and developed once in a two-year cycle OR periodic reports are developed once per year but are lacking in detail.
G68: 2 | H68: Informal reports are developed on an "as-needed" basis.
G69: 1 | H69: Reports are not documented, per se, but the agency does have an informal, verbal system in place to monitor the agency's progress in fulfilling its goals and objectives.
G70: 0 | H70: The agency does not monitor its progress in any way.
B71: 1.114 | C71: Has an annual review of the SSP been performed and documented in the preceding 12 months? | D71: Document Review | F71: Documented evidence of a annual review. A review is focused on written policy and ensuring policies are sufficient. | G71: 4 | H71: Annual review is verifiable by document review.
G73: 2 | H73: Annual review is only verifiable by interview.
G75: 0 | H75: SSP has not been reviewed.
B76: 1.115 | C76: Does the SSP outline a process for securing SSO agency review and approval of updates to the SSP? | D76: Document Review | E76: 49 CFR PART 659 SSO Only Question | F76: "Yes" or "No." Documented process for SSO approval. N/A for entities not regulated under 49 CFR § 659. | G76: 4 | H76: Documented process for securing SSO review and approval of SSP is included in writing, or directly referenced, in the SSP.
G79: 0 | H79: Documented process does not exist.
B81: 1.116 | C81: Has the transit agency submitted and received documentation from the SSO confirming its review and approval of the SSP currently in effect? | D81: Document Review | E81: 49 CFR PART 659 SSO Only Question If yes, indicate the approval date in evidence. | F81: Current SSP has been approved by SSO. N/A for entities not regulated under 49 CFR § 659. | G81: 4 | H81: Approval (including date of approved) is verifiable through document review.
G83: 2 | H83: SSP has been submitted to the SSO agency, but approval is pending.
G85: 0 | H85: SSP has not been approved.
B86: Emergency Response Plan (ERP)
B87: 1.201 | C87: Does the transit agency have an Emergency Response Plan (ERP)? | D87: Document Review | E87: Inspectors should refer to the MT BASE Guidance, Pg13. | F87: Emergency response procedures | G87: 4 | H87: ERP is a well developed plan, complete with detailed policies and procedures related to emergency response. ERP is missing no key elements and has been completely implemented by the agency.
G88: 3 | H88: ERP is a complete document with polices and procedures that have been appropriately implemented by the agency. Only a few minor elements are missing. Key concepts are detailed with minimal exceptions.
G89: 2 | H89: Generic policies and procedures are documented and implemented adequately. Key concepts are documented, but lacking any depth. In fact, the plan simply appears to be a commonly available "template."
G90: 1 | H90: ERP is a generalized document that is lacking any detailed, agency-specific security elements. Key concepts are missing or not adequately implemented by the agency.
G91: 0 | H91: There is no ERP in place.
B92: 1.202 | C92: Does a written policy statement exist that endorses and adopts the policies and procedures of the ERP that is approved and signed by top management, including the agency's chief executive? | D92: Document Review | F92: Policy statement including: endorsement statement/signature, applicability, and authority/background of the plan. | G92: 4 | H92: Policy statement is well developed and includes all elements: endorsement statement, applicability, authority establishing the plan, and approval signature from the agencies chief executive.
G93: 3 | H93: Includes a brief endorsement statement by chief executive and a signature.
G94: 2 | H94: Policy statement only includes an endorsement signature.
G95: 1 | H95: Policy statement only includes a brief endorsement statement. No endorsement signature.
G96: 0 | H96: There is no policy statement of any sort in place.
B97: 1.203 | C97: Does the ERP require an annual review to determine if it needs to be updated? | D97: Document Review | F97: Documented requirement for annual review. | G97: 4 | H97: Annual review is a written requirement with verification measures in place (signed and dated).
G98: 2 | H98: Annual review is a "commonly known" requirement (not documented) or a written requirement with no verification measure in place.
G100: 1 | H100: ERP is reviewed on an "as-needed" basis, but at least every two years.
G101: 0 | H101: There are no review requirements in place, and the ERP is not regularly reviewed.
B102: 1.204 | C102: Has an annual review of the ERP been performed and documented in the preceding 12 months? | D102: Document Review | E102: Reference date of last review in justification. | F102: Documented evidence of a annual review. | G102: 4 | H102: Annual review is verifiable by document review.
G104: 2 | H104: Annual review is only verifiable by interview.
G106: 0 | H106: ERP has not been reviewed.
B107: 1.205 | C107: Does the ERP include a process or review provision to ensure coordination with the rail transit agency’s SSPP and SSP? | D107: Document Review | F107: Emergency response procedures coordinated with security and safety procedures. (Emergency procedures do not hinder safety or security.) | G107: 4 | H107: ERP includes documented provisions that ensure its coordination with the agency's safety and security plans.
G108: 3 | H108: ERP includes documented provisions that ensure its coordination with either the agency's security plans or the agency's safety plans--not both.
G109: 2 | H109: Provisions are in place and clearly implemented, but no documentation established.
G110: 1 | H110: Coordination is very informal with no specific provisions in place. Documentation includes only vague general statements ("Safety and security should be addressed during emergency situations").
G111: 0 | H111: There is no coordination between the ERP and SSP/SSPP.
B112: 1.206 | C112: Has the transit agency received documentation from the SSO confirming its review and approval of the ERP currently in effect? | D112: Document Review | E112: 49 CFR PART 659 SSO Only Question | F112: SSO approval of current ERP. N/A for entities not regulated under 49 CFR § 659. | G112: 4 | H112: Approval (including date of approval) is verifiable.
G114: 2 | H114: ERP has been approved, but approval is not verifiable.
G116: 0 | H116: ERP has not been approved.
B117: 1.207 | C117: Does the ERP contain or reference other documents establishing plans, procedures, or protocols for responding to emergency events with external agencies (such as law enforcement, local EMA, fire departments, etc.)? | D117: Document Review | F117: Documented plans for coordinating with external agencies. | G117: 4 | H117: Well-developed, specific procedures are in place and documented in the ERP or as part of another document and referenced in the ERP.
G118: 2 | H118: Procedures are in place with varying degrees of implementation or documentation.
G121: 0 | H121: Procedures are not in place or documented.
B122: 1.208 | C122: Does the ERP contain or reference other documents that establish procedures for the management of emergency events, including those to be employed by the operations control center (or dispatch center)? | D122: Document Review | F122: Management of emergency events | G122: 4 | H122: The responsibility for the management of security incidents has been assigned to the Operations Control Center (or dispatch center). Specific procedures are in place and documented in the ERP. If documented elsewhere, the ERP references that document.
G123: 3 | H123: Plans and procedures are in place and function appropriately. However, minor aspects are missing. ERP includes--or references documents that contains--the procedures.
G124: 2 | H124: Well organized procedures are in place and contained as part of another document with no reference in the ERP.
G125: 1 | H125: Procedures are lacking any depth or clarity, plans are scattered between multiple documents with no reference in ERP, or responsibilities are otherwise ineffectively assigned.
G126: 0 | H126: Procedures are not in place or documented.
B127: 1.209 | C127: Does the ERP contain or reference other documents to provide for Continuity of Operations while responding to emergency events? | D127: Document Review | E127: Verify COOP addresses 5 main goals outlined in the MT BASE Guidance, Pg13. | F127: Continuity of Operations plan. | G127: 4 | H127: Continuity of Operations plans exist and are included as part of the ERP (or in another document that is referenced in the ERP).
G129: 2 | H129: Continuity of Operations plans exist but are not included as part of the ERP or referenced in the ERP.
G131: 0 | H131: No Continuity of Operations plans exist.
B132: 1.210 | C132: Does the agency have a written Business Recovery Plan to guide restoration of facilities and services following an emergency event? | D132: Document Review | F132: Procedures to recover from an event and resume normal operations. | G132: 4 | H132: Business Recovery Plan is a comprehensive plan. Essential business functions (HR, IT, etc.) have been identified , and the agency has taken steps to protect vital business information (records, data, etc.). The plan outlines steps to be taken to return the agency to a "normal" operational status in a timely manner. Policies and procedures (including who activates the plan and how the agency transitions from emergency operations to business recovery) are detailed.
G133: 3 | H133: Business Recovery Plan is a well-developed document, missing only a few elements or details.
G134: 2 | H134: Business Recovery Plan is a generic plan that appears to be a commonly available "template" with only general procedures.
G135: 1 | H135: Business Recovery Plan is lacking details and appears incomplete.
G136: 0 | H136: There is no plan in place to achieve a timely and orderly recovery and resumption of full service.
B137: 1.211 | C137: Does the agency have a written Business Continuity Plan and COOP to guide restoration of facilities and services following an emergency event? | D137: Document Review | F137: Procedures to continue essential operations during emergency. | G137: 4 | H137: Business Continuity Plan is a comprehensive plan. Essential operations functions (bus operations, security infrastructure) and key facilities have been identified. Policies and procedures are detailed and effective in mitigating any disruption to operations. Continuity responsibilities are identified (including who is responsible for activating the plan). Any resulting SOP changes are documented.
G138: 3 | H138: Business Continuity Plan is a well-developed document, missing only a few elements or details.
G139: 2 | H139: Business Continuity Plan is a generic plan that appears to be a commonly available "template" with only general procedures.
G140: 1 | H140: Business Continuity Plan is lacking details and appears incomplete.
G141: 0 | H141: There is no plan in place to ensure the continuity of operations.
B142: 1.212 | C142: Does the agency have a back-up operations control center capability? | D142: Document Review | E142: indicate last time this was tested (if applicable) in Justification. | F142: Secondary site of Operations Control. | G142: 4 | H142: The agency has identified a back-up location for operations control. This secondary location can quickly become fully operational and is equipped to function in the same capacity as the primary Operation Control Center.
G144: 2 | H144: There is a back up operations control center, but it cannot fully replicate the primary operations center capabilities.
G146: 0 | H146: There is no back-up capabilities for the Operations Control Center.
A147: Security Action Item 2 | B147: Define Roles and Responsibilities for Security and Emergency Management
B148: System Security Plan (SSP)
B149: 2.101 | C149: Does the SSP establish and assign responsibility for implementation of the security program to a Senior Manager who is a "direct report" to the agency's Chief Executive Officer? | D149: Document Review | E149: Inspectors should refer to the MT BASE Guidance, Pg14. | F149: Documented evidence assigning implementation of security program in the SSP. | G149: 4 | H149: The implementation of the security program has been assigned to a Senior Manager who is a "direct report" to the CEO. This responsibility is documented in the SSP.
G150: 3 | H150: The implementation of the security program has been assigned to a Senior Manager who is a "direct report" to the CEO. This responsibility is not documented in the SSP, but it is a commonly known assignment that is documented elsewhere.
G151: 2 | H151: The implementation of the security program has been assigned to a manager or leadership position that is not a "direct report" to the CEO. The responsibility is documented in the SSP.
G152: 1 | H152: The implementation of the security program has been ineffectively assigned to a position that cannot act independently. The responsibility is documented in the SSP.
G153: 0 | H153: The implementation of the security program is not assigned, or there is no documentation establishing the responsibility of implementation.
B154: 2.102 | C154: Has the agency established lines of delegated authority/succession of security responsibilities and, if so, has that information been distributed to agency managers? | D154: Document Review | F154: Chain of Command and Lines of Succession for security responsibilities. | G154: 4 | H154: The agency has established comprehensive policies and procedures related to "chain of command" and "lines of succession" for security responsibilities. The policy is well documented, and lines of succession include multiple individuals based on the importance of responsibilities (more important roles have longer, multi-personnel lines of succession). This policy is shared with agency managers.
G155: 3 | H155: The agency has established basic--yet fully developed--procedures related to "chain of command" and "lines of succession" for security responsibilities. Minor elements are missing or needing further development. Lines of succession may not be in-depth, only identifying one successor for security-critical roles. The policy is documented and shared with agency manager.
G156: 2 | H156: The agency has established and documented a "chain of command." Informal (or "generally understood") "lines of succession" are in place but not documented.
G157: 1 | H157: The agency has an informal (not documented) "chain of command" only.
G158: 0 | H158: The agency has no established "chain of command"
B159: 2.103 | C159: Are roles and responsibilities for security and/or law enforcement personnel assigned by title and/or position established in the SSP or other documents? | D159: Document Review | F159: Security roles and responsibilities of Security Personnel. | G159: 4 | H159: Roles and responsibilities of security personnel are assigned by position and documented in the SSP or other documents. Roles are comprehensive and detailed for all position-types, from security managers to supervisors to front-line security personnel.
G160: 3 | H160: Roles and responsibilities of security personnel are assigned by position and documented in the SSP or other documents; however, minor elements are missing or require minor additions.
G161: 2 | H161: General roles and responsibilities are assigned by position and documented in the SSP or other documents. While assigned by position type, the roles and responsibilities are vague. Position types identified may also be vague or missing key positions.
G162: 1 | H162: General security roles and responsibilities are documented in the SSP or other documents. These roles and responsibilities are not assigned by position.
G163: 0 | H163: Roles and responsibilities are not documented.
B164: 2.104 | C164: Are security-related roles and responsibilities for non-security and/or law enforcement personnel (i.e., operators, conductors, maintenance workers and station attendants) established in the SSP or other documents? | D164: Document Review | F164: Security roles and responsibilities of non-security personnel. | G164: 4 | H164: Specific security-related responsibilities have been established for non-security personnel and assigned based on job function for all (or a majority of) employees. Roles and responsibilities are comprehensive and clearly identify the role non-security personnel play in regards to security. These responsibilities are documented in the SSP or other documents.
G165: 3 | H165: Security-related responsibilities have been established for non-security personnel. Specific responsibilities are identified and assigned to all non-security personnel, regardless of job function ("blanket statement"). Responsibilities are documented in the SSP or other documents.
G166: 2 | H166: Specific security responsibilities for non-security personnel encompasses less than half of the applicable workforce, but the responsibilities in place are adequately developed. Responsibilities are documented.
G167: 1 | H167: Only general security-related responsibilities are documented.
G168: 0 | H168: No security-related roles have been established or documented for non-security personnel.
B169: 2.105 TSF 2 | C169: Do senior staff and middle management conduct security meetings to review recommendations for changes to plans and processes? | D169: Interview / Document Review | E169: Security should be the primary focus of these meetings and briefings | F169: Management meetings for security recommendations. Operational. | G169: 4 | H169: Senior staff and management conduct security meetings on a quarterly basis, at minimum, to review recommendations for changes to plans and processes. Verified by both interview and document review.
G170: 2 | H170: Senior staff and management conduct security meetings infrequently, but at least annually, to review recommendations for changes to plans and processes. Only verifided through interview.
G171: 0 | H171: Senior staff and management meet on an infrequent basis, if ever, or meetings related to security are not conducted.
B172: 2.106 | C172: Does a Security Review Committee (or other designated group) regularly review security incident reports, trends, and program audit findings? | D172: Interview | E172: Security should be the primary focus of these meetings and briefings | F172: Security Review Committee | G172: 4 | H172: A formal security committee or working group has been established. This group meets multiple times per year at predictable intervals (at least once per quarter) to review security incident reports, trends, and program audit findings. All applicable security items are addressed.
G173: 3 | H173: A formal security committee or working group has been established. This group meets at least twice per year to review security incident reports, trends, and program audit findings. All applicable security items are addressed.
G174: 2 | H174: A formal security committee or working group has been established, but it only meets once per year or on an "as needed" basis. This score also applies if the group meets at a higher frequency but doesn't effectively address all applicable security items.
G175: 1 | H175: Security items are discussed and addressed by a Safety committee.
G176: 0 | H176: Security review committee does not exist or meets on an infrequent basis.
B177: 2.107 | C177: Are informational briefings with appropriate personnel held whenever security protocols, threat levels, or protective measures are updated or as security conditions warrant? | D177: Interview | F177: Security Briefings (written or verbal), means of acknowledgement. Operational. | G177: 4 | H177: Policies and procedures are in place to ensure that frontline personnel are made aware of anything relevant to the security of their transit system. Agency utilizes a variety of message delivery systems for security messages based on message importance: face-to-face verbal, electronic dispersal, written-memo system, and bulletin board postings. The agency has also developed a means of tracking/monitoring who has (or has not) received high-importance informational briefings (acknowledgement/signature sheet, email receipt, etc.).
G178: 3 | H178: Entity has procedures in place to ensure that frontline personnel are made aware of anything relevant to the security of their transit system. Method of delivery is, for the most part, effective, with very little (but possible) chance of employees not receiving critical information. Agency has not developed a means of monitoring or tracking who receives informational briefings.
G179: 2 | H179: Briefings are only delivered through written-memos or other ineffective means of personal dispersal. For a score of 2, the delivery method might reach a high number of employees, but the message itself is not guaranteed (employees may not understand a message, employees may not actually read the message, and the agency may not be able to accurately gauge who has received the message).
G180: 1 | H180: Entity only utilizes bulletin board-style briefings.
G181: 0 | H181: No briefings.
B182: 2.108 | C182: Have appropriate reference guides or other written instructions or procedures been distributed to transit employees to implement the requirements of the SSP? | D182: Document Review | F182: Reference guides for transit personnel | G182: 4 | H182: Individual written guides or reference material based on job function have been provided to employees to assist employees with the implementation of security procedures. (Example: Driver's manual, SOP, etc.)
G183: 3 | H183: Individual written guides or reference material with generalized guidance have been provided to employees to assist employees with the implementation of security procedures.
G184: 2 | H184: Written guides or other written materials have been provided to every department and are available to employees if needed.
G185: 1 | H185: Written guides or other written materials exist but are not conveniently available to employees.
G186: 0 | H186: Written materials are not readily available to employees.
B187: 2.109 | C187: Has the agency appointed a Primary and Alternate Security Coordinator to serve as its primary and immediate 24-hr contact for intelligence and security-related contact with TSA and are the names of those Coordinators on file with TSA OSPIE office correct? | D187: Document Review / Interview | E187: This question applies to both Regulated and Non-Regulated entities. | F187: Security Coordinator | G187: 4 | H187: The agency has appointed a Primary and Alternate Security Coordinator that meet all criteria established by TSA and provided TSA the names of these individuals.
G188: 2 | H188: The agency has a Primary and or Alternate Security Coordinator, but their roles are not clearly defined (may not be documented) and/or do not meet all criteria established by TSA (not available 24/7, etc.).
G189: 0 | H189: The agency has not identified any Security Coordinators.
B190: 2.110 | C190: Does the agency maintain a record of security related incidents that are reported within the agency? | D190: Document Review | F190: Incident recording (may be document retention or summary archives) | G190: 4 | H190: Agency maintains a record of security related incidents that are reported within the agency. Agency has the ability to review incidents that have occurred over one year earlier.
G191: 3 | H191: Agency has the ability to review incidents that have occurred up to one year earlier.
G192: 2 | H192: Agency has the ability to review incidents that have occurred up to six months earlier.
G193: 1 | H193: Agency has the ability to review incidents that have occurred up to three months earlier.
G194: 0 | H194: Agency does not maintain a record of security related incidents.
B195: Emergency Response Plan (ERP)
B196: 2.201 | C196: Does the ERP establish and assign responsibility for implementation of the security program to a Senior Manager who is a "direct report" to the agency's Chief Executive Officer? | D196: Document Review | E196: Inspectors should refer to the MT BASE Guidance, Pg14. | F196: Documented evidence assigning implementation of security program in the ERP. | G196: 4 | H196: The implementation of the security program has been assigned to a Senior Manager who is a "direct report" to the CEO. This responsibility is documented in the ERP.
G197: 3 | H197: The implementation of the security program has been assigned to a Senior Manager who is a "direct report" to the CEO. This responsibility is not documented in the ERP, but it is a commonly known assignment that is documented elsewhere.
G198: 2 | H198: The implementation of the security program has been assigned to a manager or leadership position that is not a "direct report" to the CEO. The responsibility is documented in the ERP.
G199: 1 | H199: The implementation of the security program has been ineffectively assigned to a position that cannot act independently. The responsibility is documented in the ERP.
G200: 0 | H200: The implementation of the security program is not assigned, or there is no documentation establishing the responsibility of implementation.
B201: 2.202 | C201: Are emergency response roles and responsibilities for all departments identified in the ERP or other supporting documents? | D201: Document Review | F201: Documented emergency response responsibilities. | G201: 4 | H201: The agency takes an all-inclusive, system-wide approach to emergency preparedness. Emergency response roles and responsibilities have been developed and are assigned for all departments. Roles are comprehensive, detailed, and documented.
G202: 3 | H202: Emergency response roles and responsibilities have been developed and assigned to most departments. Not all departments have an assigned role in emergency response. Roles and responsibilities are well-developed and assigned effectively, but there is room for improvement. This is documented.
G203: 2 | H203: Documented roles and responsibilities have been only assigned to critical departments (security, etc.), may be generalized in nature, or a combination thereof.
G204: 1 | H204: Documented roles and responsibilities have been assigned as a blanket-statement. Roles may be vague or ineffectively developed.
G205: 0 | H205: Roles and responsibilities are not documented.
B206: 2.203 TSF 5 | C206: Are roles and responsibilities for front-line personnel (i.e. system law enforcement, system security officials, train or vehicle operators, conductors, station attendants, maintenance workers) described in the system's Emergency Response Plan (ERP)? | D206: Document Review | F206: Frontline Personnel Responsibilities. | G206: 4 | H206: Roles and responsibilities of frontline personnel are assigned by position and documented in the ERP. Roles are comprehensive and detailed.
G207: 3 | H207: Roles and responsibilities of frontline personnel are assigned and documented in the ERP. Roles are relatively detailed and effectively assigned, but may be missing minor details.
G208: 2 | H208: Roles and responsibilities of frontline personnel are developed and documented in the ERP. Roles are general and lack specific details based on job function.
G209: 1 | H209: General security roles and responsibilities are documented in the SSP or other documents. These roles and responsibilities are not assigned by position.
G210: 0 | H210: Roles and responsibilities are not documented.
B211: 2.204 | C211: Has the ERP been distributed to appropriate departments in the organization? | D211: Interview | F211: ERP Distribution | G211: 4 | H211: The agency takes a total approach to emergency response, including all departments in the process. All departments have been provided a copy of the ERP.
G212: 3 | H212: The agency is proactive with emergency response. The ERP has been provided to departments that are critical to emergency response as well as some departments that would serve a secondary support role during emergency response.
G213: 2 | H213: The agency has only provided the ERP to departments that are critical to emergency response. Upon request, the ERP is readily available to other departments.
G214: 1 | H214: ERP distribution is very limited. Departments do not have easy access to the document.
G215: 0 | H215: The ERP is not distributed.
B216: 2.205 | C216: Have appropriate reference guides or other written instructions or procedures been distributed to transit employees to implement the requirements of the ERP? | D216: Document Review | F216: Reference guides for transit personnel | G216: 4 | H216: Individual written guides or reference material based on job function have been provided to all employees to assist employees with the implementation of emergency procedures.
G217: 3 | H217: Individual written guides or reference material with generalized guidance have been provided to all employees to assist employees with the implementation of emergency procedures.
G218: 2 | H218: Written guides or other written materials have been provided to every department and are available to employees if needed.
G219: 1 | H219: Written guides or other written materials exist but are not conveniently available to employees.
G220: 0 | H220: Written materials are not readily available to employees.
B221: 2.206 | C221: Are senior staff and middle management ERP coordination meetings held on a regular basis? | D221: Interview | E221: Emergency response should be the primary focus of these meetings and briefings | F221: Management meetings for ERP coordination. Operational. | G221: 4 | H221: Senior staff and management conduct ERP coordination meetings on a monthly basis.
G222: 3 | H222: Senior staff and management conduct ERP coordination meetings on a quarterly basis.
G223: 2 | H223: Senior staff and management conduct ERP coordination meetings twice per year.
G224: 1 | H224: Senior staff and management conduct ERP coordination meetings annually or on an "as needed" basis.
G225: 0 | H225: Senior staff and management meet on an infrequent basis, if ever, or meetings related to ERP coordination are not conducted.
B226: 2.207 | C226: Are informational briefings with appropriate personnel held whenever emergency response protocols are substantially changed or updated? | D226: Interview | F226: Briefings related to emergency response. Operational. | G226: 4 | H226: Policies and procedures are in place to ensure that frontline personnel are made aware of anything relevant to the emergency response plan. Agency utilizes a variety of message delivery systems for security messages based on message importance: face-to-face verbal, electronic dispersal, written-memo system, and bulletin board postings. The agency has also developed a means of tracking/monitoring who has (or has not) received high-importance informational briefings (acknowledgement/signature sheet, email receipt, etc.).
G227: 3 | H227: Entity has procedures in place to ensure that frontline personnel are made aware of anything relevant to the emergency response. Method of delivery is, for the most part, effective, with very little (but possible) chance of employees not receiving critical information. Agency has not developed a means of monitoring or tracking who receives informational briefings.
G228: 2 | H228: Briefings are only delivered through written-memos or other ineffective means of personal dispersal. For a score of 2, the delivery method might reach a high number of employees, but the message itself is not guaranteed (employees may not understand a message, employees may not actually read the message, and the agency may not be able to accurately gauge who has received the message).
G229: 1 | H229: Entity only utilizes bulletin board-style briefings.
G230: 0 | H230: No briefings.
A231: Security Action Item 3 | B231: Ensure that operations and maintenance supervisors, forepersons and managers are held accountable for security issues under their control
... 484 more rows

Sheet Profile Sheet
A1: DEPARTMENT OF HOMELAND SECURITY
A2: Transportation Security Administration
A3: Mass Transit Baseline Assessment for Security Enhancements (MT-BASE)
G4: Date of Visit | J4: TSA Field Office | M4: Region #
G6: FSD AOR Field Office (Optional):
G7: Assessment Started:
G8: Assessment Completed:
G9: Outbrief Conducted:
A10: TYPE OF VISIT | G10: Agency
A11: Corporate Review
A12: Is This A Revisit? | C12: Date of Last Interview/Visit? | G12: Street
G13: City | J13: State | L13: Zip Code
A14: Not Governed By 49 CFR Part 659? | G14: Agency Website:
A15: Agency Size: | G15: Company Chosen By:
A16: Agency Annual Ridership Amount: | G16: HTUA Name:
A17: Grant Funding - Section 5311 of Title 49: | I17: Most Recent Grant Received in:
B18: Types of Service (Check all that apply)
B19: Light Rail | E19: Inclined Plane | H19: Tourist / Scenic
B20: Heavy Rail | E20: Funicular | H20: Commuter
B21: Rapid Rail | E21: Trolley | H21: Intercity
B22: Monorail | E22: Automated Guideway | H22: Transit Bus
A23: Security Personnel Interviewed
A24: Name | D24: Title | G24: Telephone | I24: Cell | K24: E-mail
D25: Security Coordinator
D26: Alternate Security Coordinator
A30: Other Agency Points of Contact
A31: Name | D31: Title | G31: Telephone | I31: Cell | K31: E-mail
A38: TSI Inspector Information
A39: Name | D39: Title | G39: Airport Code | I39: Telephone | K39: E-mail
D40: Lead TSI
D41: Secondary TSI
A46: Supervisory Approval
A47: Name | D47: Title | G47: Airport Code | I47: Telephone | K47: E-mail
D48: STSI
D49: AFSD-I
A53: Headquarters Approval
A54: Name | D54: Title | G54: Airport Code | I54: Telephone | K54: E-mail
G55: HQ
G56: HQ
A57: Paperwork Reduction Act Statement: This is a voluntary collection of information. TSA estimates that the total average burden per response associated with this collection is approximately 48 hours. An agency may not conduct or sponsor, and a person is not required to respond to a collection of information unless it displays a valid OMB control number. The control number assigned to this collection is OMB 1652-0062, which expires on 07/31/2015.

Sheet Checklist
A1: DEPARTMENT OF HOMELAND SECURITY
A2: Transportation Security Administration
A3: Mass Transit
A4: Baseline Assessment & Security Enhancement Review Checklist
B5: Company Name: | E5: Lead Inspector: | F5: ='Profile Sheet'!A40 -> 0
B6: ='Profile Sheet'!G11 -> 0 | E6: Assessment Date: | F6: ='Profile Sheet'!G5 -> 00:00:00
B8: Description | D8: Findings | E8: Justification
A9: Section | C9: N/A | D9: Score | E9: Source | F9: Score Rationale | I9: Line Sort | J9: Re-sort
B10: MANAGEMENT AND ACCOUNTABILITY | I10: 1
A11: 1.000 | B11: Establish Written System Security Plans (SSPs) and Emergency Response Plans (ERPs) | I11: 2
A12: 1.100 | B12: System Security Plan (SSP) | I12: 3
A13: 1.101 | B13: Does the transit agency have a System Security Plan (SSP)? | I13: 4
A14: 1.102 | B14: Does the SSP identify the goals and objectives for the security program? | I14: 5
A15: 1.103 | B15: Does a written policy statement exist that endorses and adopts the policies and procedures of the SSP that is approved and signed by top management, including the agency's chief executive? | I15: 6
A16: 1.104 | B16: Is the SSP separate from the agency’s System Safety Program Plan (SSPP)? | I16: 7
A17: 1.105 / T1 | B17: Do the Security and Emergency Response Plans address protection and response for critical underwater tunnels, underground stations/ tunnels and other critical systems, where applicable? | I17: 8
A18: 1.106 | B18: Does the SSP contain or reference other documents establishing procedures for the management of security incidents by the operations control center (or dispatch center)? | I18: 9
A19: 1.107 | B19: Does the SSP contain or reference other documents establishing plans, procedures, or protocols for responding to security events with external agencies (such as law enforcement, local EMA, fire departments, etc.)? | I19: 10
A20: 1.108 | B20: Does the SSP contain or reference other documents that establish protocols addressing specific threats from (i) Improvised Explosive Devices (IED) and (ii) Weapons of Mass Destruction (chemical, biological, radiological hazards)? | I20: 11
A21: 1.109 / T3 | B21: Are visible, random security measures integrated into security plans to introduce unpredictability into security activities for deterrent effect? | I21: 12
A22: 1.110 | B22: Does the SSP include provisions requiring that security be addressed in extensions, major projects, new vehicles and equipment procurement and other capital projects, and including integration with the transit agency’s safety certification process? | I22: 13
A23: 1.111 | B23: Does the SSP include or reference other documents adopting Crime Prevention Through Environmental Design (CPTED) principles as part of the agency's engineering practices? | I23: 14
A24: 1.112 | B24: Does the SSP require an annual review? | I24: 15
A25: 1.113 | B25: Does the transit agency produce periodic reports reviewing its progress in meeting its SSP goals and objectives? | I25: 16
A26: 1.114 | B26: Has an annual review of the SSP been performed and documented in the preceding 12 months?
A27: 1.115 | B27: Does the SSP outline a process for securing SSO agency review and approval of updates to the SSP? | C27: =IF('Profile Sheet'!$E$14="X", "X","") ->  | E27: =IF('Profile Sheet'!$E$14="X","N/A"," ") ->  | F27: =IF('Profile Sheet'!$E$14="X","N/A"," ") ->  | I27: 18
A28: 1.116 | B28: Has the transit agency submitted and received documentation from the SSO confirming its review and approval of the SSP currently in effect? | C28: =IF('Profile Sheet'!$E$14="X", "X","") ->  | E28: =IF('Profile Sheet'!$E$14="X","N/A"," ") ->  | F28: =IF('Profile Sheet'!$E$14="X","N/A"," ") ->  | I28: 19
A29: 1.200 | B29: Emergency Response Plan (ERP) | I29: 21
A30: 1.201 | B30: Does the transit agency have an Emergency Response Plan (ERP)? | I30: 22
A31: 1.202 | B31: Does a written policy statement exist that endorses and adopts the policies and procedures of the ERP that is approved and signed by top management, including the agency's chief executive? | I31: 23
A32: 1.203 | B32: Does the ERP require an annual review to determine if it needs to be updated? | I32: 24
A33: 1.204 | B33: Has an annual review of the ERP been performed and documented in the preceding 12 months? | I33: 25
A34: 1.205 | B34: Does the ERP include a process or review provision to ensure coordination with the transit agency’s SSPP and SSP? | I34: 26
A35: 1.206 | B35: Has the transit agency received documentation from the SSO confirming its review and approval of the ERP currently in effect? | E35: =IF('Profile Sheet'!$E$14="X","N/A"," ") ->  | F35: =IF('Profile Sheet'!$E$14="X","N/A"," ") ->  | I35: 27
A36: 1.207 | B36: Does the ERP contain or reference other documents establishing plans, procedures, or protocols for responding to emergency events with external agencies (such as law enforcement, local EMA, fire departments, etc.)? | I36: 28
A37: 1.208 | B37: Does the ERP contain or reference other documents that establish procedures for the management of emergency events, including those to be employed by the operations control center (or dispatch center)? | I37: 29
A38: 1.209 | B38: Does the ERP contain or reference other documents to provide for Continuity of Operations (COOP) while responding to emergency events? | I38: 30
A39: 1.210 | B39: Does the agency have a written Business Recovery Plan to guide restoration of facilities and services following an emergency event?
A40: 1.211 | B40: Does the agency have a written Business Continuity Plan and COOP to guide restoration of facilities and services following an emergency event?
A41: 1.212 | B41: Does the agency have a back-up operations control center capability? | I41: 31
A42: 2.000 | B42: Define Roles and Responsibilities for Security and Emergency Management | I42: 32
A43: 2.100 | B43: System Security Plan (SSP) | D43: a | I43: 33
A44: 2.101 | B44: Does the SSP establish and assign responsibility for implementation of the security program to a Senior Manager who is a "direct report" to the agency's Chief Executive Officer? | I44: 34
A45: 2.102 | B45: Has the agency established lines of delegated authority/succession of security responsibilities and, if so, has that information been distributed to agency managers?
A46: 2.103 | B46: Are roles and responsibilities for security and/or law enforcement personnel assigned by title and/or position established in the SSP or other documents?
A47: 2.104 | B47: Are security-related roles and responsibilities for non-security and/or law enforcement personnel (i.e., operators, conductors, maintenance workers and station attendants) established in the SSP or other documents? | I47: 35
A48: 2.105 / T2 | B48: Do senior staff and middle management conduct security meetings to review recommendations for changes to plans and processes? | I48: 36
A49: 2.106 | B49: Does a Security Review Committee (or other designated group) regularly review security incident reports, trends, and program audit findings? | I49: 37
A50: 2.107 | B50: Are informational briefings with appropriate personnel held whenever security protocols, threat levels, or protective measures are updated or as security conditions warrant? | I50: 38
A51: 2.108 | B51: Have appropriate reference guides or other written instructions or procedures been distributed to transit employees to implement the requirements of the SSP? | I51: 39
A52: 2.109 | B52: Has the agency appointed a Primary and Alternate Security Coordinator to serve as its primary and immediate 24-hr contact for intelligence and security-related contact with TSA and are the names of those Coordinators on file with TSA OSPIE office correct? | I52: 40
A53: 2.110 | B53: Does the agency maintain a record of security related incidents that are reported within the agency? | I53: 42
A54: 2.200 | B54: Emergency Response Plan (ERP): | D54: a | I54: 43
A55: 2.201 | B55: Does the ERP establish and assign responsibility for implementation of the security program to a Senior Manager who is a "direct report" to the agency's Chief Executive Officer? | I55: 44
A56: 2.202 | B56: Are emergency response roles and responsibilities for all departments identified in the ERP or other supporting documents? | I56: 45
A57: 2.203 / T5 | B57: Are roles and responsibilities for front-line personnel (i.e. system law enforcement, system security officials, train or vehicle operators, conductors, station attendants, maintenance workers) described in the system's Emergency Response Plan (ERP)? | I57: 46
A58: 2.204 | B58: Has the ERP been distributed to appropriate departments in the organization? | I58: 47
A59: 2.205 | B59: Have appropriate reference guides or other written instructions or procedures been distributed to transit employees to implement the requirements of the ERP? | I59: 48
A60: 2.206 | B60: Are senior staff and middle management ERP coordination meetings held on a regular basis? | I60: 49
A61: 2.207 | B61: Are informational briefings with appropriate personnel held whenever emergency response protocols are substantially changed or updated?
A62: 3.000 | B62: Ensure that operations and maintenance supervisors, forepersons and managers are held accountable for security issues under their control | I62: 51
A63: 3.101 | B63: Do managers and supervisors routinely provide information to front-line personnel regarding security and emergency response issues? | I63: 52
A64: 3.102 | B64: Are regular supervisor, manager, and/or foreperson security review and coordination briefings held? If so, detail frequency and subjects covered in the justification. | I64: 53
A65: 3.103 | B65: Does the agency have a program for confirming that personnel have a working knowledge of security protocols? If so, summarize program in the justification. | I65: 54
A66: 3.104 | B66: Are managers and/or supervisors required to debrief front-line employees regarding their involvement in or management of any security or emergency incidents? | I66: 55
A67: 4.000 | B67: Coordinate Security and Emergency Management Plan(s) with local and regional agencies | I67: 56
A68: 4.101 | B68: Have Mutual Aid agreements been established between the transit agency and entities in the area that would be called upon to supplement the agency's resources in the event of an emergency event? | I68: 57
A69: 4.102 | B69: Does the agency participate in a regional Emergency Management Working Group or similar regional coordinating body for emergency preparedness and response? | I69: 58
A70: 4.103 | B70: Have regional incident management protocols been shared with the agency and incorporated into the agency's ERP/SSP/SEPP? | I70: 59
A71: 4.104 | B71: Have agency resources been appropriately identified and provided to the regional EMA? | I71: 60
A72: 4.105 | B72: Does the agency have a designated point-of-contact or liaison with the local/regional Emergency Operations Center (EOC)? | I72: 61
A73: 4.106 | B73: Does the agency send a representative to the local/regional EOC, should it be activated? | I73: 62
A74: 4.107 | B74: Does the agency have information sharing capabilities with the regional/local EOC (i.e., contacts, procedures, resource inventories, etc.)? | I74: 63
A75: 4.108 | B75: Has the agency developed internal incident management protocols that comply with the National Response Plan and the National Incident Management System (NIMS)? | I75: 64
A76: 4.109 | B76: Have the agency's emergency response protocols been shared with the EMA and appropriate first responder agencies? | I76: 65
A77: 4.110 / T5 | B77: Has the transit system tested its communications systems for interoperability with appropriate emergency response agencies? | I77: 66
A78: 4.111 | B78: If the agency's communications systems are NOT inter-operable with appropriate emergency response agencies, have alternate communication protocols been established? Describe the alternate communication protocols in the justification. | I78: 67
B79: SECURITY AND EMERGENCY RESPONSE TRAINING | D79: a | I79: 68
A80: 5.000 | B80: Establish and Maintain a Security and Emergency Training Program | I80: 69
A81: 5.101 / T4 | B81: Is initial training provided to all new agency employees regarding security orientation/awareness? | I81: 70
A82: 5.102 / T4 | B82: Is annual refresher training provided regarding security orientation/awareness to Senior Management staff, managers and supervisors? | I82: 71
A83: 5.103 / T4 | B83: Is annual refresher training provided regarding security orientation/awareness to managers and supervisors? | I83: 72
A84: 5.104 / T4 | B84: Is annual refresher training provided regarding security orientation/awareness to front-line employees? | I84: 73
A85: 5.105 | B85: Is ongoing advanced security training focused on job function provided at least annually? | I85: 74
A86: 5.106 / T4 | B86: Is initial training provided to all new transit employees regarding emergency response? | I86: 75
A87: 5.107 / T4 | B87: Is annual refresher training provided regarding emergency response to Senior Management staff, supervisors, and managers? | I87: 76
A88: 5.108 / T4 | B88: Is annual refresher training provided regarding emergency response to Managers and Supervisors?
A89: 5.109 / T4 | B89: Is annual refresher training provided regarding emergency response to front-line Employees? | I89: 78
A90: 5.110 / T4 | B90: Have agency employees received general training on Incident Command System (ICS) procedures in accordance with National Incident Management System at least annually? | I90: 79
A91: 5.111 | B91: Has ICS and NIMS training appropriate to the position been provided to Senior Management staff, supervisors, and managers at least annually? | I91: 80
A92: 5.112 | B92: Has ICS and NIMS training appropriate to the position been provided to managers and supervisors at least annually? | I92: 81
A93: 5.113 | B93: Has ICS and NIMS training appropriate to the position been provided to front-line employees at least annually? | I93: 82
A94: 5.114 | B94: Has the agency developed a program and provided annual training on its own incident response protocols? | I94: 83
A95: 5.115 / T4 | B95: Has training on the agency's incident response protocols appropriate to the position been provided to Senior Management staff, managers and supervisors at least annually? | I95: 84
A96: 5.116 / T4 | B96: Has training on the agency's incident response protocols appropriate to the position been provided to managers and supervisors? | I96: 85
A97: 5.117 / T4 | B97: Has training on the agency's incident response protocols appropriate to the position been provided to front-line employees at least annually? | I97: 86
A98: 5.118 / T4 | B98: Has the transit system implemented an annual training program for personnel regarding response to terrorism, including (i) Improvised Explosive Devices and ii) Weapons of Mass Destruction (chemical, biological, radiological, nuclear)? If so, summarize the relevant programs in the justification? | I98: 87
A99: 5.119 | B99: Has training focused on IEDs and WMDs appropriate to the position been provided to Senior Management staff, managers, and supervisors at least annually? | I99: 88
A100: 5.120 | B100: Has training focused on IEDs and WMDs appropriate to the position been provided to manager and supervisors? | I100: 89
A101: 5.121 | B101: Has training focused on IEDs and WMDs appropriate to the position been provided to front-line employees at least annually? | I101: 90
A102: 5.122 | B102: Do law enforcement/security department personnel at the agency receive specialized training in counter-terrorism annually? Summarize program in the justification. | I102: 91
A103: 5.123 | B103: Do law enforcement/security department personnel at the agency receive specialized training supporting their incident management and emergency response roles at least annually? Summarize program in the justification. | I103: 92
A104: 5.124 | B104: Does the agency have an established program to monitor employee training and to schedule employees for training? | I104: 93
A105: 5.125 | B105: Does the agency have a system that records and tracks personnel training for all security-related courses (including initial, annual, periodic and other)? | I105: 94
A106: 5.126 | B106: Does the transit agency have a system that records and tracks personnel training for emergency response courses (including initial, periodic and other)? | I106: 95
A107: 5.127 | B107: Does the agency have a program to regularly review and update security awareness and emergency response training materials? | I107: 96
A108: 5.128 / T4 | B108: Are all appropriate personnel notified via briefings, email, voicemail, or signage of changes in threat condition, protective measures or the employee watch programs?
A109: 5.129 / T1 | B109: Do the agency's security awareness and emergency response training programs cover response and recovery operations in critical facilities and infrastructure? If so, summarize relevant provisions of program in the justification.
A110: 5.130 / T1 | B110: Has the agency provided training to regional first responders (law enforcement agencies, firefighters, and emergency medical response teams) to enable them to operate in critical facilities and infrastructure? | I110: 97
A111: 5.131 / T3 | B111: Does training of transit system law enforcement and/or security personnel integrate the concept and employment of visible, random security measures?
A112: 5.132 / T4 | B112: Has the agency implemented a program to train or orient first responders (law enforcement, firefighters, emergency medical teams) and other potential supporting assets (e.g., TSA regional personnel for VIPR exercises) on their system vehicle familiarization? | I112: 97
B113: NATIONAL TERRORISM ADVISORY SYSTEM (NTAS) | I113: 98
A114: 6.000 | B114: Establish plans and protocols to respond to the National Terrorism Advisory System (NTAS) | I114: 99
A115: 6.101 | B115: Does the SSP contain or reference other documents identifying incremental actions (imminent or elevated) to be implemented for a NTAS threat? | I115: 100
A116: 6.102 / T2 | B116: Does the agency have actionable operational response protocols for the specific threat scenarios from NTAS? | I116: 101
A117: 6.103 | B117: Has the agency provided annual training and/or instruction focused on job function regarding the incremental activities to be performed by employees? | I117: 102
B118: PUBLIC AWARENESS | D118: a | I118: 104
A119: 7.000 | B119: Implement and reinforce a Public Security and Emergency Awareness program | I119: 105
A120: 7.101 | B120: Has the transit agency developed and implemented a public security and emergency awareness program? | I120: 106
A121: 7.102 / T6 | B121: Does the agency provide active public outreach for security awareness and emergency preparedness (e.g., Transit Watch, “If You See Something, Say Something”, message boards, brochures, channel cards, posters, fliers)? | I121: 107
A122: 7.103 / T6 | B122: Is the above consistent with agency's overall announcement program?
A123: 7.104 / T6 | B123: Are general security awareness and emergency preparedness messages included in public announcement messages at stations and on board vehicles? | I123: 108
A124: 7.105 / T6 | B124: Are passengers urged to report unattended property, suspicious behavior, and security concerns to uniformed crew members, law enforcement or security personnel, and/or a contact telephone number? If so, summarize the type of materials used and content in the justification. | I124: 109
A125: 7.106 / T6 | B125: Does the agency have an appropriate mechanism in place for passengers to communicate an (e.g., 1-800 number, smart phone applications, social media, etc.) that can be called or used to report security concerns? If so, is this information indicated in public awareness materials and messages? | I125: 110
A126: 7.107 | B126: Does the agency issue public service announcements or press releases to social media (e.g. Twitter/ Facebook/etc., QRC codes, and/or apps for smart phones) regarding security and emergency protocols? | I126: 111
A127: 7.108 / T6 | B127: Does the agency issue public service announcements or press releases to local media (e.g. newspaper, radio and/or television) regarding security or emergency protocols? | I127: 112
A128: 7.109 | B128: Does the transit agency conduct a volunteer training program for non-employees to aid with system evacuations and emergency response? | I128: 113
A129: 7.110 | B129: Does the transit agency conduct an outreach program to enlist members of the public as security awareness volunteers, similar to Neighborhood Watch programs? | I129: 114
A130: 7.111 / T1 | B130: Do public awareness materials and/or messages inform passengers on the means to evacuate safely from transit vehicles and underwater/underground facilities?
A131: 7.112 | B131: Does the agency track and monitor customer complaints reported by passengers?
B132: RISK MANAGEMENT | D132: a | I132: 129
A133: 8.000 | B133: Establish and use a risk management process | D133: a | I133: 130
A134: 8.101 / T2 | B134: Does the agency have a risk assessment process approved by its management, for managing threats and vulnerabilities? If so, summarize the process in the justification. | I134: 131
A135: 8.102 | B135: Has the agency identified facilities and systems it considers to be its critical assets? | I135: 132
A136: 8.103 / T2 | B136: Has the agency had an internal or external vulnerability assessment on its critical assets within the past 3 years? Specify the dates of the most recent assessments and the entity(ies) that conducted the assessment(s). | I136: 133
A137: 8.104 / T1 | B137: Has the agency had an internal or external Risk Assessment, analyzing threat, vulnerability, & consequence, for critical assets and infrastructure, and systems within the past 3 years? Have management and staff responsible for the risk assessment process been properly trained to manage the process? | I137: 134
A138: 8.105 / T2 | B138: Has the system implemented procedures to limit and monitor authorized access to underground and underwater tunnels? If so, summarize procedures in the justification. | I138: 135
A139: 8.106 | B139: Are security investments prioritized using information developed in the risk assessment process? | I139: 136
A140: 8.107 / T1 | B140: Upon request, has TSA been provided access to the agency's vulnerability assessments, Security Plan and related documents?
B141: ESTABLISH A RISK ASSESSMENT AND INFORMATION SHARING PROCESS | I141: 138
A142: 9.000 | B142: Establish and use an information sharing process for threat and intelligence information.
A143: 9.101 | B143: Does the agency have a formalized process and procedures for reporting and exchange of threat and intelligence information with Federal, State, and/or local law enforcement agencies? | I143: 139
A144: 9.102 / T2 | B144: Does the system report threat and intelligence information directly to FBI Joint Terrorism Task Force (JTTF) or other regional anti-terrorism task force? | I144: 140
A145: 9.103 / T2 | B145: Does the system have a protocol to report threats or significant security concerns to appropriate law enforcement authorities, and TSA's Transportation Security Operations Center (TSOC)? | I145: 141
A146: 9.104 | B146: Does the agency routinely receive threat and intelligence information directly from any Federal government agency, State Homeland Security Office, Regional or State Intelligence Fusion Center, PT-ISAC, or other transit agencies? | I146: 142
A147: 9.105 | B147: Does the agency report their NTA security data to FTA as required by 49 CFR 659? | C147: =IF('Profile Sheet'!$E$14="X", "X","") ->  | E147: =IF('Profile Sheet'!$E$14="X","N/A"," ") ->  | F147: =IF('Profile Sheet'!$E$14="X","N/A"," ") ->  | I147: 143
B148: DRILLS AND EXERCISES | I148: 116
A149: 10.000 | B149: Conduct Tabletop and Functional Drills | D149: a | I149: 117
A150: 10.101 | B150: Does the agency’s System Safety Program Plan (SSPP) contain or reference a document describing the process used by the agency to develop an approved, coordinated schedule for all emergency management program activities, including local/regional emergency planning and participation in exercises and drills? | I150: 118
A151: 10.102 | B151: Does the agency’s SSPP or SSP describe or reference how the agency performs its emergency planning responsibilities and requirements regarding emergency drills and exercises? | I151: 119
A152: 10.103 / T5 | B152: Does the agency evaluate its emergency preparedness by using annual field exercises, tabletop exercises, and/or drills? If so, please summarize the exercise events held in the past year. | I152: 120
A153: 10.104 | B153: Does the agency's SSPP or a related document include a requirement for annual field exercises, tabletops and drills? | I153: 121
A154: 10.105 | B154: Does the agency’s SSPP or SSP describe or reference how the agency documents the results of its emergency preparedness evaluations (i.e., briefings, after action reports and implementation of findings)? | I154: 122
A155: 10.106 | B155: Does the agency’s SSPP or a related document describe or reference its program for providing employee training on emergency response protocols and procedures? | I155: 123
A156: 10.107 | B156: Does the agency participate as an active player in full-scale, regional exercises held at least annually? | I156: 124
A157: 10.108 / T5 | B157: In the last year, has the agency conducted and/or participated in a drill, tabletop exercise, and/or field exercise including scenarios involving (i) IED's and (ii) WMD (chemical, biological, radiological, nuclear) with other transit agencies and first responders (e.g., NTAS scenarios)? | I157: 125
A158: 10.109 / T5 | B158: In the last year, has the agency reviewed results and prepared after-action reports to assess performance and develop lessons learned for all drills, tabletop, and/or field exercises? | I158: 126
A159: 10.110 / T5 | B159: In the last 12 months, has the agency updated plans, protocols and processes to incorporate after-action report recommendations/findings and corrective actions? If so, summarize the actions taken in the justification. | I159: 127
A160: 10.111 | B160: Has the agency established metrics to assess its performance during emergency exercises and to measure improvements?
A161: 10.112 / T1 | B161: Does the system conduct drills and exercises of its security and emergency response plans to test capabilities of i.) employees and ii.) first responders to operate effectively in underwater/underground infrastructure and other critical systems?
A162: 10.113 / T5 | B162: Does the transit system integrate local and regional first responders (law enforcement, firefighters, emergency medical teams) in drills, tabletop exercises, and/or field exercises? If so, summarize each joint event and state when it took place. | I162: 128
A163: 11.000 | B163: Developing a Comprehensive Cyber Security Strategy | D163: a | I163: 145
A164: 11.101 | B164: Has the agency conducted a risk assessment to identify operational control and communication/business enterprise IT assets and potential vulnerabilities? | I164: 146
A165: 11.102 | B165: Has the agency implemented protocols to ensure that all IT facilities (e.g., data centers, server rooms, etc.) and equipment are properly secured to guard against internal or external threats or attacks? | I165: 147
A166: 11.103 | B166: Has a written strategy been developed and integrated into the overall security program to mitigate the cyber risk identified? | I166: 148
A167: 11.104 | B167: Does the agency have a designated representative to secure the internal network through appropriate access controls for employees, a strong authentication (i.e., password) policy, encrypting sensitive data, and employing network security infrastructure (example: firewalls, intrusion detection systems, IT security audits, antivirus, etc.)? | I167: 149
A168: 11.105 | B168: Does the agency ensure that recurring cyber security training reinforces security roles, responsibilities, and duties of employees at all levels to protect against and recognize cyber threats? | I168: 150
A169: 11.106 | B169: Has the agency established a cyber-incident response and reporting protocol? | I169: 151
A170: 11.107 | B170: Is the agency aware of and using available resources (e.g., standards, PT-ISAC, US CERT, National Cyber Security Communication and Integration Center, etc.)? | I170: 152
B171: FACILITY SECURITY AND ACCESS CONTROLS | D171: a | I171: 154
A172: 12.000 | B172: Control Access to Security Critical Facilities with ID badges for all visitors, employees and contractors | I172: 155
A173: 12.101 | B173: Have assets and facilities requiring restricted access been identified? | I173: 156
A174: 12.102 | B174: Are ID badges or other measures employed to restrict access to facilities not open to the public? | I174: 157
A175: 12.103 / T2 | B175: Has the transit agency developed and implemented procedures to monitor, update and document access control (e.g. card key, ID badges, keys, safe combinations, etc.)? | I175: 158
A176: 12.104 | B176: Does the agency have procedures to issue ID badges for visitors and contractors? | I176: 159
A177: 12.105 | B177: Does the agency require escorts for visitors accessing non-public areas? | I177: 160
A178: 12.106 | B178: Is CCTV equipment installed in transit agency facilities? | I178: 161
A179: 12.107 | B179: Is CCTV equipment protecting critical assets interfaced with an access control system? | I179: 162
A180: 12.108 | B180: Is CCTV equipment installed on transit vehicles? | I180: 163
A181: 12.109 | B181: Are Crime Prevention through Environmental Design (CPTED) and technology (e.g., CCTV, access control, intrusion detection, bollards, etc.) incorporated into design criteria for all new and/or existing capital projects? | I181: 164
A182: 12.110 | B182: Based on the risk assessment, does the agency use fencing, barriers, and/or intrusion detection to protect against unauthorized entry into stations, facilities, and other identified critical assets? | I182: 165
A183: 12.111 / T2 | B183: Has the system implemented protective measures to secure high risk/high consequence assets and systems identified in risk assessments? Examples of protective measures include but are not limited to CCTV, intrusion detection systems, smart camera technology, fencing, enhanced lighting, access control, LE patrols, K-9s, protection of ventilation systems. If protective measures for this infrastructure are employed, summarize type and location in in the justification. | I183: 166
A184: 12.112 | B184: Does the transit agency monitor a network of security, fire, duress, intrusion, utility and internal 911 alarm systems? | I184: 167
A185: 12.113 | B185: Are emergency call boxes provided for passengers? | I185: 168
A186: 12.114 | B186: Do transit agency personnel administer an automated employee access control system and perform corrective analysis of security breaches? | I186: 169
A187: 12.115 | B187: Does the agency have policies and procedures for screening of mail and/or outside deliveries? | I187: 170
A188: 12.116 | B188: Have locks, bullet resistant materials and anti-fragmentation materials been installed/used at critical locations? | I188: 171
A189: 12.117 | B189: Does the agency use National Fire Protection Association (NFPA) Standard 130 or equivalent to evaluate fire/life safety in station design or modification (including fire detection systems, firewalls and flame-resistant materials, back-up powered emergency lighting, defaults in turnstile and other systems supporting emergency exists, and pre-recorded public announcements)? | I189: 172
A190: 12.118 | B190: Is directional signage with adequate lighting provided in a consistent manner in all stations, both to provide orientation and to support emergency evacuation? | I190: 173
A191: 12.119 | B191: Are gates and locks used on all facility doors to prevent unauthorized access? | I191: 174
A192: 12.120 | B192: Are keys controlled through an established program managed by the security/police function? | I192: 175
A193: 12.121 | B193: Are gates and locks also used to close down system facilities after operating hours? | I193: 176
A194: 12.122 | B194: Do transit vehicles have radios, silent alarms, and/or passenger communication systems? | I194: 177
A195: 12.123 | B195: Does the transit agency use graffiti-resistant/etch-resistant materials for walls, ceilings, and windows? | I195: 178
A196: 12.124 | B196: Are Uninterruptible Power Supply (UPS) or redundant power sources provided for safety and security of critical equipment, such as but not limited to: exit and platform lighting; parking lot lighting; ancillary space and shop lighting; intrusion detection (alarmed rooms and spaces, fare collection equipment, etc.); fire detection, alarm and suppression systems; public address (shop and public areas); call-for-aid telephones; CCTV; emergency trip stations; vital train control functions; etc.? | I196: 179
A197: 12.125 | B197: At passenger stations at which a vulnerability assessment has identified a significant risk, and to the extent practicable, has the owner/operator removed trash receptacles and other non-essential receptacles or containers (with the exception of bomb resistant receptacles or clear plastic containers) from the platform areas of passenger terminals and stations?
A198: 12.126 | B198: Does the agency employ specific protective measures for all critical infrastructure (e.g., tunnels, bridges, stations, control centers, etc) identified through the risk assessment particularly at access points and ventilation infrastructure in place and maintained in optimal condition? Examples of protective measures include, but are not limited to, CCTV, intrusion detection systems, smart camera technology, fencing, lighting, access control, law enforcement patrols, canine patrols, physical protection for ventilation systems. If protective measures for this infrastructure are employed, summarize type and location in the justification.
A199: 12.127 / T1 | B199: Does the agency have or utilize explosive detection canine teams, either maintained by the system or made available from other law enforcement agencies? If so, has the system implemented procedures for reporting of and response to positive reactions by the canine?
A200: 13.000 | B200: Conduct Physical Security Inspections | I200: 182
A201: 13.101 / T1 | B201: Does the agency conduct frequent inspections of key facilities, stations, terminals, trains and vehicles, or other critical assets for persons, materials, and items that do not belong? | I201: 183
... 42 more rows

Sheet Additional Information
A1: Date of Visit | C1: TSA Field Office | E1: Lead TSI Inspector
A2: ='Profile Sheet'!G5 -> 00:00:00 | C2: ='Profile Sheet'!J5 -> 0 | E2: ='Profile Sheet'!A40 -> 0
A3: Agency Name
A4: ='Profile Sheet'!G11 -> 0
A6: Additional Information
A7: General Description of the Entity:
A8: INSPECTOR SHALL PROVIDE A GENERAL NARRATIVE OVERVIEW OF THE ENTITY’S SCOPE OF OPERATIONS, FACILITIES, ETC.:
A14: Other information obtained during BASE assessment:
A20: Smart Practice Information:
A21: Did you observe anything significant or "cutting edge" in the area of corporate/facility security?
A26: 1. List the infrastructure and assets identified as critical by the agency:
A27: a.
A28: b.
A29: c.
A30: d.
A31: e.
A32: f.
A33: g.
A34: 2. Where do you, as an industry, feel vulnerable?
A35: a.
A36: b.
A37: 3. What concerns do you have?
A38: a.
A39: b.
A41: 4. In what Federal programs or security initiatives does your company participate?
A42: a.
A43: b.
A44: c.

Sheet Scoring Summary (hidden)
A1: DO NOT MODIFY OR ENTER ANY DATA ON THIS SHEET!
A2: Department of Homeland Security - Transportation Security Administration
A3: Mass Transit Agency Overview
A4: Agency Name: | C4: Lead Inspector: | E4: ='Profile Sheet'!A40 -> 0
A5: ='Profile Sheet'!G11 -> 0 | C5: Assessment Date: | E5: ='Profile Sheet'!G5 -> 00:00:00
A7: TSF # | B7: SECURITY SECTIONS | C7: Performance
A8: 1 | B8: Protection of high risk/high consequence underwater/underground assets and systems and other critical systems | C8: =Technical!$N$5 -> 0%
A9: 2 | B9: Protection of other high risk/high consequence assets that have been identified through system-wide risk assessments | C9: =Technical!$P$5 -> 0%
A10: 3 | B10: Use of visible, unpredictable deterrence | C10: =Technical!$R$5 -> 0%
A11: 4 | B11: Targeted counter-terrorism training for key front-line staff | C11: =Technical!$T$5 -> 0%
A12: 5 | B12: Emergency preparedness drills and exercises | C12: =Technical!$V$5 -> 0%
A13: 6 | B13: Public awareness and preparedness campaigns | C13: =Technical!$X$5 -> 0%
B15: Overall TSF Average Score | C15: =AVERAGE(C8:C13) -> 0%
A17: SAI # | B17: SECURITY ACTION ITEM (SAI) DESCRIPTION | C17: Performance | E17: Baseline Performance
A18: 1 | B18: Establish written Security Programs and Emergency Management Plans | C18: =Technical!$J$6 -> 0% | E18: =Technical!$AC$6 -> 0%
A19: 2 | B19: Define roles and responsibilities for security and emergency management | C19: =Technical!$J$37 -> 0% | E19: =Technical!$AC$37 -> 0%
A20: 3 | B20: Ensure that operations and maintenance supervisors, forepersons, and managers are held accountable for security issues under their control | C20: =Technical!$J$57 -> 0% | E20: =Technical!$AC$57 -> 0%
A21: 4 | B21: Coordinate Security and Emergency Management Plan(s) with local and regional agencies | C21: =Technical!$J$62 -> 0% | E21: =Technical!$AC$62 -> 0%
A22: 5 | B22: Establish and maintain a Security and Emergency Training Program | C22: =Technical!$J$75 -> 0% | E22: =Technical!$AC$75 -> 0%
A23: 6 | B23: Establish plans and protocols to respond to the National Terrorism Advisory System (NTAS) alert system | C23: =Technical!$J$109 -> 0% | E23: =Technical!$AC$109 -> 0%
A24: 7 | B24: Implement and reinforce a Public Security and Emergency Awareness program | C24: =Technical!$J$114 -> 0% | E24: =Technical!$AC$114 -> 0%
A25: 8 | B25: Establish and use a risk management process | C25: =Technical!$J$128 -> 0% | E25: =Technical!$AC$128 -> 0%
A26: 9 | B26: Establish and use an information sharing process for threat and intelligence information | C26: =Technical!$J$137 -> 0% | E26: =Technical!$AC$137 -> 0%
A27: 10 | B27: Conduct Tabletop and Functional Drills | C27: =Technical!$J$144 -> 0% | E27: =Technical!$AC$144 -> 0%
A28: *11 | B28: Developing a Comprehensive Cyber Security Strategy | C28: =Technical!$J$158 -> 0% | E28: =Technical!$AC$158 -> 0%
A29: 12 | B29: Control access to security critical facilities with ID badges for all visitors, employees and contractors | C29: =Technical!$J$167 -> 0% | E29: =Technical!$AC$167 -> 0%
A30: 13 | B30: Conduct physical security inspections | C30: =Technical!$J$195 -> 0% | E30: =Technical!$AC$195 -> 0%
A31: 14 | B31: Conduct background investigations of employees and contractors | C31: =Technical!$J$206 -> 0% | E31: =Technical!$AC$206 -> 0%
A32: 15 | B32: Control access to documents of security-critical systems and facilities | C32: =Technical!$J$213 -> 0% | E32: =Technical!$AC$213 -> 0%
A33: 16 | B33: Ensure existence of a process for handling and access to Sensitive Security Information (SSI) | C33: =Technical!$J$217 -> 0% | E33: =Technical!$AC$217 -> 0%
A34: 17 | B34: Conduct Security Program audits | C34: =Technical!$J$223 -> 0% | E34: =Technical!$AC$223 -> 0%
B36: Overall Performance Score: | C36: =AVERAGE(C18:C27,C29:C34) -> 0% | E36: =AVERAGE(E18:E27,E29:E34) -> 0%
A38: Color Key:
B39: Requirements have been met.
B40: Requirements are partially met and/or are in the process of being completed.
B41: Does not meet requirements as described in reference materials.
A42: * | B42: SAI #11 was not factored into the overall performance scores.

Sheet Charting (hidden)
B2: SAI 1 | C2: SAI 2 | D2: SAI 3 | E2: SAI 4 | F2: SAI 5 | G2: SAI 6 | H2: SAI 7 | I2: SAI 8 | J2: SAI 9 | K2: SAI 10 | L2: SAI 11 | M2: SAI 12 | N2: SAI 13 | O2: SAI 14 | P2: SAI 15 | Q2: SAI 16 | R2: SAI 17 | S2: Average
A3: Current Agency Scores | B3: ='Scoring Summary'!$C$18 -> 0% | C3: ='Scoring Summary'!$C$19 -> 0% | D3: ='Scoring Summary'!$C$20 -> 0% | E3: ='Scoring Summary'!$C$21 -> 0% | F3: ='Scoring Summary'!$C$22 -> 0% | G3: ='Scoring Summary'!$C$23 -> 0% | H3: ='Scoring Summary'!$C$24 -> 0% | I3: ='Scoring Summary'!$C$25 -> 0% | J3: ='Scoring Summary'!$C$26 -> 0% | K3: ='Scoring Summary'!$C$27 -> 0% | L3: ='Scoring Summary'!$C$28 -> 0% | M3: ='Scoring Summary'!$C$29 -> 0% | N3: ='Scoring Summary'!$C$30 -> 0% | O3: ='Scoring Summary'!$C$31 -> 0% | P3: ='Scoring Summary'!$C$32 -> 0% | Q3: ='Scoring Summary'!$C$33 -> 0% | R3: ='Scoring Summary'!$C$34 -> 0% | S3: ='Scoring Summary'!$C$36 -> 0%
A4: BASE Participant Average Scores | B4: =IF('Profile Sheet'!$D$15="Over 60K Daily Ridership",'Dropdown Menus'!R2,IF('Profile Sheet'!$D$15="Under 60K Daily Ridership",'Dropdown Menus'!R3,0)) -> 0% | C4: =IF('Profile Sheet'!$D$15="Over 60K Daily Ridership",'Dropdown Menus'!S2,IF('Profile Sheet'!$D$15="Under 60K Daily Ridership",'Dropdown Menus'!S3,0)) -> 0% | D4: =IF('Profile Sheet'!$D$15="Over 60K Daily Ridership",'Dropdown Menus'!T2,IF('Profile Sheet'!$D$15="Under 60K Daily Ridership",'Dropdown Menus'!T3,0)) -> 0% | E4: =IF('Profile Sheet'!$D$15="Over 60K Daily Ridership",'Dropdown Menus'!U2,IF('Profile Sheet'!$D$15="Under 60K Daily Ridership",'Dropdown Menus'!U3,0)) -> 0% | F4: =IF('Profile Sheet'!$D$15="Over 60K Daily Ridership",'Dropdown Menus'!V2,IF('Profile Sheet'!$D$15="Under 60K Daily Ridership",'Dropdown Menus'!V3,0)) -> 0% | G4: =IF('Profile Sheet'!$D$15="Over 60K Daily Ridership",'Dropdown Menus'!W2,IF('Profile Sheet'!$D$15="Under 60K Daily Ridership",'Dropdown Menus'!W3,0)) -> 0% | H4: =IF('Profile Sheet'!$D$15="Over 60K Daily Ridership",'Dropdown Menus'!X2,IF('Profile Sheet'!$D$15="Under 60K Daily Ridership",'Dropdown Menus'!X3,0)) -> 0% | I4: =IF('Profile Sheet'!$D$15="Over 60K Daily Ridership",'Dropdown Menus'!Y2,IF('Profile Sheet'!$D$15="Under 60K Daily Ridership",'Dropdown Menus'!Y3,0)) -> 0% | J4: =IF('Profile Sheet'!$D$15="Over 60K Daily Ridership",'Dropdown Menus'!Z2,IF('Profile Sheet'!$D$15="Under 60K Daily Ridership",'Dropdown Menus'!Z3,0)) -> 0% | K4: =IF('Profile Sheet'!$D$15="Over 60K Daily Ridership",'Dropdown Menus'!AA2,IF('Profile Sheet'!$D$15="Under 60K Daily Ridership",'Dropdown Menus'!AA3,0)) -> 0% | L4: =IF('Profile Sheet'!$D$15="Over 60K Daily Ridership",'Dropdown Menus'!AB2,IF('Profile Sheet'!$D$15="Under 60K Daily Ridership",'Dropdown Menus'!AB3,0)) -> 0% | M4: =IF('Profile Sheet'!$D$15="Over 60K Daily Ridership",'Dropdown Menus'!AC2,IF('Profile Sheet'!$D$15="Under 60K Daily Ridership",'Dropdown Menus'!AC3,0)) -> 0% | N4: =IF('Profile Sheet'!$D$15="Over 60K Daily Ridership",'Dropdown Menus'!AD2,IF('Profile Sheet'!$D$15="Under 60K Daily Ridership",'Dropdown Menus'!AD3,0)) -> 0% | O4: =IF('Profile Sheet'!$D$15="Over 60K Daily Ridership",'Dropdown Menus'!AE2,IF('Profile Sheet'!$D$15="Under 60K Daily Ridership",'Dropdown Menus'!AE3,0)) -> 0% | P4: =IF('Profile Sheet'!$D$15="Over 60K Daily Ridership",'Dropdown Menus'!AF2,IF('Profile Sheet'!$D$15="Under 60K Daily Ridership",'Dropdown Menus'!AF3,0)) -> 0% | Q4: =IF('Profile Sheet'!$D$15="Over 60K Daily Ridership",'Dropdown Menus'!AG2,IF('Profile Sheet'!$D$15="Under 60K Daily Ridership",'Dropdown Menus'!AG3,0)) -> 0% | R4: =IF('Profile Sheet'!$D$15="Over 60K Daily Ridership",'Dropdown Menus'!AH2,IF('Profile Sheet'!$D$15="Under 60K Daily Ridership",'Dropdown Menus'!AH3,0)) -> 0% | S4: =IF('Profile Sheet'!$D$15="Over 60K Daily Ridership",'Dropdown Menus'!AI2,IF('Profile Sheet'!$D$15="Under 60K Daily Ridership",'Dropdown Menus'!AI3,0)) -> 0%
A6: Difference | B6: =B3-B4 -> 0% | C6: =C3-C4 -> 0% | D6: 0% | E6: 0% | F6: 0% | G6: 0% | H6: 0% | I6: 0% | J6: 0% | K6: 0% | L6: 0% | M6: 0% | N6: 0% | O6: 0% | P6: 0% | Q6: 0% | R6: 0% | S6: 0%
B44: SAI 1 | C44: SAI 2 | D44: SAI 3 | E44: SAI 4 | F44: SAI 5 | G44: SAI 6 | H44: SAI 7 | I44: SAI 8 | J44: SAI 9 | K44: SAI 10 | L44: SAI 11 | M44: SAI 12 | N44: SAI 13 | O44: SAI 14 | P44: SAI 15 | Q44: SAI 16 | R44: SAI 17 | S44: Average
A45: Current Agency Scores | B45: ='Scoring Summary'!$C$18 -> 0% | C45: ='Scoring Summary'!$C$19 -> 0% | D45: ='Scoring Summary'!$C$20 -> 0% | E45: ='Scoring Summary'!$C$21 -> 0% | F45: ='Scoring Summary'!$C$22 -> 0% | G45: ='Scoring Summary'!$C$23 -> 0% | H45: ='Scoring Summary'!$C$24 -> 0% | I45: ='Scoring Summary'!$C$25 -> 0% | J45: ='Scoring Summary'!$C$26 -> 0% | K45: ='Scoring Summary'!$C$27 -> 0% | L45: ='Scoring Summary'!$C$28 -> 0% | M45: ='Scoring Summary'!$C$29 -> 0% | N45: ='Scoring Summary'!$C$30 -> 0% | O45: ='Scoring Summary'!$C$31 -> 0% | P45: ='Scoring Summary'!$C$32 -> 0% | Q45: ='Scoring Summary'!$C$33 -> 0% | R45: ='Scoring Summary'!$C$34 -> 0% | S45: ='Scoring Summary'!$C$36 -> 0%
A46: Previous Agency BASE Scores | B46: 71% | C46: 63% | D46: 99% | E46: 88% | F46: 83% | G46: 80% | H46: 93% | I46: 100% | J46: 36% | K46: 86% | L46: 70% | M46: 86% | N46: 89% | O46: 88% | P46: 91% | Q46: 96% | R46: 79% | S46: 82% | U46: <<<<<<<< | V46: Enter Previous BASE Score Here
A48: Difference | B48: =B45-B46 -> -71% | C48: =C45-C46 -> -63% | D48: -99% | E48: -88% | F48: -83% | G48: -80% | H48: -93% | I48: -100% | J48: -36% | K48: -86% | L48: -70% | M48: -86% | N48: -89% | O48: -88% | P48: -91% | Q48: -96% | R48: -79% | S48: -82%

Sheet Gold Standard Award (hidden)
A1: =IF(B39=116, "This Agency Received Scores Worthy of the Gold Standard Award!", "This Agency Did Not Meet the Requirements of the Gold Standard Award.") -> This Agency Did Not Meet the Requirements of the Gold Standard Award.
A18: SAI | B18: Factor
A19: 1 | B19: =IF('Scoring Summary'!C18>=0.7, 1, 0) -> 0
A20: 2 | B20: =IF('Scoring Summary'!C19>=0.7, 1, 0) -> 0
A21: 3 | B21: =IF('Scoring Summary'!C20>=0.7, 1, 0) -> 0
A22: 4 | B22: =IF('Scoring Summary'!C21>=0.7, 1, 0) -> 0
A23: 5 | B23: =IF('Scoring Summary'!C22>=0.7, 1, 0) -> 0
A24: 6 | B24: =IF('Scoring Summary'!C23>=0.7, 1, 0) -> 0
A25: 7 | B25: =IF('Scoring Summary'!C24>=0.7, 1, 0) -> 0
A26: 8 | B26: =IF('Scoring Summary'!C25>=0.7, 1, 0) -> 0
A27: 9 | B27: =IF('Scoring Summary'!C26>=0.7, 1, 0) -> 0
A28: 10 | B28: =IF('Scoring Summary'!C27>=0.7, 1, 0) -> 0
A29: 11
A30: 12 | B30: =IF('Scoring Summary'!C29>=0.7, 1, 0) -> 0
A31: 13 | B31: =IF('Scoring Summary'!C30>=0.7, 1, 0) -> 0
A32: 14 | B32: =IF('Scoring Summary'!C31>=0.7, 1, 0) -> 0
A33: 15 | B33: =IF('Scoring Summary'!C32>=0.7, 1, 0) -> 0
A34: 16 | B34: =IF('Scoring Summary'!C33>=0.7, 1, 0) -> 0
A35: 17 | B35: =IF('Scoring Summary'!C34>=0.7, 1, 0) -> 0
A37: Overall | B37: =IF('Scoring Summary'!C36>=0.9, 100, 0) -> 0
A39: Total | B39: =SUM(B19:B37) -> 0

Sheet Baseline Security Measures (hidden)
A1: Baseline Security Line Item
A3: ='Profile Sheet'!G11 -> 0
B5: Description | C5: Findings | D5: Verification
A6: Section | C6: Score | D6: Justification
B7: MANAGEMENT AND ACCOUNTABILITY
A8: 1.000 | B8: Establish Written System Security Plans (SSPs) and Emergency Response Plans (ERPs)
A9: 1.100 | B9: System Security Plan (SSP)
A10: 1.101 | B10: =Technical!D8 -> Does the transit agency have a System Security Plan (SSP)? | C10: =+IF(Checklist!D13="","",Checklist!D13) ->  | D10: =Checklist!F13 -> 0
A11: 1.103 | B11: Does a written policy statement exist that endorses and adopts the policies and procedures of the SSP that is approved and signed by top management, including the agency's chief executive? | C11: =+IF(Checklist!D15="","",Checklist!D15) ->  | D11: =Checklist!F15 -> 0
A12: 1.104 | B12: Is the SSP separate from the agency’s System Safety Program Plan (SSPP)? | C12: =+IF(Checklist!D16="","",Checklist!D16) ->  | D12: =Checklist!F16 -> 0
A13: 1.105 | B13: Do the Security and Emergency Response Plans address protection and response for critical underwater tunnels, underground stations/ tunnels and other critical systems, where applicable? | C13: =+IF(Checklist!D17="","",Checklist!D17) ->  | D13: =Checklist!F17 -> 0
A14: 1.107 | B14: Does the SSP contain or reference other documents establishing plans, procedures, or protocols for responding to security events with external agencies (such as law enforcement, local EMA, fire departments, etc.)? | C14: =+IF(Checklist!D19="","",Checklist!D19) ->  | D14: =Checklist!F19 -> 0
A15: 1.200 | B15: Emergency Response Plan (ERP)
A16: 1.201 | B16: Does the agency have an Emergency Response Plan (ERP)? | C16: =+IF(Checklist!D30="","",Checklist!D30) ->  | D16: =Checklist!F30 -> 0
A17: 1.202 | B17: Does a written policy statement exist that endorses and adopts the policies and procedures of the ERP that is approved and signed by top management, including the agency's chief executive? | C17: =+IF(Checklist!D31="","",Checklist!D31) ->  | D17: =Checklist!F31 -> 0
A18: 1.203 | B18: Does the ERP require an annual review to determine if it needs to be updated? | C18: =+IF(Checklist!D32="","",Checklist!D32) ->  | D18: =Checklist!F32 -> 0
A19: 1.205 | B19: Does the ERP include a process or review provision to ensure coordination with the agency's SSPP and SSP? | C19: =+IF(Checklist!D34="","",Checklist!D34) ->  | D19: =Checklist!F34 -> 0
A20: 1.207 | B20: Does the ERP contain or reference other documents establishing plans, procedures, or protocols for responding to emergency events with external agencies (such as law enforcement, local EMA, fire departments, etc.)? | C20: =+IF(Checklist!D36="","",Checklist!D36) ->  | D20: =Checklist!F36 -> 0
A21: 1.208 | B21: Does the ERP contain or reference other documents that establish procedures for the management of emergency events, including those to be employed by the operations control center (or dispatch center)? | C21: =+IF(Checklist!D37="","",Checklist!D37) ->  | D21: =Checklist!F37 -> 0
A22: 1.212 | B22: Does the agency have a back-up operations control center capability? | C22: =+IF(Checklist!D41="","",Checklist!D41) ->  | D22: =Checklist!F41 -> 0
A23: 2.000 | B23: Define Roles and Responsibilities for Security and Emergency Management
A24: 2.100 | B24: System Security Plan (SSP)
A25: 2.103 | B25: Are roles and responsibilities for security and/or law enforcement personnel assigned by title and/or position established in the SSP or other documents? | C25: =+IF(Checklist!D46="","",Checklist!D46) ->  | D25: =Checklist!F46 -> 0
A26: 2.104 | B26: Are security-related roles and responsibilities for non-security and/or law enforcement personnel (i.e., operators, conductors, maintenance workers and station attendants) established in the SSP or other documents? | C26: =+IF(Checklist!D47="","",Checklist!D47) ->  | D26: =Checklist!F47 -> 0
A27: 2.107 | B27: Are informational briefings with appropriate personnel held whenever security protocols, threat levels, or protective measures are updated or as security conditions warrant? | C27: =+IF(Checklist!D50="","",Checklist!D50) ->  | D27: =Checklist!F50 -> 0
A28: 2.108 | B28: Have appropriate reference guides or other written instructions or procedures been distributed to transit employees to implement the requirements of the SSP? | C28: =+IF(Checklist!D51="","",Checklist!D51) ->  | D28: =Checklist!F51 -> 0
A29: 2.109 | B29: Has the agency appointed a Primary and Alternate Security Coordinator to serve as its primary and immediate 24-hr contact for intelligence and security-related contact with TSA and are the names of those Coordinators on file with TSA OSPIE office correct? | C29: =+IF(Checklist!D52="","",Checklist!D52) ->  | D29: =Checklist!F52 -> 0
A30: 2.200 | B30: Emergency Response Plan (ERP)
A31: 2.202 | B31: Are emergency response roles and responsibilities for all departments identified in the ERP or other supporting documents? | C31: =+IF(Checklist!D56="","",Checklist!D56) ->  | D31: =Checklist!F56 -> 0
A32: 2.203 | B32: Are roles and responsibilities for front-line personnel (i.e. system law enforcement, system security officials, train or vehicle operators, conductors, station attendants, maintenance workers) described in the system's Emergency Response Plan (ERP)? | C32: =+IF(Checklist!D57="","",Checklist!D57) ->  | D32: =Checklist!F57 -> 0
A33: 2.204 | B33: Has the ERP been distributed to appropriate departments in the organization? | C33: =+IF(Checklist!D58="","",Checklist!D58) ->  | D33: =Checklist!F58 -> 0
A34: 2.205 | B34: Have appropriate reference guides or other written instructions or procedures been distributed to transit employees to implement the requirements of the ERP? | C34: =+IF(Checklist!D59="","",Checklist!D59) ->  | D34: =Checklist!F59 -> 0
A35: 2.207 | B35: Are informational briefings with appropriate personnel held whenever emergency response protocols are substantially changed or updated? | C35: =+IF(Checklist!D61="","",Checklist!D61) ->  | D35: =Checklist!F61 -> 0
A36: 3 | B36: Ensure that operations and maintenance supervisors, forepersons and managers are held accountable for security issues under their control
A37: 3.101 | B37: Do managers and supervisors routinely provide information to front-line personnel regarding security and emergency response issues? | C37: =+IF(Checklist!D63="","",Checklist!D63) ->  | D37: =Checklist!F64 -> 0
A38: 3.103 | B38: Does the agency have a program for confirming that personnel have a working knowledge of security protocols? If so, summarize program in the justification. | C38: =+IF(Checklist!D65="","",Checklist!D65) ->  | D38: =Checklist!F64 -> 0
A39: 3.104 | B39: Are managers and/or supervisors required to debrief front-line employees regarding their involvement in or management of any security or emergency incidents? | C39: =+IF(Checklist!D66="","",Checklist!D66) ->  | D39: =Checklist!F65 -> 0
A40: 4.000 | B40: Coordinate Security and Emergency Management Plan(s) with local and regional agencies
A41: 4.102 | B41: Does the agency participate in a regional Emergency Management Working Group or similar regional coordinating body for emergency preparedness and response? | C41: =+IF(Checklist!D69="","",Checklist!D69) ->  | D41: =Checklist!F69 -> 0
A42: 4.103 | B42: Have regional incident management protocols been shared with the agency and incorporated into the agency's ERP/SSP/SEPP? | C42: =+IF(Checklist!D70="","",Checklist!D70) ->  | D42: =Checklist!F70 -> 0
A43: 4.105 | B43: Does the agency have a designated point-of-contact or liaison with the local/regional Emergency Operations Center (EOC)? | C43: =+IF(Checklist!D72="","",Checklist!D72) ->  | D43: =Checklist!F72 -> 0
A44: 4.108 | B44: Has the agency developed internal incident management protocols that comply with the National Response Plan and the National Incident Management System (NIMS)? | C44: =+IF(Checklist!D75="","",Checklist!D75) ->  | D44: =Checklist!F75 -> 0
A45: 4.110 | B45: Has the transit system tested its communications systems for interoperability with appropriate emergency response agencies? | C45: =+IF(Checklist!D77="","",Checklist!D77) ->  | D45: =Checklist!F77 -> 0
A46: 4.111 | B46: If the agency's communications systems are NOT inter-operable with appropriate emergency response agencies, have alternate communication protocols been established? Describe the alternate communication protocols in the justification. | C46: =+IF(Checklist!D78="","",Checklist!D78) ->  | D46: =Checklist!F78 -> 0
B47: SECURITY AND EMERGENCY RESPONSE TRAINING
A48: 5.000 | B48: Establish and Maintain a Security and Emergency Training Program
A49: 5.101 | B49: Is initial training provided to all new agency employees regarding security orientation/awareness? | C49: =+IF(Checklist!D81="","",Checklist!D81) ->  | D49: =Checklist!F81 -> 0
A50: 5.103 | B50: Is annual refresher training provided regarding security orientation/awareness to managers and supervisors? | C50: =+IF(Checklist!D83="","",Checklist!D83) ->  | D50: =Checklist!F83 -> 0
A51: 5.104 | B51: Is annual refresher training provided regarding security orientation/awareness to front-line employees? | C51: =+IF(Checklist!D84="","",Checklist!D84) ->  | D51: =Checklist!F84 -> 0
A52: 5.106 | B52: Is initial training provided to all new agency employees regarding emergency response? | C52: =+IF(Checklist!D86="","",Checklist!D86) ->  | D52: =Checklist!F86 -> 0
A53: 5.108 | B53: Is annual refresher training on emergency response provided to Managers and Supervisors? | C53: =+IF(Checklist!D88="","",Checklist!D88) ->  | D53: =Checklist!F88 -> 0
A54: 5.109 | B54: Is annual refresher training provided regarding emergency response to Front-line Employees? | C54: =+IF(Checklist!D89="","",Checklist!D89) ->  | D54: =Checklist!F89 -> 0
A55: 5.110 | B55: Have agency employees received general training on Incident Command System (ICS) procedures in accordance with National Incident Management System at least annually? | C55: =+IF(Checklist!D90="","",Checklist!D90) ->  | D55: =Checklist!F90 -> 0
A56: 5.112 | B56: Has ICS and NIMS training appropriate to the position been provided to managers and supervisors at least annually? | C56: =+IF(Checklist!D92="","",Checklist!D92) ->  | D56: =Checklist!F92 -> 0
A57: 5.114 | B57: Has the agency developed a program and provided annual training on its own incident response protocols? | C57: =+IF(Checklist!D94="","",Checklist!D94) ->  | D57: =Checklist!F94 -> 0
A58: 5.116 | B58: Has training on the agency's incident response protocols appropriate to the position been provided to managers and supervisors at least annually? | C58: =+IF(Checklist!D96="","",Checklist!D96) ->  | D58: =Checklist!F96 -> 0
A59: 5.117 | B59: Has training on the agency's incident response protocols appropriate to the position been provided to front-line employees at least annually? | C59: =+IF(Checklist!D97="","",Checklist!D97) ->  | D59: =Checklist!F97 -> 0
A60: 5.124 | B60: Does the agency have an established program to monitor employee training and to schedule employees for training? | C60: =+IF(Checklist!D104="","",Checklist!D104) ->  | D60: =Checklist!F104 -> 0
A61: 5.128 | B61: Are all appropriate personnel notified via briefings, email, voicemail, or signage of changes in threat condition, protective measures or the employee watch programs? | C61: =+IF(Checklist!D108="","",Checklist!D108) ->  | D61: =Checklist!F108 -> 0
A62: 5.129 | B62: Do the agency's security awareness and emergency response training programs cover response and recovery operations in critical facilities and infrastructure? If so, summarize relevant provisions of program in the justification. | C62: =+IF(Checklist!D109="","",Checklist!D109) ->  | D62: =Checklist!F109 -> 0
A63: 5.130 | B63: Has the agency provided training to regional first responders (law enforcement agencies, firefighters, and emergency medical response teams) to enable them to operate in critical facilities and infrastructure? | C63: =+IF(Checklist!D110="","",Checklist!D110) ->  | D63: =Checklist!F110 -> 0
A64: 5.132 | B64: Has the agency implemented a program to train or orient first responders (law enforcement, firefighters, emergency medical teams) and other potential supporting assets (e.g., TSA regional personnel for VIPR exercises) on their system vehicle familiarization? | C64: =+IF(Checklist!D112="","",Checklist!D112) ->  | D64: =Checklist!F112 -> 0
B65: NATIONAL TERRORISM ADVISORY SYSTEM (NTAS)
A66: 6.000 | B66: Establish plans and protocols to respond to the DHS National Terrorism Advisory System (NTAS)
A67: 6.101 | B67: Does the SSP contain or reference other documents identifying incremental actions (imminent or elevated) to be implemented for a NTAS threat? | C67: =+IF(Checklist!D115="","",Checklist!D115) ->  | D67: =Checklist!F115 -> 0
A68: 6.102 | B68: Does the agency have actionable operational response protocols for the specific threat scenarios from NTAS? | C68: =+IF(Checklist!D116="","",Checklist!D116) ->  | D68: =Checklist!F116 -> 0
B69: PUBLIC AWARENESS
A70: 7.000 | B70: Implement and reinforce a Public Security and Emergency Awareness program:
A71: 7.101 | B71: Has the agency developed and implemented a public security and emergency awareness program? | C71: =+IF(Checklist!D120="","",Checklist!D120) ->  | D71: =Checklist!F120 -> 0
A72: 7.102 | B72: Does the agency provide active public outreach for security awareness and emergency preparedness (e.g., Transit Watch, “If You See Something, Say Something”, message boards, brochures, channel cards, posters, fliers)? | C72: =+IF(Checklist!D121="","",Checklist!D121) ->  | D72: =Checklist!F121 -> 0
A73: 7.104 | B73: Are general security awareness and emergency preparedness messages included in public announcement messages at stations and on board vehicles? | C73: =+IF(Checklist!D123="","",Checklist!D123) ->  | D73: =Checklist!F123 -> 0
A74: 7.105 | B74: Are passengers urged to report unattended property, suspicious behavior, and security concerns to uniformed crew members, law enforcement or security personnel, and/or a contact telephone number? If so, summarize the type of materials used and content in the justification. | C74: =+IF(Checklist!D124="","",Checklist!D124) ->  | D74: =Checklist!F124 -> 0
A75: 7.106 | B75: Does the agency have an appropriate mechanism in place for passengers to communicate an (e.g., 1-800 number, smart phone applications, social media, etc.) that can be called or used to report security concerns? If so, is this information indicated in public awareness materials and messages? | C75: =+IF(Checklist!D125="","",Checklist!D125) ->  | D75: =Checklist!F126 -> 0
A76: 7.111 | B76: Do public awareness materials and/or messages inform passengers on the means to evacuate safely from transit vehicles and/or from underwater/underground facilities? | C76: =+IF(Checklist!D130="","",Checklist!D130) ->  | D76: =Checklist!F131 -> 0
B77: ESTABLISH A RISK ASSESSMENT AND INFORMATION SHARING PROCESS
A78: 8.000 | B78: Establish and use a Risk Management Process to assess and manage threats, vulnerabilities and consequences
A79: 8.101 | B79: Does the agency have a risk assessment process approved by its management, for managing threats and vulnerabilities? If so, summarize the process in the justification. | C79: =+IF(Checklist!D134="","",Checklist!D134) ->  | D79: =Checklist!F134 -> 0
A80: 8.102 | B80: Has the agency identified facilities and systems it considers to be its critical assets? | C80: =+IF(Checklist!D135="","",Checklist!D135) ->  | D80: =Checklist!F135 -> 0
A81: 8.103 | B81: Has the agency had an internal or external vulnerability assessment on its critical assets within the past 3 years? Specify the dates of the most recent assessments and the entity(ies) that conducted the assessment(s). | C81: =+IF(Checklist!D136="","",Checklist!D136) ->  | D81: =Checklist!F136 -> 0
A82: 8.104 | B82: Has the agency had an internal or external Risk Assessment, analyzing threat, vulnerability, & consequence, for critical assets and infrastructure, and systems within the past 3 years? Have management and staff responsible for the risk assessment process been properly trained to manage the process? | C82: =+IF(Checklist!D137="","",Checklist!D137) ->  | D82: =Checklist!F137 -> 0
A83: 8.105 | B83: Has the system implemented procedures to limit and monitor authorized access to underground and underwater tunnels? If so, summarize procedures in the justification. | C83: =+IF(Checklist!D138="","",Checklist!D138) ->  | D83: =Checklist!F138 -> 0
A84: 8.107 | B84: Upon request, has TSA been provided access to the agency's vulnerability assessments, Security Plan and related documents? | C84: =+IF(Checklist!D140="","",Checklist!D140) ->  | D84: =Checklist!F140 -> 0
A85: 9.000 | B85: Establish and use an information sharing process for threat and intelligence information
A86: 9.101 | B86: Does the agency have a formalized process and procedures for reporting and exchange of threat and intelligence information with Federal, State, and/or local law enforcement agencies? | C86: =+IF(Checklist!D143="","",Checklist!D143) ->  | D86: =Checklist!F143 -> 0
A87: 9.102 | B87: Does the system report threat and intelligence information directly to FBI Joint Terrorism Task Force (JTTF) or other regional anti-terrorism task force? | C87: =+IF(Checklist!D144="","",Checklist!D144) ->  | D87: =Checklist!F144 -> 0
A88: 9.103 | B88: Does the system have a protocol to report threats or significant security concerns to appropriate law enforcement authorities, and TSA's Transportation Security Operations Center (TSOC)? | C88: =+IF(Checklist!D145="","",Checklist!D145) ->  | D88: =Checklist!F145 -> 0
B89: DRILLS AND EXERCISES
A90: 10.000 | B90: Conduct Tabletop and Functional Drills
A91: 10.101 | B91: Does the agency’s System Safety Program Plan (SSPP) contain or reference a document describing the process used by the agency to develop an approved, coordinated schedule for all emergency management program activities, including local/regional emergency planning and participation in exercises and drills? | C91: =+IF(Checklist!D150="","",Checklist!D150) ->  | D91: =Checklist!F150 -> 0
A92: 10.102 | B92: Does the agency’s SSPP or SSP describe or reference how the agency performs its emergency planning responsibilities and requirements regarding emergency drills and exercises? | C92: =+IF(Checklist!D151="","",Checklist!D151) ->  | D92: =Checklist!F151 -> 0
A93: 10.103 | B93: Does the agency evaluate its emergency preparedness by using annual field exercises, tabletop exercises, and/or drills? If so, please summarize the exercise events held in the past year. | C93: =+IF(Checklist!D152="","",Checklist!D152) ->  | D93: =Checklist!F152 -> 0
A94: 10.104 | B94: Does the agency's SSPP or a related document include a requirement for annual field exercises, tabletops and drills? | C94: =+IF(Checklist!D153="","",Checklist!D153) ->  | D94: =Checklist!F153 -> 0
A95: 10.105 | B95: Does the agency’s SSPP or SSP describe or reference how the agency documents the results of its emergency preparedness evaluations (i.e., briefings, after action reports and implementation of findings)? | C95: =+IF(Checklist!D154="","",Checklist!D154) ->  | D95: =Checklist!F154 -> 0
A96: 10.107 | B96: Does the agency participate as an active player in full-scale, regional exercises held at least annually? | C96: =+IF(Checklist!D156="","",Checklist!D156) ->  | D96: =Checklist!F156 -> 0
A97: 10.112 | B97: Does the system conduct drills and exercises of its security and emergency response plans to test capabilities of i) employees and ii) first responders to operate effectively in underwater/underground infrastructure and other critical systems? | C97: =+IF(Checklist!D161="","",Checklist!D161) ->  | D97: =Checklist!F161 -> 0
A98: 10.113 | B98: Does the transit system integrate local and regional first responders (law enforcement, firefighters, emergency medical teams) in drills, tabletop exercises, and/or field exercises? If so, summarize each joint event and state when it took place. | C98: =+IF(Checklist!D162="","",Checklist!D162) ->  | D98: =Checklist!F162 -> 0
A99: 11.000 | B99: Developing a Comprehensive Cyber Security Strategy
A100: 11.101 | B100: Has the agency conducted a risk assessment to identify operational control and communication/business enterprise IT assets and potential vulnerabilities? | C100: =+IF(Checklist!D164="","",Checklist!D164) ->  | D100: =Checklist!F164 -> 0
A101: 11.106 | B101: Has the agency established a cyber-incident response and reporting protocol? | C101: =+IF(Checklist!D169="","",Checklist!D169) ->  | D101: =Checklist!F169 -> 0
B102: FACILITY SECURITY AND ACCESS CONTROLS
A103: 12.000 | B103: Control Access to Security Critical Facilities with ID badges for all visitors, employees and contractors
A104: 12.101 | B104: Have assets and facilities requiring restricted access been identified? | C104: =+IF(Checklist!D173="","",Checklist!D173) ->  | D104: =Checklist!F173 -> 0
A105: 12.102 | B105: Are ID badges or other measures employed to restrict access to facilities not open to the public? | C105: =+IF(Checklist!D174="","",Checklist!D174) ->  | D105: =Checklist!F174 -> 0
A106: 12.103 | B106: Has the agency developed and implemented procedures to monitor, update and document access control (e.g. card key, ID badges, keys, safe combinations, etc.)? | C106: =+IF(Checklist!D175="","",Checklist!D175) ->  | D106: =Checklist!F175 -> 0
A107: 12.104 | B107: Does the agency have procedures to issue ID badges for visitors and contractors? | C107: =+IF(Checklist!D176="","",Checklist!D176) ->  | D107: =Checklist!F176 -> 0
A108: 12.111 | B108: Has the system implemented protective measures to secure high risk/high consequence assets and systems identified in risk assessments? Examples of protective measures include but are not limited to CCTV, intrusion detection systems, smart camera technology, fencing, enhanced lighting, access control, LE patrols, K-9s, protection of ventilation systems. If protective measures for this infrastructure are employed, summarize type and location in the justification. | C108: =+IF(Checklist!D183="","",Checklist!D183) ->  | D108: =Checklist!F183 -> 0
A109: 12.121 | B109: Are gates and locks also used to close down system facilities after operating hours? | C109: =+IF(Checklist!D193="","",Checklist!D193) ->  | D109: =Checklist!F193 -> 0
A110: 12.124 | B110: Are Uninterruptible Power Supply (UPS) or redundant power sources provided for safety and security of critical equipment, such as but not limited to: exit and platform lighting; parking lot lighting; ancillary space and shop lighting; intrusion detection (alarmed rooms and spaces, fare collection equipment, etc.); fire detection, alarm and suppression systems; public address (shop and public areas); call-for-aid telephones; CCTV; emergency trip stations; vital train control functions; etc.? | C110: =+IF(Checklist!D196="","",Checklist!D196) ->  | D110: =Checklist!F196 -> 0
A111: 12.126 | B111: Does the agency employ specific protective measures for all critical infrastructure (e.g., tunnels, bridges, stations, control centers, etc), identified through the risk assessment particularly at access points and ventilation infrastructure in place and maintained in optimal condition? Examples of protective measures include, but are not limited to, CCTV, intrusion detection systems, smart camera technology, fencing, lighting, access control, law enforcement patrols, canine patrols, physical protection for ventilation systems. If protective measures for this infrastructure are employed, summarize type and location in the justification. | C111: =+IF(Checklist!D198="","",Checklist!D198) ->  | D111: =Checklist!F198 -> 0
A112: 13.000 | B112: Conduct Physical Security Inspections
A113: 13.101 | B113: Does the system conduct frequent inspections of key facilities, stations, terminals, trains and vehicles, or other key assets for persons, materials, and items that do not belong? | C113: =+IF(Checklist!D201="","",Checklist!D201) ->  | D113: =Checklist!F201 -> 0
A114: 13.102 | B114: Has the agency established procedures for inspecting/sweeping vehicles and stations to identify and manage suspicious items, based on HOT characteristics (hidden, obviously suspicious, not typical) or equivalent system? | C114: =+IF(Checklist!D202="","",Checklist!D202) ->  | D114: =Checklist!F202 -> 0
A115: 13.106 | B115: Does the agency conduct frequent inspections of access points, ventilation systems, and the interior of underground/underwater assets and systems for indications of suspicious activity? | C115: =+IF(Checklist!D206="","",Checklist!D206) ->  | D115: =Checklist!F206 -> 0
B116: BACKGROUND INVESTIGATIONS
A117: 14.000 | B117: Conduct Background Investigations of Employees and Contractors
A118: 14.101 | B118: Does the agency conduct background investigations (i.e., criminal history and motor vehicle records) on all new front-line operations and maintenance employees, and employees with access to sensitive security information, facilities and systems? | C118: =+IF(Checklist!D212="","",Checklist!D212) ->  | D118: =Checklist!F212 -> 0
A119: 14.102 | B119: To the extent allowed by agency policy or law, does the agency conduct background investigations on contractors, including vendors, with access to critical facilities, sensitive security systems, and sensitive security information? | C119: =+IF(Checklist!D213="","",Checklist!D213) ->  | D119: =Checklist!F213 -> 0
A120: 14.104 | B120: Is the background investigation process documented? | C120: =+IF(Checklist!D215="","",Checklist!D215) ->  | D120: =Checklist!F215 -> 0
B121: DOCUMENT CONTROL
A122: 15.000 | B122: Control Access to documents of security critical systems and facilities
A123: 15.101 | B123: Does the agency keep documentation of its security critical systems, such as tunnels, bridges, HVAC systems and intrusion alarm detection systems (i.e. plans, schematics, etc.) protected from unauthorized access? | C123: =+IF(Checklist!D219="","",Checklist!D219) ->  | D123: =Checklist!F219 -> 0
A124: 15.102 | B124: Has the agency designated a department/person responsible for administering the access control policy with respect to agency documents? | C124: =+IF(Checklist!D220="","",Checklist!D220) ->  | D124: =Checklist!F220 -> 0
A125: 16.000 | B125: Process for handling and access to Sensitive Security Information (SSI)
A126: 16.101 | B126: Does the agency have a documented policy for identifying and controlling the distribution of and access to documents it considers to be Sensitive Security Information (SSI) pursuant to 49 CFR Part 15 or 1520? | C126: =+IF(Checklist!D223="","",Checklist!D223) ->  | D126: =Checklist!F223 -> 0
A127: 16.102 | B127: Does the agency have a documented policy for proper handling, control, and storage of documents labeled as or otherwise determined to be Sensitive Security Information (SSI) pursuant to 49 CFR Part 15 or 1520? | C127: =+IF(Checklist!D224="","",Checklist!D224) ->  | D127: =Checklist!F224 -> 0
B128: SECURITY PROGRAM AUDITS
A129: 17.000 | B129: Audit Program
A130: 17.102 | B130: Does the SSP contain a description of the process used by the agency to audit its implementation of the SSP over the course of the agencies published schedule? | C130: =+IF(Checklist!D230="","",Checklist!D230) ->  | D130: =Checklist!F230 -> 0
A131: 17.103 | B131: Has the agency established checklists and procedures to govern the conduct of its internal security audit process? | C131: =+IF(Checklist!D231="","",Checklist!D231) ->  | D131: =Checklist!F231 -> 0
A132: 17.104 | B132: Is the agency complying with its internal security audit schedule? | C132: =+IF(Checklist!D232="","",Checklist!D232) ->  | D132: =Checklist!F232 -> 0
A133: 17.105 | B133: Is each internal security audit documented in a written report, which includes evaluation of the adequacy and effectiveness of the SSP element and applicable implementing procedures audited, needed corrected actions, needed recommendations, an implementation schedule for corrective actions and status reporting? | C133: =+IF(Checklist!D233="","",Checklist!D233) ->  | D133: =Checklist!F233 -> 0
B135: Total Baseline Security Measures Score | C135: =SUM(C10:C133) -> 0
B136: Baseline Security Measures Score Percentage | C136: =(C135/COUNT(C10:C133))/4 -> 

Sheet SSO (hidden)
A1: Baseline Assessment & Security Enhancement Review Scoring SSO
A2: Line Item | B2: Line Element Description | C2: Score | D2: Justification
A3: =Checklist!A27 -> 1.115 | B3: =Checklist!B27 -> Does the SSP outline a process for securing SSO agency review and approval of updates to the SSP? | C3: =Checklist!D27 -> 0 | D3: =Checklist!F27 -> 
A4: =Checklist!A28 -> 1.116 | B4: =Checklist!B28 -> Has the transit agency submitted and received documentation from the SSO confirming its review and approval of the SSP currently in effect? | C4: =Checklist!D28 -> 0 | D4: =Checklist!F28 -> 
A5: =Checklist!A35 -> 1.206 | B5: =Checklist!B35 -> Has the transit agency received documentation from the SSO confirming its review and approval of the ERP currently in effect? | C5: =Checklist!D35 -> 0 | D5: =Checklist!F35 -> 
A6: =Checklist!A147 -> 9.105 | B6: =Checklist!B147 -> Does the agency report their NTA security data to FTA as required by 49 CFR 659? | C6: =Checklist!D147 -> 0 | D6: =Checklist!F147 -> 
A7: =Checklist!A236 -> 17.108 | B7: =Checklist!B236 -> Has the agency made its internal security audit schedule available to the SSO agency? | C7: =Checklist!D236 -> 0 | D7: =Checklist!F236 -> 
A8: =Checklist!A237 -> 17.109 | B8: =Checklist!B237 -> Has the agency made checklists and procedures used in its internal security audits available to the SSO agency? | C8: =Checklist!D237 -> 0 | D8: =Checklist!F237 -> 
A9: =Checklist!A238 -> 17.110 | B9: =Checklist!B238 -> Has the agency notified the SSO agency 30 days prior to the conduct of an internal security audit? | C9: =Checklist!D238 -> 0 | D9: =Checklist!F238 -> 
A10: =Checklist!A239 -> 17.111 | B10: =Checklist!B239 -> Has a report documenting internal security audit process and the status of findings and corrective actions been made available to the SSO agency within the previous 12 months? | C10: =Checklist!D239 -> 0 | D10: =Checklist!F239 -> 
A11: =Checklist!A240 -> 17.112 | B11: =Checklist!B240 -> Has the agency's chief executive certified to the SSO agency that the agency is in compliance with its SSP? | C11: =Checklist!D240 -> 0 | D11: =Checklist!F240 -> 
A12: =Checklist!A241 -> 17.113 | B12: =Checklist!B241 -> Was that certification included with the most recent annual report submitted to the SSO agency? | C12: =Checklist!D241 -> 0 | D12: =Checklist!F241 -> 
B14: Total SSO Score | C14: =SUM(C3:C12) -> 0
B15: SSO Score Percentage | C15: =C14/COUNT(C3:C12) -> 0.00%

Sheet Technical (hidden)
A1: BASE Technical Scoring Sheet | E1: This sheet is for data analysis only.
A3: Top 17 Scoring Detail | L3: Transit Security Fundamentals Scoring Detail | Z3: Baseline Security Scoring Detail
A4: Category | D4: Questions | E4: Score | F4: Weight | G4: N/A | H4: Points | I4: Possible | J4: Grade | L4: Line | M4: Element 1 | O4: Element 2 | Q4: Element 3 | S4: Element 4 | U4: Element 5 | W4: Element 6 | Z4: Line | AA4: Element 1 | AC4: Grade
D5: MANAGEMENT AND ACCOUNTABILITY | L5: Grade: | N5: =M7/N7 -> 0% | P5: =O7/P7 -> 0% | R5: =Q7/R7 -> 0% | T5: =S7/T7 -> 0% | V5: =U7/V7 -> 0% | X5: =W7/X7 -> 0% | Z5: Grade: | AB5: =AA7/AB7 -> 0%
A6: 1.000 | D6: Establish Written System Security Plans (SSPs) and Emergency Response Plans (ERPs) | H6: =H7+H24 -> 0.0000000 | I6: =I7+I24 -> 0.0585640 | J6: =H6/I6 -> 0% | M6: Points | N6: Possible | O6: Points | P6: Possible | Q6: Points | R6: Possible | S6: Points | T6: Possible | U6: Points | V6: Possible | W6: Points | X6: Possible | AA6: =AA7+AA24 -> 0.000000 | AB6: =AB7+AB24 -> 0.026592 | AC6: =AA6/AB6 -> 0%
A7: 1.100 | D7: System Security Plan (SSP) | H7: =SUM(H8:H23) -> 0.0000000 | I7: =SUM(I8:I23) -> 0.0284720 | J7: =H7/I7 -> 0% | L7: Totals: | M7: =SUM(M8:M237) -> 0 | N7: 0.03954963625 | O7: 0 | P7: 0.123912 | Q7: 0 | R7: 0.003738980314 | S7: 0 | T7: 0.028097355 | U7: 0 | V7: 0.0315 | W7: 0 | X7: 0.02622518265 | Z7: Totals: | AA7: =SUM(AA8:AA23) -> 0.000000 | AB7: =SUM(AB8:AB23) -> 0.008928 | AC7: =AA7/AB7 -> 0%
A8: 1.101 | B8: B | D8: Does the transit agency have a System Security Plan (SSP)? | E8: =+IF(Checklist!D13="",0,Checklist!D13) -> 0 | F8: =Weights!E8 -> 0.000472 | G8: =IF(Checklist!C13="X", 0, 1) -> 1 | H8: =E8*F8*G8 -> 0 | I8: =F8*G8*4 -> 0.001888 | J8: =H8/I8 -> 0% | L8: 1.101 | M8: =+IF(C8="T1",H8," ") ->  | N8: =+IF(C8="T1",I8," ") ->  | O8: =+IF(C8="T2",H8," ") ->  | P8: =+IF(C8="T2",I8," ") ->  | Q8: =+IF(C8="T3",H8," ") ->  | R8: =+IF(C8="T3",I8," ") ->  | S8: =+IF(C8="T4",H8," ") ->  | T8: =+IF(C8="T4",I8," ") ->  | U8: =+IF(C8="T5",H8," ") ->  | V8: =+IF(C8="T5",I8," ") ->  | W8: =+IF(C8="T6",H8," ") ->  | X8: =+IF(C8="T6",I8," ") ->  | Z8: =A8 -> 1.101 | AA8: =IF(B8="B",H8," ") -> 0.000000 | AB8: =IF(B8="B",I8," ") -> 0.001888 | AC8: =IF(AA8="NOT SCORED","NOT SCORED",IF(B8="B",AA8/AB8," ")) -> 0%
A9: 1.102 | D9: Does the SSP identify the goals and objectives for the security program? | E9: =+IF(Checklist!D14="",0,Checklist!D14) -> 0 | F9: =Weights!E9 -> 0.000465 | G9: =IF(Checklist!C14="X", 0, 1) -> 1 | H9: 0 | I9: =F9*G9*4 -> 0.001860 | J9: =H9/I9 -> 0% | L9: 1.102 | S9: =+IF(C9="T4",H9," ") ->  | T9: =+IF(C9="T4",I9," ") ->  | U9: =+IF(C9="T5",H9," ") ->  | V9: =+IF(C9="T5",I9," ") ->  | W9: =+IF(C9="T6",H9," ") ->  | X9: =+IF(C9="T6",I9," ") ->  | Z9: =A9 -> 1.102 | AA9: =IF(B9="B",H9," ") ->  | AB9: =IF(B9="B",I9," ") ->  | AC9: =IF(AA9="NOT SCORED","NOT SCORED",IF(B9="B",AA9/AB9," ")) -> 
A10: 1.103 | B10: B | D10: Does a written policy statement exist that endorses and adopts the policies and procedures of the SSP that is approved and signed by top management, including the agency's chief executive? | E10: =+IF(Checklist!D15="",0,Checklist!D15) -> 0 | F10: =Weights!E10 -> 0.000466 | G10: =IF(Checklist!C15="X", 0, 1) -> 1 | H10: 0 | I10: 0.001864 | J10: 0% | L10: 1.103 | Z10: =A10 -> 1.103 | AA10: 0.000000 | AB10: =IF(B10="B",I10," ") -> 0.001864 | AC10: 0%
A11: 1.104 | B11: B | D11: Is the SSP separate from the agency’s System Safety Program Plan (SSPP)? | E11: =+IF(Checklist!D16="",0,Checklist!D16) -> 0 | F11: =Weights!E11 -> 0.000385 | G11: =IF(Checklist!C16="X", 0, 1) -> 1 | H11: 0 | I11: 0.001540 | J11: 0% | L11: 1.104 | Q11: =+IF(C11="T3",H11," ") ->  | Z11: 1.104 | AA11: 0.000000 | AB11: 0.001540 | AC11: 0%
A12: 1.105 | B12: B | C12: T1 | D12: Do the Security and Emergency Response Plans address protection and response for critical underwater tunnels, underground stations/ tunnels and other critical systems, where applicable? | E12: =+IF(Checklist!D17="",0,Checklist!D17) -> 0 | F12: =Weights!E12 -> 0.000459 | G12: =IF(Checklist!C17="X", 0, 1) -> 1 | H12: 0 | I12: 0.001836 | J12: 0% | L12: 1.105 | M12: =+IF(C12="T1",H12," ") -> 0 | N12: =+IF(C12="T1",I12," ") -> 0.001836 | O12: =+IF(C12="T2",H12," ") ->  | P12: =+IF(C12="T2",I12," ") ->  | Q12: =+IF(C12="T3",H12," ") ->  | R12: =+IF(C12="T3",I12," ") ->  | Z12: 1.105 | AA12: 0.000000 | AB12: 0.001836 | AC12: 0%
A13: 1.106 | D13: Does the SSP contain or reference other documents establishing procedures for the management of security incidents by the operations control center (or dispatch center)? | E13: =+IF(Checklist!D18="",0,Checklist!D18) -> 0 | F13: =Weights!E13 -> 0.000445 | G13: =IF(Checklist!C18="X", 0, 1) -> 1 | H13: 0 | I13: 0.001780 | J13: 0% | L13: 1.106 | M13: =+IF(C13="T1",H13," ") ->  | N13: =+IF(C13="T1",I13," ") ->  | O13: =+IF(C13="T2",H13," ") ->  | P13: =+IF(C13="T2",I13," ") ->  | Q13: =+IF(C13="T3",H13," ") ->  | R13: =+IF(C13="T3",I13," ") ->  | Z13: 1.106
A14: 1.107 | B14: B | D14: Does the SSP contain or reference other documents establishing plans, procedures, or protocols for responding to security events with external agencies (such as law enforcement, local EMA, fire departments, etc.)? | E14: =+IF(Checklist!D19="",0,Checklist!D19) -> 0 | F14: =Weights!E14 -> 0.000450 | G14: =IF(Checklist!C19="X", 0, 1) -> 1 | H14: 0 | I14: 0.001800 | J14: 0% | L14: 1.107 | Z14: 1.107 | AA14: 0.000000 | AB14: 0.001800 | AC14: 0%
A15: 1.108 | D15: Does the SSP contain or reference other documents that establish protocols addressing specific threats from (i) Improvised Explosive Devices (IED) and (ii) Weapons of Mass Destruction (chemical, biological, radiological hazards)? | E15: =+IF(Checklist!D20="",0,Checklist!D20) -> 0 | F15: =Weights!E15 -> 0.000463 | G15: =IF(Checklist!C20="X", 0, 1) -> 1 | H15: 0 | I15: 0.001852 | J15: 0% | L15: 1.108 | Z15: 1.108
A16: 1.109 | C16: T3 | D16: Are visible, random security measures integrated into security plans to introduce unpredictability into security activities for deterrent effect? | E16: =+IF(Checklist!D21="",0,Checklist!D21) -> 0 | F16: =Weights!E16 -> 0.000454 | G16: =IF(Checklist!C21="X", 0, 1) -> 1 | H16: 0 | I16: 0.001816 | J16: 0% | L16: 1.109 | Q16: 0 | R16: 0.001816 | Z16: 1.109
A17: 1.110 | D17: Does the SSP include provisions requiring that security be addressed in extensions, major projects, new vehicles and equipment procurement and other capital projects, and including integration with the transit agency’s safety certification process? | E17: =+IF(Checklist!D22="",0,Checklist!D22) -> 0 | F17: =Weights!E17 -> 0.000465 | G17: =IF(Checklist!C22="X", 0, 1) -> 1 | H17: 0 | I17: 0.001860 | J17: 0% | L17: 1.110 | Z17: 1.110
A18: 1.111 | D18: Does the SSP include or reference other documents adopting Crime Prevention Through Environmental Design (CPTED) principles as part of the agency's engineering practices? | E18: =+IF(Checklist!D23="",0,Checklist!D23) -> 0 | F18: =Weights!E18 -> 0.000454 | G18: =IF(Checklist!C23="X", 0, 1) -> 1 | H18: 0 | I18: 0.001816 | J18: 0% | L18: 1.111 | Z18: 1.111
A19: 1.112 | D19: Does the SSP require an annual review? | E19: =+IF(Checklist!D24="",0,Checklist!D24) -> 0 | F19: =Weights!E19 -> 0.000449 | G19: =IF(Checklist!C24="X", 0, 1) -> 1 | H19: 0 | I19: 0.001796 | J19: 0% | L19: 1.112 | Z19: 1.112
A20: 1.113 | D20: Does the transit agency produce periodic reports reviewing its progress in meeting its SSP goals and objectives? | E20: =+IF(Checklist!D25="",0,Checklist!D25) -> 0 | F20: =Weights!E20 -> 0.000438 | G20: =IF(Checklist!C25="X", 0, 1) -> 1 | H20: 0 | I20: 0.001752 | J20: 0% | L20: 1.113 | Z20: 1.113
A21: 1.114 | D21: Has an annual review of the SSP been performed and documented in the preceding 12 months? | E21: =+IF(Checklist!D26="",0,Checklist!D26) -> 0 | F21: =Weights!E21 -> 0.000447 | G21: =IF(Checklist!C26="X", 0, 1) -> 1 | H21: 0 | I21: 0.001788 | J21: 0% | L21: 1.114 | Z21: 1.114
A22: 1.115 | D22: =IF('Profile Sheet'!E14="X","N/A Not Governed By 49 CFR Part 659","Does the SSP outline a process for securing SSO agency review and approval of updates to the SSP?") -> Does the SSP outline a process for securing SSO agency review and approval of updates to the SSP? | E22: =+IF(Checklist!D27="",0,Checklist!D27) -> 0 | F22: =Weights!E22 -> 0.000400 | G22: =IF(Checklist!C27="X", 0, 1) -> 1 | H22: 0 | I22: 0.001600 | J22: 0% | L22: 1.115 | Z22: 1.115
A23: 1.116 | D23: =IF('Profile Sheet'!E14="X","N/A Not Governed By 49 CFR Part 659","Has the transit agency submitted and received documentation from the SSO confirming its review and approval of the SSP currently in effect?") -> Has the transit agency submitted and received documentation from the SSO confirming its review and approval of the SSP currently in effect? | E23: =+IF(Checklist!D28="",0,Checklist!D28) -> 0 | F23: =Weights!E23 -> 0.000406 | G23: =IF(Checklist!C28="X", 0, 1) -> 1 | H23: 0 | I23: 0.001624 | J23: 0% | L23: 1.116 | Z23: 1.116
A24: 1.200 | D24: Emergency Response Plan (ERP) | H24: =SUM(H25:H36) -> 0.00000 | I24: =SUM(I25:I36) -> 0.03009 | J24: =H24/I24 -> 0% | L24: 1.200 | Z24: 1.200 | AA24: =SUM(AA25:AA36) -> 0.000000 | AB24: =SUM(AB25:AB36) -> 0.017664 | AC24: =AA24/AB24 -> 0%
A25: 1.201 | B25: B | D25: Does the transit agency have an Emergency Response Plan (ERP)? | E25: =+IF(Checklist!D30="",0,Checklist!D30) -> 0 | F25: =Weights!E25 -> 0.000652 | G25: =IF(Checklist!C30="X", 0, 1) -> 1 | H25: =E25*F25*G25 -> 0 | I25: =F25*G25*4 -> 0.002608 | J25: =H25/I25 -> 0% | L25: 1.201 | O25: =+IF(C25="T2",H25," ") ->  | P25: =+IF(C25="T2",I25," ") ->  | Q25: =+IF(C25="T3",H25," ") ->  | R25: =+IF(C25="T3",I25," ") ->  | S25: =+IF(C25="T4",H25," ") ->  | T25: =+IF(C25="T4",I25," ") ->  | U25: =+IF(C25="T5",H25," ") ->  | V25: =+IF(C25="T5",I25," ") ->  | W25: =+IF(C25="T6",H25," ") ->  | X25: =+IF(C25="T6",I25," ") ->  | Z25: 1.201 | AA25: =IF(B25="B",H25," ") -> 0.000000 | AB25: =IF(B25="B",I25," ") -> 0.002608 | AC25: 0%
A26: 1.202 | B26: B | D26: Does a written policy statement exist that endorses and adopts the policies and procedures of the ERP that is approved and signed by top management, including the agency's chief executive? | E26: =+IF(Checklist!D31="",0,Checklist!D31) -> 0 | F26: =Weights!E26 -> 0.000643 | G26: =IF(Checklist!C31="X", 0, 1) -> 1 | H26: 0 | I26: 0.002572 | J26: 0% | L26: 1.202 | O26: =+IF(C26="T2",H26," ") ->  | P26: =+IF(C26="T2",I26," ") ->  | Q26: =+IF(C26="T3",H26," ") ->  | R26: =+IF(C26="T3",I26," ") ->  | S26: =+IF(C26="T4",H26," ") ->  | T26: =+IF(C26="T4",I26," ") ->  | U26: =+IF(C26="T5",H26," ") ->  | V26: =+IF(C26="T5",I26," ") ->  | W26: =+IF(C26="T6",H26," ") ->  | X26: =+IF(C26="T6",I26," ") ->  | Z26: 1.202 | AA26: =IF(B26="B",H26," ") -> 0.000000 | AB26: =IF(B26="B",I26," ") -> 0.002572 | AC26: 0%
A27: 1.203 | B27: B | D27: Does the ERP require an annual review to determine if it needs to be updated? | E27: =+IF(Checklist!D32="",0,Checklist!D32) -> 0 | F27: =Weights!E27 -> 0.000631 | G27: =IF(Checklist!C32="X", 0, 1) -> 1 | H27: 0 | I27: 0.002524 | J27: 0% | L27: 1.203 | Z27: 1.203 | AA27: =IF(B27="B",H27," ") -> 0.000000 | AB27: =IF(B27="B",I27," ") -> 0.002524 | AC27: 0%
A28: 1.204 | D28: Has an annual review of the ERP been performed and documented in the preceding 12 months? | E28: =+IF(Checklist!D33="",0,Checklist!D33) -> 0 | F28: =Weights!E28 -> 0.000631 | G28: =IF(Checklist!C33="X", 0, 1) -> 1 | H28: 0 | I28: 0.002524 | J28: 0% | L28: 1.204 | Z28: 1.204 | AA28: =IF(B28="B",H28," ") ->  | AB28: =IF(B28="B",I28," ") -> 
A29: 1.205 | B29: B | D29: Does the ERP include a process or review provision to ensure coordination with the rail transit agency’s SSPP and SSP? | E29: =+IF(Checklist!D34="",0,Checklist!D34) -> 0 | F29: =Weights!E29 -> 0.000612 | G29: =IF(Checklist!C34="X", 0, 1) -> 1 | H29: 0 | I29: 0.002448 | J29: 0% | L29: 1.205 | Z29: 1.205 | AA29: 0.000000 | AB29: 0.002448 | AC29: 0%
A30: 1.206 | D30: =IF('Profile Sheet'!E14="X","N/A Not Governed By 49 CFR Part 659","Has the transit agency received documentation from the SSO confirming its review and approval of the ERP currently in effect?") -> Has the transit agency received documentation from the SSO confirming its review and approval of the ERP currently in effect? | E30: =+IF(Checklist!D35="",0,Checklist!D35) -> 0 | F30: =Weights!E30 -> 0.000585 | G30: =IF(Checklist!C35="X", 0, 1) -> 1 | H30: 0 | I30: 0.002340 | J30: 0% | L30: 1.206 | Z30: 1.206
A31: 1.207 | B31: B | D31: Does the ERP contain or reference other documents establishing plans, procedures, or protocols for responding to emergency events with external agencies (such as law enforcement, local EMA, fire departments, etc.)? | E31: =+IF(Checklist!D36="",0,Checklist!D36) -> 0 | F31: =Weights!E31 -> 0.000629 | G31: =IF(Checklist!C36="X", 0, 1) -> 1 | H31: 0 | I31: 0.002516 | J31: 0% | L31: 1.207 | Z31: 1.207 | AA31: 0.000000 | AB31: 0.002516 | AC31: 0%
A32: 1.208 | B32: B | D32: Does the ERP contain or reference other documents that establish procedures for the management of emergency events, including those to be employed by the operations control center (or dispatch center)? | E32: =+IF(Checklist!D37="",0,Checklist!D37) -> 0 | F32: =Weights!E32 -> 0.000623 | G32: =IF(Checklist!C37="X", 0, 1) -> 1 | H32: 0 | I32: 0.002492 | J32: 0% | L32: 1.208 | Z32: 1.208 | AA32: 0.000000 | AB32: 0.002492 | AC32: 0%
A33: 1.209 | D33: Does the ERP contain or reference other documents to provide for Continuity of Operations (COOP) while responding to emergency events? | E33: =+IF(Checklist!D38="",0,Checklist!D38) -> 0 | F33: =Weights!E33 -> 0.000634 | G33: =IF(Checklist!C38="X", 0, 1) -> 1 | H33: 0 | I33: 0.002536 | J33: 0% | L33: 1.209 | Z33: 1.209
A34: 1.210 | D34: Does the agency have a written Business Recovery Plan to guide restoration of facilities and services following an emergency event? | E34: =+IF(Checklist!D39="",0,Checklist!D39) -> 0 | F34: =Weights!E34 -> 0.000628 | G34: =IF(Checklist!C39="X", 0, 1) -> 1 | H34: 0 | I34: 0.002512 | J34: 0% | L34: 1.210 | Z34: 1.210
A35: 1.211 | D35: Does the agency have a written Business Continuity Plan and COOP to guide restoration of facilities and services following an emergency event? | E35: =+IF(Checklist!D40="",0,Checklist!D40) -> 0 | F35: =Weights!E35 -> 0.000629 | G35: =IF(Checklist!C40="X", 0, 1) -> 1 | H35: 0 | I35: 0.002516 | J35: 0% | L35: 1.211
A36: 1.212 | B36: B | D36: Does the agency have a back-up operations control center capability? | E36: =+IF(Checklist!D41="",0,Checklist!D41) -> 0 | F36: =Weights!E36 -> 0.000626 | G36: =IF(Checklist!C41="X", 0, 1) -> 1 | H36: 0 | I36: 0.002504 | J36: 0% | L36: 1.212 | V36: =+IF(C36="T5",I36," ") ->  | AA36: 0.000000 | AB36: 0.002504 | AC36: 0%
A37: 2.000 | D37: Define Roles and Responsibilities for Security and Emergency Management | H37: =H38+H49 -> 0 | I37: =I38+I49 -> 0.056136 | J37: =H37/I37 -> 0% | L37: 2 | Z37: 2 | AA37: =AA38+AA49 -> 0 | AB37: =AB38+AB49 -> 0.033776 | AC37: =AA37/AB37 -> 0%
A38: 2.100 | D38: System Security Plan (SSP) | H38: =SUM(H39:H48) -> 0 | I38: =SUM(I39:I48) -> 0.029456 | J38: =H38/I38 -> 0% | L38: 2.100 | Z38: 2.100 | AA38: =SUM(AA39:AA48) -> 0.000000 | AB38: =SUM(AB39:AB48) -> 0.014736 | AC38: =AA38/AB38 -> 0%
A39: 2.101 | D39: Does the SSP establish and assign responsibility for implementation of the security program to a Senior Manager who is a "direct report" to the agency's Chief Executive Officer? | E39: =+IF(Checklist!D44="",0,Checklist!D44) -> 0 | F39: =Weights!E39 -> 0.000761 | G39: =IF(Checklist!C44="X", 0, 1) -> 1 | H39: =E39*F39*G39 -> 0 | I39: =F39*G39*4 -> 0.003044 | J39: =H39/I39 -> 0% | L39: 2.101 | M39: =+IF(C39="T1",H39," ") ->  | N39: =+IF(C39="T1",I39," ") ->  | O39: =+IF(C39="T2",H39," ") ->  | P39: =+IF(C39="T2",I39," ") ->  | Q39: =+IF(C39="T3",H39," ") ->  | R39: =+IF(C39="T3",I39," ") ->  | S39: =+IF(C39="T4",H39," ") ->  | T39: =+IF(C39="T4",I39," ") ->  | U39: =+IF(C39="T5",H39," ") ->  | V39: =+IF(C39="T5",I39," ") ->  | W39: =+IF(C39="T6",H39," ") ->  | X39: =+IF(C39="T6",I39," ") ->  | Z39: 2.101 | AA39: =IF(B39="B",H39," ") ->  | AB39: =IF(B39="B",I39," ") ->  | AC39: =IF(AA39="NOT SCORED","NOT SCORED",IF(B39="B",AA39/AB39," ")) -> 
A40: 2.102 | D40: Has the agency established lines of delegated authority/succession of security responsibilities and, if so, has that information been distributed to agency managers? | E40: =+IF(Checklist!D45="",0,Checklist!D45) -> 0 | F40: =Weights!E40 -> 0.000730 | G40: =IF(Checklist!C45="X", 0, 1) -> 1 | H40: 0 | I40: 0.002920 | J40: 0% | L40: 2.102 | M40: =+IF(C40="T1",H40," ") ->  | N40: =+IF(C40="T1",I40," ") ->  | O40: =+IF(C40="T2",H40," ") ->  | P40: =+IF(C40="T2",I40," ") ->  | Q40: =+IF(C40="T3",H40," ") ->  | R40: =+IF(C40="T3",I40," ") ->  | S40: =+IF(C40="T4",H40," ") ->  | T40: =+IF(C40="T4",I40," ") ->  | U40: =+IF(C40="T5",H40," ") ->  | V40: =+IF(C40="T5",I40," ") ->  | W40: =+IF(C40="T6",H40," ") ->  | X40: =+IF(C40="T6",I40," ") ->  | Z40: 2.102 | AA40: =IF(B40="B",H40," ") ->  | AB40: =IF(B40="B",I40," ") -> 
A41: 2.103 | B41: B | D41: Are roles and responsibilities for security and/or law enforcement personnel assigned by title and/or position established in the SSP or other documents? | E41: =+IF(Checklist!D46="",0,Checklist!D46) -> 0 | F41: =Weights!E41 -> 0.000744 | G41: =IF(Checklist!C46="X", 0, 1) -> 1 | H41: 0 | I41: 0.002976 | J41: 0% | L41: 2.103 | Z41: 2.103 | AA41: 0.000000 | AB41: 0.002976 | AC41: 0%
A42: 2.104 | B42: B | D42: Are security-related roles and responsibilities for non-security and/or law enforcement personnel (i.e., operators, conductors, maintenance workers and station attendants) established in the SSP or other documents? | E42: =+IF(Checklist!D47="",0,Checklist!D47) -> 0 | F42: =Weights!E42 -> 0.000731 | G42: =IF(Checklist!C47="X", 0, 1) -> 1 | H42: 0 | I42: 0.002924 | J42: 0% | L42: 2.104 | Z42: 2.104 | AA42: 0.000000 | AB42: 0.002924 | AC42: 0%
A43: 2.105 | C43: T2 | D43: Do senior staff and middle management conduct security meetings to review recommendations for changes to plans and processes? | E43: =+IF(Checklist!D48="",0,Checklist!D48) -> 0 | F43: =Weights!E43 -> 0.000727 | G43: =IF(Checklist!C48="X", 0, 1) -> 1 | H43: 0 | I43: 0.002908 | J43: 0% | L43: 2.105 | O43: 0 | P43: 0.002908 | Z43: 2.105
A44: 2.106 | D44: Does a Security Review Committee (or other designated group) regularly review security incident reports, trends, and program audit findings? | E44: =+IF(Checklist!D49="",0,Checklist!D49) -> 0 | F44: =Weights!E44 -> 0.000718 | G44: =IF(Checklist!C49="X", 0, 1) -> 1 | H44: 0 | I44: 0.002872 | J44: 0% | L44: 2.106 | Z44: 2.106
A45: 2.107 | B45: B | D45: Are informational briefings with appropriate personnel held whenever security protocols, threat levels, or protective measures are updated or as security conditions warrant? | E45: =+IF(Checklist!D50="",0,Checklist!D50) -> 0 | F45: =Weights!E45 -> 0.000757 | G45: =IF(Checklist!C50="X", 0, 1) -> 1 | H45: 0 | I45: 0.003028 | J45: 0% | L45: 2.107 | M45: =+IF(C45="T1",H45," ") ->  | N45: =+IF(C45="T1",I45," ") ->  | O45: =+IF(C45="T2",H45," ") ->  | P45: =+IF(C45="T2",I45," ") ->  | Q45: =+IF(C45="T3",H45," ") ->  | R45: =+IF(C45="T3",I45," ") ->  | Z45: 2.107 | AA45: 0.000000 | AB45: 0.003028 | AC45: 0%
A46: 2.108 | B46: B | D46: Have appropriate reference guides or other written instructions or procedures been distributed to transit employees to implement the requirements of the SSP? | E46: =+IF(Checklist!D51="",0,Checklist!D51) -> 0 | F46: =Weights!E46 -> 0.000694 | G46: =IF(Checklist!C51="X", 0, 1) -> 1 | H46: 0 | I46: 0.002776 | J46: 0% | L46: 2.108 | Z46: 2.108 | AA46: 0.000000 | AB46: 0.002776 | AC46: 0%
A47: 2.109 | B47: B | D47: Has the agency appointed a Primary and Alternate Security Coordinator to serve as its primary and immediate 24-hr contact for intelligence and security-related contact with TSA and are the names of those Coordinators on file with TSA OSPIE office correct? | E47: =+IF(Checklist!D52="",0,Checklist!D52) -> 0 | F47: =Weights!E47 -> 0.000758 | G47: =IF(Checklist!C52="X", 0, 1) -> 1 | H47: 0 | I47: 0.003032 | J47: 0% | L47: 2.109 | Z47: 2.109 | AA47: 0.000000 | AB47: 0.003032 | AC47: 0%
A48: 2.11 | D48: Does the agency maintain a record of security related incidents that are reported within the agency? | E48: =+IF(Checklist!D53="",0,Checklist!D53) -> 0 | F48: =Weights!E48 -> 0.000744 | G48: =IF(Checklist!C53="X", 0, 1) -> 1 | H48: 0 | I48: 0.002976 | J48: 0% | L48: 2.11
A49: 2.200 | D49: 2.b. Emergency Response Plan (ERP): | H49: =SUM(H50:H56) -> 0.00000 | I49: =SUM(I50:I56) -> 0.02668 | J49: =H49/I49 -> 0% | L49: 2.200 | Z49: 2.200 | AA49: =SUM(AA50:AA56) -> 0.000000 | AB49: =SUM(AB50:AB56) -> 0.019040 | AC49: =AA49/AB49 -> 0%
A50: 2.201 | D50: Does the ERP establish and assign responsibility for implementation of the security program to a Senior Manager who is a "direct report" to the agency's Chief Executive Officer? | E50: =+IF(Checklist!D55="",0,Checklist!D55) -> 0 | F50: =Weights!E50 -> 0.000980 | G50: =IF(Checklist!C55="X", 0, 1) -> 1 | H50: =E50*F50*G50 -> 0 | I50: =F50*G50*4 -> 0.003920 | J50: =H50/I50 -> 0% | L50: 2.201 | M50: =+IF(C50="T1",H50," ") ->  | N50: =+IF(C50="T1",I50," ") ->  | O50: =+IF(C50="T2",H50," ") ->  | P50: =+IF(C50="T2",I50," ") ->  | Q50: =+IF(C50="T3",H50," ") ->  | R50: =+IF(C50="T3",I50," ") ->  | S50: =+IF(C50="T4",H50," ") ->  | T50: =+IF(C50="T4",I50," ") ->  | U50: =+IF(C50="T5",H50," ") ->  | V50: =+IF(C50="T5",I50," ") ->  | W50: =+IF(C50="T6",H50," ") ->  | X50: =+IF(C50="T6",I50," ") ->  | Z50: 2.201 | AA50: =IF(B50="B",H50," ") ->  | AB50: =IF(B50="B",I50," ") -> 
A51: 2.202 | B51: B | D51: Are emergency response roles and responsibilities for all departments identified in the ERP or other supporting documents? | E51: =+IF(Checklist!D56="",0,Checklist!D56) -> 0 | F51: =Weights!E51 -> 0.000950 | G51: =IF(Checklist!C56="X", 0, 1) -> 1 | H51: 0 | I51: 0.003800 | J51: 0% | L51: 2.202 | M51: =+IF(C51="T1",H51," ") ->  | N51: =+IF(C51="T1",I51," ") ->  | O51: =+IF(C51="T2",H51," ") ->  | P51: =+IF(C51="T2",I51," ") ->  | Q51: =+IF(C51="T3",H51," ") ->  | R51: =+IF(C51="T3",I51," ") ->  | S51: =+IF(C51="T4",H51," ") ->  | T51: =+IF(C51="T4",I51," ") ->  | U51: =+IF(C51="T5",H51," ") ->  | V51: =+IF(C51="T5",I51," ") ->  | W51: =+IF(C51="T6",H51," ") ->  | X51: =+IF(C51="T6",I51," ") ->  | Z51: 2.202 | AA51: =IF(B51="B",H51," ") -> 0.000000 | AB51: =IF(B51="B",I51," ") -> 0.003800 | AC51: 0%
A52: 2.203 | B52: B | C52: T5 | D52: Are roles and responsibilities for front-line personnel (i.e. system law enforcement, system security officials, train or vehicle operators, conductors, station attendants, maintenance workers) described in the system's Emergency Response Plan (ERP)? | E52: =+IF(Checklist!D57="",0,Checklist!D57) -> 0 | F52: =Weights!E52 -> 0.000950 | G52: =IF(Checklist!C57="X", 0, 1) -> 1 | H52: 0 | I52: 0.003800 | J52: 0% | L52: 2.203 | U52: 0 | V52: 0.0038 | Z52: 2.203 | AA52: 0.000000 | AB52: 0.003800 | AC52: 0%
A53: 2.204 | B53: B | D53: Has the ERP been distributed to appropriate departments in the organization? | E53: =+IF(Checklist!D58="",0,Checklist!D58) -> 0 | F53: =Weights!E53 -> 0.000960 | G53: =IF(Checklist!C58="X", 0, 1) -> 1 | H53: 0 | I53: 0.003840 | J53: 0% | L53: 2.204 | Z53: 2.204 | AA53: 0.000000 | AB53: 0.003840 | AC53: 0%
A54: 2.205 | B54: B | D54: Have appropriate reference guides or other written instructions or procedures been distributed to transit employees to implement the requirements of the ERP? | E54: =+IF(Checklist!D59="",0,Checklist!D59) -> 0 | F54: =Weights!E54 -> 0.000950 | G54: =IF(Checklist!C59="X", 0, 1) -> 1 | H54: 0 | I54: 0.003800 | J54: 0% | L54: 2.205 | Z54: 2.205 | AA54: 0.000000 | AB54: 0.003800 | AC54: 0%
A55: 2.206 | D55: Are senior staff and middle management ERP coordination meetings held on a regular basis? | E55: =+IF(Checklist!D60="",0,Checklist!D60) -> 0 | F55: =Weights!E55 -> 0.000930 | G55: =IF(Checklist!C60="X", 0, 1) -> 1 | H55: 0 | I55: 0.003720 | J55: 0% | L55: 2.206 | Z55: 2.206
A56: 2.207 | B56: B | D56: Are informational briefings with appropriate personnel held whenever emergency response protocols are substantially changed or updated? | E56: =+IF(Checklist!D61="",0,Checklist!D61) -> 0 | F56: =Weights!E56 -> 0.000950 | G56: =IF(Checklist!C61="X", 0, 1) -> 1 | H56: 0 | I56: 0.003800 | J56: 0% | L56: 2.207 | Z56: 2.207 | AA56: 0.000000 | AB56: 0.003800 | AC56: 0%
A57: 3.000 | D57: Ensure that operations and maintenance supervisors, forepersons and managers are held accountable for security issues under their control | H57: =SUM(H58:H61) -> 0.0000 | I57: =SUM(I58:I61) -> 0.0580 | J57: =H57/I57 -> 0% | L57: 3.000 | Z57: 3.000 | AA57: =SUM(AA58:AA61) -> 0.000000 | AB57: =SUM(AB58:AB61) -> 0.043600 | AC57: =AA57/AB57 -> 0%
A58: 3.101 | B58: B | D58: Do managers and supervisors routinely provide information to front-line personnel regarding security and emergency response issues? | E58: =+IF(Checklist!D63="",0,Checklist!D63) -> 0 | F58: =Weights!E58 -> 0.003700 | G58: =IF(Checklist!C63="X", 0, 1) -> 1 | H58: =E58*F58*G58 -> 0 | I58: =F58*G58*4 -> 0.014800 | J58: =H58/I58 -> 0% | L58: 3.101 | M58: =+IF(C58="T1",H58," ") ->  | N58: =+IF(C58="T1",I58," ") ->  | O58: =+IF(C58="T2",H58," ") ->  | P58: =+IF(C58="T2",I58," ") ->  | Q58: =+IF(C58="T3",H58," ") ->  | R58: =+IF(C58="T3",I58," ") ->  | S58: =+IF(C58="T4",H58," ") ->  | T58: =+IF(C58="T4",I58," ") ->  | U58: =+IF(C58="T5",H58," ") ->  | V58: =+IF(C58="T5",I58," ") ->  | W58: =+IF(C58="T6",H58," ") ->  | X58: =+IF(C58="T6",I58," ") ->  | Z58: 3.101 | AA58: =IF(B58="B",H58," ") -> 0.000000 | AB58: =IF(B58="B",I58," ") -> 0.014800 | AC58: 0%
A59: 3.102 | D59: Are regular supervisor, manager, and/or foreperson security review and coordination briefings held? If so, detail frequency and subjects covered in the justification. | E59: =+IF(Checklist!D64="",0,Checklist!D64) -> 0 | F59: =Weights!E59 -> 0.003600 | G59: =IF(Checklist!C64="X", 0, 1) -> 1 | H59: 0 | I59: 0.014400 | J59: 0% | L59: 3.102 | M59: =+IF(C59="T1",H59," ") ->  | N59: =+IF(C59="T1",I59," ") ->  | O59: =+IF(C59="T2",H59," ") ->  | P59: =+IF(C59="T2",I59," ") ->  | Q59: =+IF(C59="T3",H59," ") ->  | R59: =+IF(C59="T3",I59," ") ->  | S59: =+IF(C59="T4",H59," ") ->  | T59: =+IF(C59="T4",I59," ") ->  | U59: =+IF(C59="T5",H59," ") ->  | V59: =+IF(C59="T5",I59," ") ->  | W59: =+IF(C59="T6",H59," ") ->  | X59: =+IF(C59="T6",I59," ") ->  | Z59: 3.102 | AA59: =IF(B59="B",H59," ") ->  | AB59: =IF(B59="B",I59," ") -> 
A60: 3.103 | B60: B | D60: Does the agency have a program for confirming that personnel have a working knowledge of security protocols? If so, summarize program in the justification. | E60: =+IF(Checklist!D65="",0,Checklist!D65) -> 0 | F60: =Weights!E60 -> 0.003600 | G60: =IF(Checklist!C65="X", 0, 1) -> 1 | H60: 0 | I60: 0.014400 | J60: 0% | L60: 3.103 | Z60: 3.103 | AA60: =IF(B60="B",H60," ") -> 0.000000 | AB60: =IF(B60="B",I60," ") -> 0.014400 | AC60: 0%
A61: 3.104 | B61: B | D61: Are managers and/or supervisors required to debrief front-line employees regarding their involvement in or management of any security or emergency incidents? | E61: =+IF(Checklist!D66="",0,Checklist!D66) -> 0 | F61: =Weights!E61 -> 0.003600 | G61: =IF(Checklist!C66="X", 0, 1) -> 1 | H61: 0 | I61: 0.014400 | J61: 0% | L61: 3.104 | Z61: 3.104 | AA61: =IF(B61="B",H61," ") -> 0.000000 | AB61: =IF(B61="B",I61," ") -> 0.014400 | AC61: 0%
A62: 4.000 | D62: Coordinate Security and Emergency Management Plan(s) with local and regional agencies | H62: =SUM(H63:H73) -> 0.0000 | I62: =SUM(I63:I73) -> 0.0584 | J62: =H62/I62 -> 0% | L62: 4.000 | Z62: 4.000 | AA62: =SUM(AA63:AA73) -> 0.000000 | AB62: =SUM(AB63:AB73) -> 0.032136 | AC62: =AA62/AB62 -> 0%
A63: 4.101 | D63: Have Mutual Aid agreements been established between the transit agency and entities in the area that would be called upon to supplement the agency's resources in the event of an emergency event? | E63: =+IF(Checklist!D68="",0,Checklist!D68) -> 0 | F63: =Weights!E63 -> 0.001331 | G63: =IF(Checklist!C68="X", 0, 1) -> 1 | H63: =E63*F63*G63 -> 0 | I63: =F63*G63*4 -> 0.005324 | J63: =H63/I63 -> 0% | L63: 4.101 | M63: =+IF(C63="T1",H63," ") ->  | N63: =+IF(C63="T1",I63," ") ->  | O63: =+IF(C63="T2",H63," ") ->  | P63: =+IF(C63="T2",I63," ") ->  | Q63: =+IF(C63="T3",H63," ") ->  | R63: =+IF(C63="T3",I63," ") ->  | S63: =+IF(C63="T4",H63," ") ->  | T63: =+IF(C63="T4",I63," ") ->  | U63: =+IF(C63="T5",H63," ") ->  | V63: =+IF(C63="T5",I63," ") ->  | W63: =+IF(C63="T6",H63," ") ->  | X63: =+IF(C63="T6",I63," ") ->  | Z63: 4.101 | AA63: =IF(B63="B",H63," ") ->  | AB63: =IF(B63="B",I63," ") -> 
A64: 4.102 | B64: B | D64: Does the agency participate in a regional Emergency Management Working Group or similar regional coordinating body for emergency preparedness and response? | E64: =+IF(Checklist!D69="",0,Checklist!D69) -> 0 | F64: =Weights!E64 -> 0.001336 | G64: =IF(Checklist!C69="X", 0, 1) -> 1 | H64: 0 | I64: 0.005344 | J64: 0% | L64: 4.102 | M64: =+IF(C64="T1",H64," ") ->  | N64: =+IF(C64="T1",I64," ") ->  | O64: =+IF(C64="T2",H64," ") ->  | P64: =+IF(C64="T2",I64," ") ->  | Q64: =+IF(C64="T3",H64," ") ->  | R64: =+IF(C64="T3",I64," ") ->  | S64: =+IF(C64="T4",H64," ") ->  | T64: =+IF(C64="T4",I64," ") ->  | U64: =+IF(C64="T5",H64," ") ->  | V64: =+IF(C64="T5",I64," ") ->  | W64: =+IF(C64="T6",H64," ") ->  | X64: =+IF(C64="T6",I64," ") ->  | Z64: 4.102 | AA64: =IF(B64="B",H64," ") -> 0.000000 | AB64: =IF(B64="B",I64," ") -> 0.005344 | AC64: 0%
A65: 4.103 | B65: B | D65: Have regional incident management protocols been shared with the agency and incorporated into the agency's ERP/SSP/SEPP? | E65: =+IF(Checklist!D70="",0,Checklist!D70) -> 0 | F65: =Weights!E65 -> 0.001293 | G65: =IF(Checklist!C70="X", 0, 1) -> 1 | H65: 0 | I65: 0.005172 | J65: 0% | L65: 4.103 | Z65: 4.103 | AA65: 0.000000 | AB65: 0.005172 | AC65: 0%
A66: 4.104 | D66: Have agency resources been appropriately identified and provided to the regional EMA? | E66: =+IF(Checklist!D71="",0,Checklist!D71) -> 0 | F66: =Weights!E66 -> 0.001263 | G66: =IF(Checklist!C71="X", 0, 1) -> 1 | H66: 0 | I66: 0.005052 | J66: 0% | L66: 4.104 | Z66: 4.104
A67: 4.105 | B67: B | D67: Does the agency have a designated point-of-contact or liaison with the local/regional Emergency Operations Center (EOC)? | E67: =+IF(Checklist!D72="",0,Checklist!D72) -> 0 | F67: =Weights!E67 -> 0.001394 | G67: =IF(Checklist!C72="X", 0, 1) -> 1 | H67: 0 | I67: 0.005576 | J67: 0% | L67: 4.105 | Z67: 4.105 | AA67: 0.000000 | AB67: 0.005576 | AC67: 0%
A68: 4.106 | D68: Does the agency send a representative to the local/regional EOC, should it be activated? | E68: =+IF(Checklist!D73="",0,Checklist!D73) -> 0 | F68: =Weights!E68 -> 0.001347 | G68: =IF(Checklist!C73="X", 0, 1) -> 1 | H68: 0 | I68: 0.005388 | J68: 0% | L68: 4.106 | Z68: 4.106
A69: 4.107 | D69: Does the agency have information sharing capabilities with the regional/local EOC (i.e., contacts, procedures, resource inventories, etc.)? | E69: =+IF(Checklist!D74="",0,Checklist!D74) -> 0 | F69: =Weights!E69 -> 0.001343 | G69: =IF(Checklist!C74="X", 0, 1) -> 1 | H69: 0 | I69: 0.005372 | J69: 0% | L69: 4.107 | Z69: 4.107
A70: 4.108 | B70: B | D70: Has the agency developed internal incident management protocols that comply with the National Response Plan and the National Incident Management System (NIMS)? | E70: =+IF(Checklist!D75="",0,Checklist!D75) -> 0 | F70: =Weights!E70 -> 0.001314 | G70: =IF(Checklist!C75="X", 0, 1) -> 1 | H70: 0 | I70: 0.005256 | J70: 0% | L70: 4.108 | Z70: 4.108 | AA70: 0.000000 | AB70: 0.005256 | AC70: 0%
A71: 4.109 | D71: Have the agency's emergency response protocols been shared with the EMA and appropriate first responder agencies? | E71: =+IF(Checklist!D76="",0,Checklist!D76) -> 0 | F71: =Weights!E71 -> 0.001286 | G71: =IF(Checklist!C76="X", 0, 1) -> 1 | H71: 0 | I71: 0.005144 | J71: 0% | L71: 4.109 | Z71: 4.109
A72: 4.110 | B72: B | C72: T5 | D72: Has the transit system tested its communications systems for interoperability with appropriate emergency response agencies? | E72: =+IF(Checklist!D77="",0,Checklist!D77) -> 0 | F72: =Weights!E72 -> 0.001325 | G72: =IF(Checklist!C77="X", 0, 1) -> 1 | H72: 0 | I72: 0.005300 | J72: 0% | L72: 4.110 | U72: 0 | V72: 0.0053 | Z72: 4.110 | AA72: 0.000000 | AB72: 0.005300 | AC72: 0%
A73: 4.111 | B73: B | D73: If the agency's communications systems are NOT inter-operable with appropriate emergency response agencies, have alternate communication protocols been established? Describe the alternate communication protocols in the justification. | E73: =+IF(Checklist!D78="",0,Checklist!D78) -> 0 | F73: =Weights!E73 -> 0.001372 | G73: =IF(Checklist!C78="X", 0, 1) -> 1 | H73: 0 | I73: 0.005488 | J73: 0% | L73: 4.111 | Z73: 4.111 | AA73: 0.000000 | AB73: 0.005488 | AC73: 0%
D74: SECURITY AND EMERGENCY RESPONSE TRAINING
A75: 5.000 | D75: Establish and Maintain a Security and Emergency Training Program | H75: =SUM(H76:H107) -> 0.0000 | I75: =SUM(I76:I107) -> 0.0597 | J75: =H75/I75 -> 0% | L75: 5.000 | Z75: 5.000 | AA75: =SUM(AA76:AA107) -> 0.000000 | AB75: =SUM(AB76:AB107) -> 0.029915 | AC75: =AA75/AB75 -> 0%
A76: 5.101 | B76: B | C76: T4 | D76: Is initial training provided to all new agency employees regarding security orientation/awareness? | E76: =+IF(Checklist!D81="",0,Checklist!D81) -> 0 | F76: =Weights!E76 -> 0.000488 | G76: =IF(Checklist!C81="X", 0, 1) -> 1 | H76: =E76*F76*G76 -> 0 | I76: =F76*G76*4 -> 0.001952 | J76: =H76/I76 -> 0% | L76: 5.101 | M76: =+IF(C76="T1",H76," ") ->  | N76: =+IF(C76="T1",I76," ") ->  | O76: =+IF(C76="T2",H76," ") ->  | P76: =+IF(C76="T2",I76," ") ->  | Q76: =+IF(C76="T3",H76," ") ->  | R76: =+IF(C76="T3",I76," ") ->  | S76: =+IF(C76="T4",H76," ") -> 0 | T76: =+IF(C76="T4",I76," ") -> 0.001951714986 | U76: =+IF(C76="T5",H76," ") ->  | V76: =+IF(C76="T5",I76," ") ->  | W76: =+IF(C76="T6",H76," ") ->  | X76: =+IF(C76="T6",I76," ") ->  | Z76: 5.101 | AA76: =IF(B76="B",H76," ") -> 0.000000 | AB76: =IF(B76="B",I76," ") -> 0.001952 | AC76: =IF(AA76="NOT SCORED","NOT SCORED",IF(B76="B",AA76/AB76," ")) -> 0%
A77: 5.102 | C77: T4 | D77: Is annual refresher training provided regarding security orientation/awareness to Senior Management staff, managers and supervisors? | E77: =+IF(Checklist!D82="",0,Checklist!D82) -> 0 | F77: =Weights!E77 -> 0.000473 | G77: =IF(Checklist!C82="X", 0, 1) -> 1 | H77: 0 | I77: 0.001893 | J77: 0% | L77: 5.102 | M77: =+IF(C77="T1",H77," ") ->  | N77: =+IF(C77="T1",I77," ") ->  | O77: =+IF(C77="T2",H77," ") ->  | P77: =+IF(C77="T2",I77," ") ->  | Q77: =+IF(C77="T3",H77," ") ->  | R77: =+IF(C77="T3",I77," ") ->  | S77: =+IF(C77="T4",H77," ") -> 0 | T77: =+IF(C77="T4",I77," ") -> 0.001892503032 | U77: =+IF(C77="T5",H77," ") ->  | V77: =+IF(C77="T5",I77," ") ->  | W77: =+IF(C77="T6",H77," ") ->  | X77: =+IF(C77="T6",I77," ") ->  | Z77: 5.102 | AA77: =IF(B77="B",H77," ") ->  | AB77: =IF(B77="B",I77," ") -> 
A78: 5.103 | B78: B | C78: T4 | D78: Is annual refresher training provided regarding security orientation/awareness to managers and supervisors? | E78: =+IF(Checklist!D83="",0,Checklist!D83) -> 0 | F78: =Weights!E78 -> 0.000476 | G78: =IF(Checklist!C83="X", 0, 1) -> 1 | H78: 0 | I78: 0.001902 | J78: 0% | L78: 5.103 | S78: 0 | T78: 0.001902165517 | Z78: 5.103 | AA78: 0.000000 | AB78: 0.001902 | AC78: 0%
A79: 5.104 | B79: B | C79: T4 | D79: Is annual refresher training provided regarding security orientation/awareness to front-line employees? | E79: =+IF(Checklist!D84="",0,Checklist!D84) -> 0 | F79: =Weights!E79 -> 0.000472 | G79: =IF(Checklist!C84="X", 0, 1) -> 1 | H79: 0 | I79: 0.001890 | J79: 0% | L79: 5.104 | S79: 0 | T79: 0.001889827401 | Z79: 5.104 | AA79: 0.000000 | AB79: 0.001890 | AC79: 0%
A80: 5.105 | D80: Is ongoing advanced security training focused on job function provided at least annually? | E80: =+IF(Checklist!D85="",0,Checklist!D85) -> 0 | F80: =Weights!E80 -> 0.000468 | G80: =IF(Checklist!C85="X", 0, 1) -> 1 | H80: 0 | I80: 0.001872 | J80: 0% | L80: 5.105 | Z80: 5.105
A81: 5.106 | B81: B | C81: T4 | D81: Is initial training provided to all new transit employees regarding emergency response? | E81: =+IF(Checklist!D86="",0,Checklist!D86) -> 0 | F81: =Weights!E81 -> 0.000484 | G81: =IF(Checklist!C86="X", 0, 1) -> 1 | H81: 0 | I81: 0.001938 | J81: 0% | L81: 5.106 | S81: 0 | T81: 0.001937956321 | Z81: 5.106 | AA81: 0.000000 | AB81: 0.001938 | AC81: 0%
A82: 5.107 | C82: T4 | D82: Is annual refresher training provided regarding emergency response to Senior Management staff, supervisors, and managers? | E82: =+IF(Checklist!D87="",0,Checklist!D87) -> 0 | F82: =Weights!E82 -> 0.000472 | G82: =IF(Checklist!C87="X", 0, 1) -> 1 | H82: 0 | I82: 0.001889 | J82: 0% | L82: 5.107 | S82: 0 | T82: 0.001889324624 | Z82: 5.107
A83: 5.108 | B83: B | C83: T4 | D83: Is annual refresher training provided regarding emergency response to Managers and Supervisors? | E83: =+IF(Checklist!D88="",0,Checklist!D88) -> 0 | F83: =Weights!E83 -> 0.000477 | G83: =IF(Checklist!C88="X", 0, 1) -> 1 | H83: 0 | I83: 0.001909 | J83: 0% | L83: 5.108 | S83: 0 | T83: 0.001908802407 | Z83: 5.108 | AA83: 0.000000 | AB83: 0.001909 | AC83: 0%
A84: 5.109 | B84: B | C84: T4 | D84: Is annual refresher training provided regarding emergency response to front-line Employees? | E84: =+IF(Checklist!D89="",0,Checklist!D89) -> 0 | F84: =Weights!E84 -> 0.000472 | G84: =IF(Checklist!C89="X", 0, 1) -> 1 | H84: 0 | I84: 0.001889 | J84: 0% | L84: 5.109 | S84: 0 | T84: 0.001888707108 | Z84: 5.109 | AA84: 0.000000 | AB84: 0.001889 | AC84: 0%
A85: 5.110 | B85: B | C85: T4 | D85: Have agency employees received general training on Incident Command System (ICS) procedures in accordance with National Incident Management System at least annually? | E85: =+IF(Checklist!D90="",0,Checklist!D90) -> 0 | F85: =Weights!E85 -> 0.000462 | G85: =IF(Checklist!C90="X", 0, 1) -> 1 | H85: 0 | I85: 0.001848 | J85: 0% | L85: 5.110 | S85: 0 | T85: 0.001848163389 | Z85: 5.110 | AA85: 0.000000 | AB85: 0.001848 | AC85: 0%
A86: 5.111 | D86: Has ICS and NIMS training appropriate to the position been provided to Senior Management staff, supervisors, and managers at least annually? | E86: =+IF(Checklist!D91="",0,Checklist!D91) -> 0 | F86: =Weights!E86 -> 0.000440 | G86: =IF(Checklist!C91="X", 0, 1) -> 1 | H86: 0 | I86: 0.001761 | J86: 0% | L86: 5.111 | Z86: 5.111
A87: 5.112 | B87: B | D87: Has ICS and NIMS training appropriate to the position been provided to managers and supervisors at least annually? | E87: =+IF(Checklist!D92="",0,Checklist!D92) -> 0 | F87: =Weights!E87 -> 0.000466 | G87: =IF(Checklist!C92="X", 0, 1) -> 1 | H87: 0 | I87: 0.001862 | J87: 0% | L87: 5.112 | Z87: 5.112 | AA87: 0.000000 | AB87: 0.001862 | AC87: 0%
A88: 5.113 | D88: Has ICS and NIMS training appropriate to the position been provided to front-line employees at least annually? | E88: =+IF(Checklist!D93="",0,Checklist!D93) -> 0 | F88: =Weights!E88 -> 0.000450 | G88: =IF(Checklist!C93="X", 0, 1) -> 1 | H88: 0 | I88: 0.001799 | J88: 0% | L88: 5.113 | Z88: 5.113
A89: 5.114 | B89: B | D89: Has the agency developed a program and provided annual training on its own incident response protocols? | E89: =+IF(Checklist!D94="",0,Checklist!D94) -> 0 | F89: =Weights!E89 -> 0.000474 | G89: =IF(Checklist!C94="X", 0, 1) -> 1 | H89: 0 | I89: 0.001895 | J89: 0% | L89: 5.114 | Z89: 5.114 | AA89: 0.000000 | AB89: 0.001895 | AC89: 0%
A90: 5.115 | C90: T4 | D90: Has training on the agency's incident response protocols appropriate to the position been provided to Senior Management staff, managers and supervisors at least annually? | E90: =+IF(Checklist!D95="",0,Checklist!D95) -> 0 | F90: =Weights!E90 -> 0.000465 | G90: =IF(Checklist!C95="X", 0, 1) -> 1 | H90: 0 | I90: 0.001860 | J90: 0% | L90: 5.115 | S90: 0 | T90: 0.001859878727 | Z90: 5.115
A91: 5.116 | B91: B | C91: T4 | D91: Has training on the agency's incident response protocols appropriate to the position been provided to managers and supervisors? | E91: =+IF(Checklist!D96="",0,Checklist!D96) -> 0 | F91: =Weights!E91 -> 0.000471 | G91: =IF(Checklist!C96="X", 0, 1) -> 1 | H91: 0 | I91: 0.001882 | J91: 0% | L91: 5.116 | S91: 0 | T91: 0.001882210254 | Z91: 5.116 | AA91: 0.000000 | AB91: 0.001882 | AC91: 0%
A92: 5.117 | B92: B | C92: T4 | D92: Has training on the agency's incident response protocols appropriate to the position been provided to front-line employees at least annually? | E92: =+IF(Checklist!D97="",0,Checklist!D97) -> 0 | F92: =Weights!E92 -> 0.000468 | G92: =IF(Checklist!C97="X", 0, 1) -> 1 | H92: 0 | I92: 0.001871 | J92: 0% | L92: 5.117 | S92: 0 | T92: 0.001871425188 | Z92: 5.117 | AA92: 0.000000 | AB92: 0.001871 | AC92: 0%
A93: 5.118 | C93: T4 | D93: Has the transit system implemented an annual training program for personnel regarding response to terrorism, including (i) Improvised Explosive Devices and ii) Weapons of Mass Destruction (chemical, biological, radiological, nuclear)? If so, summarize the relevant programs in the justification? | E93: =+IF(Checklist!D98="",0,Checklist!D98) -> 0 | F93: =Weights!E93 -> 0.000430 | G93: =IF(Checklist!C98="X", 0, 1) -> 1 | H93: 0 | I93: 0.001722 | J93: 0% | L93: 5.118 | S93: 0 | T93: 0.001721821703 | Z93: 5.118
A94: 5.119 | D94: Has training focused on IEDs and WMDs appropriate to the position been provided to Senior Management staff, managers, and supervisors at least annually? | E94: =+IF(Checklist!D99="",0,Checklist!D99) -> 0 | F94: =Weights!E94 -> 0.000460 | G94: =IF(Checklist!C99="X", 0, 1) -> 1 | H94: 0 | I94: 0.001841 | J94: 0% | L94: 5.119 | Z94: 5.119
A95: 5.120 | D95: Has training focused on IEDs and WMDs appropriate to the position been provided to manager and supervisors? | E95: =+IF(Checklist!D100="",0,Checklist!D100) -> 0 | F95: =Weights!E95 -> 0.000476 | G95: =IF(Checklist!C100="X", 0, 1) -> 1 | H95: 0 | I95: 0.001902 | J95: 0% | L95: 5.120 | Z95: 5.120
A96: 5.121 | D96: Has training focused on IEDs and WMDs appropriate to the position been provided to front-line employees at least annually? | E96: =+IF(Checklist!D101="",0,Checklist!D101) -> 0 | F96: =Weights!E96 -> 0.000470 | G96: =IF(Checklist!C101="X", 0, 1) -> 1 | H96: 0 | I96: 0.001881 | J96: 0% | L96: 5.121 | Z96: 5.121
A97: 5.122 | D97: Do law enforcement/security department personnel at the agency receive specialized training in counter-terrorism annually? Summarize program in the justification. | E97: =+IF(Checklist!D102="",0,Checklist!D102) -> 0 | F97: =Weights!E97 -> 0.000484 | G97: =IF(Checklist!C102="X", 0, 1) -> 1 | H97: 0 | I97: 0.001936 | J97: 0% | L97: 5.122 | Z97: 5.122
A98: 5.123 | D98: Do law enforcement/security department personnel at the agency receive specialized training supporting their incident management and emergency response roles at least annually? Summarize program in the justification. | E98: =+IF(Checklist!D103="",0,Checklist!D103) -> 0 | F98: =Weights!E98 -> 0.000486 | G98: =IF(Checklist!C103="X", 0, 1) -> 1 | H98: 0 | I98: 0.001942 | J98: 0% | L98: 5.123 | Z98: 5.123
A99: 5.124 | B99: B | D99: Does the agency have an established program to monitor employee training and to schedule employees for training? | E99: =+IF(Checklist!D104="",0,Checklist!D104) -> 0 | F99: =Weights!E99 -> 0.000465 | G99: =IF(Checklist!C104="X", 0, 1) -> 1 | H99: 0 | I99: 0.001858 | J99: 0% | L99: 5.124 | Z99: 5.124 | AA99: 0.000000 | AB99: 0.001858 | AC99: 0%
A100: 5.125 | D100: Does the agency have a system that records and tracks personnel training for all security-related courses (including initial, annual, periodic and other)? | E100: =+IF(Checklist!D105="",0,Checklist!D105) -> 0 | F100: =Weights!E100 -> 0.000461 | G100: =IF(Checklist!C105="X", 0, 1) -> 1 | H100: 0 | I100: 0.001842 | J100: 0% | L100: 5.125 | Z100: 5.125
A101: 5.126 | D101: Does the transit agency have a system that records and tracks personnel training for emergency response courses (including initial, periodic and other)? | E101: =+IF(Checklist!D106="",0,Checklist!D106) -> 0 | F101: =Weights!E101 -> 0.000461 | G101: =IF(Checklist!C106="X", 0, 1) -> 1 | H101: 0 | I101: 0.001845 | J101: 0% | L101: 5.126 | Z101: 5.126
A102: 5.127 | D102: Does the agency have a program to regularly review and update security awareness and emergency response training materials? | E102: =+IF(Checklist!D107="",0,Checklist!D107) -> 0 | F102: =Weights!E102 -> 0.000457 | G102: =IF(Checklist!C107="X", 0, 1) -> 1 | H102: 0 | I102: 0.001829 | J102: 0% | L102: 5.127 | Z102: 5.127
A103: 5.128 | B103: B | C103: T4 | D103: Are all appropriate personnel notified via briefings, email, voicemail, or signage of changes in threat condition, protective measures or the employee watch programs? | E103: =+IF(Checklist!D108="",0,Checklist!D108) -> 0 | F103: =Weights!E103 -> 0.000479 | G103: =IF(Checklist!C108="X", 0, 1) -> 1 | H103: 0 | I103: 0.001916 | J103: 0% | L103: 5.128 | S103: 0 | T103: 0.001915642096 | Z103: 5.128 | AA103: 0.000000 | AB103: 0.001916 | AC103: 0%
A104: 5.129 | B104: B | C104: T1 | D104: Do the agency's security awareness and emergency response training programs cover response and recovery operations in critical facilities and infrastructure? If so, summarize relevant provisions of program in the justification. | E104: =+IF(Checklist!D109="",0,Checklist!D109) -> 0 | F104: =Weights!E104 -> 0.000459 | G104: =IF(Checklist!C109="X", 0, 1) -> 1 | H104: 0 | I104: 0.001837 | J104: 0% | L104: 5.129 | M104: 0 | N104: 0.001837 | Z104: 5.129 | AA104: 0.000000 | AB104: 0.001837 | AC104: 0%
A105: 5.130 | B105: B | C105: T1 | D105: Has the agency provided training to regional first responders (law enforcement agencies, firefighters, and emergency medical response teams) to enable them to operate in critical facilities and infrastructure? | E105: =+IF(Checklist!D110="",0,Checklist!D110) -> 0 | F105: =Weights!E105 -> 0.000432 | G105: =IF(Checklist!C110="X", 0, 1) -> 1 | H105: 0 | I105: 0.001728 | J105: 0% | L105: 5.130 | M105: 0 | N105: 0.001728 | Z105: 5.130 | AA105: 0.000000 | AB105: 0.001728 | AC105: 0%
A106: 5.131 | C106: T3 | D106: Does training of transit system law enforcement and/or security personnel integrate the concept and employment of visible, random security measures? | E106: =+IF(Checklist!D111="",0,Checklist!D111) -> 0 | F106: =Weights!E106 -> 0.000481 | G106: =IF(Checklist!C111="X", 0, 1) -> 1 | H106: 0 | I106: 0.001923 | J106: 0% | L106: 5.131 | Q106: 0 | R106: 0.001922980314 | Z106: 5.131
A107: 5.132 | B107: B | C107: T4 | D107: Has the agency implemented a program to train or orient first responders (law enforcement, firefighters, emergency medical teams) and other potential supporting assets (e.g., TSA regional personnel for VIPR exercises) on their system vehicle familiarization? | E107: =+IF(Checklist!D112="",0,Checklist!D112) -> 0 | F107: =Weights!E107 -> 0.000434 | G107: =IF(Checklist!C112="X", 0, 1) -> 1 | H107: 0 | I107: 0.001737 | J107: 0% | L107: 5.132 | S107: 0 | T107: 0.001737212243 | Z107: 5.132 | AA107: 0.000000 | AB107: 0.001737 | AC107: 0%
D108: HOMELAND SECURITY ADVISORY SYSTEM (HSAS)
A109: 6.000 | D109: Establish plans and protocols to respond to the National Terrorism Advisory System (NTAS) alert system | H109: =SUM(H110:H112) -> 0.0000 | I109: =SUM(I110:I112) -> 0.0558 | J109: =H109/I109 -> 0% | L109: 6.000 | Z109: 6.000 | AA109: =SUM(AA110:AA112) -> 0.000000 | AB109: =SUM(AB110:AB112) -> 0.03652 | AC109: =AA109/AB109 -> 0%
A110: 6.101 | B110: B | D110: Does the SSP contain or reference other documents identifying incremental actions (imminent or elevated) to be implemented for a NTAS threat? | E110: =+IF(Checklist!D115="",0,Checklist!D115) -> 0 | F110: =Weights!E110 -> 0.004390 | G110: =IF(Checklist!C115="X", 0, 1) -> 1 | H110: =E110*F110*G110 -> 0 | I110: =F110*G110*4 -> 0.017560 | J110: =H110/I110 -> 0% | L110: 6.101 | M110: =+IF(C110="T1",H110," ") ->  | N110: =+IF(C110="T1",I110," ") ->  | O110: =+IF(C110="T2",H110," ") ->  | P110: =+IF(C110="T2",I110," ") ->  | Q110: =+IF(C110="T3",H110," ") ->  | R110: =+IF(C110="T3",I110," ") ->  | S110: =+IF(C110="T4",H110," ") ->  | T110: =+IF(C110="T4",I110," ") ->  | U110: =+IF(C110="T5",H110," ") ->  | V110: =+IF(C110="T5",I110," ") ->  | W110: =+IF(C110="T6",H110," ") ->  | X110: =+IF(C110="T6",I110," ") ->  | Z110: 6.101 | AA110: =IF(B110="B",H110," ") -> 0.000000 | AB110: =IF(B110="B",I110," ") -> 0.017560 | AC110: =IF(AA110="NOT SCORED","NOT SCORED",IF(B110="B",AA110/AB110," ")) -> 0%
A111: 6.102 | B111: B | C111: T2 | D111: Does the agency have actionable operational response protocols for the specific threat scenarios from NTAS? | E111: =+IF(Checklist!D116="",0,Checklist!D116) -> 0 | F111: =Weights!E111 -> 0.004740 | G111: =IF(Checklist!C116="X", 0, 1) -> 1 | H111: 0 | I111: 0.018960 | J111: 0% | L111: 6.102 | M111: =+IF(C111="T1",H111," ") ->  | N111: =+IF(C111="T1",I111," ") ->  | O111: =+IF(C111="T2",H111," ") -> 0 | P111: =+IF(C111="T2",I111," ") -> 0.01896 | Q111: =+IF(C111="T3",H111," ") ->  | R111: =+IF(C111="T3",I111," ") ->  | S111: =+IF(C111="T4",H111," ") ->  | T111: =+IF(C111="T4",I111," ") ->  | U111: =+IF(C111="T5",H111," ") ->  | V111: =+IF(C111="T5",I111," ") ->  | W111: =+IF(C111="T6",H111," ") ->  | X111: =+IF(C111="T6",I111," ") ->  | Z111: 6.102 | AA111: =IF(B111="B",H111," ") -> 0.000000 | AB111: =IF(B111="B",I111," ") -> 0.018960 | AC111: 0%
A112: 6.103 | D112: Has the agency provided annual training and/or instruction focused on job function regarding the incremental activities to be performed by employees? | E112: =+IF(Checklist!D117="",0,Checklist!D117) -> 0 | F112: =Weights!E112 -> 0.004830 | G112: =IF(Checklist!C117="X", 0, 1) -> 1 | H112: 0 | I112: 0.019320 | J112: 0% | L112: 6.103 | Z112: 6.103 | AA112: =IF(B112="B",H112," ") ->  | AB112: =IF(B112="B",I112," ") -> 
D113: PUBLIC AWARENESS
A114: 7.000 | D114: Implement and reinforce a Public Security and Emergency Awareness program | H114: =SUM(H115:H126) -> 0.0000 | I114: =SUM(I115:I126) -> 0.0528 | J114: =H114/I114 -> 0% | L114: 7.000 | Z114: 7.000 | AA114: =SUM(AA115:AA126) -> 0.000000 | AB114: =SUM(AB115:AB126) -> 0.027546 | AC114: =AA114/AB114 -> 0%
A115: 7.101 | B115: B | D115: Has the transit agency developed and implemented a public security and emergency awareness program? | E115: =+IF(Checklist!D120="",0,Checklist!D120) -> 0 | F115: =Weights!E115 -> 0.001195 | G115: =IF(Checklist!C120="X", 0, 1) -> 1 | H115: =E115*F115*G115 -> 0 | I115: =F115*G115*4 -> 0.004782 | J115: =H115/I115 -> 0% | L115: 7.101 | M115: =+IF(C115="T1",H115," ") ->  | N115: =+IF(C115="T1",I115," ") ->  | O115: =+IF(C115="T2",H115," ") ->  | P115: =+IF(C115="T2",I115," ") ->  | Q115: =+IF(C115="T3",H115," ") ->  | R115: =+IF(C115="T3",I115," ") ->  | S115: =+IF(C115="T4",H115," ") ->  | T115: =+IF(C115="T4",I115," ") ->  | U115: =+IF(C115="T5",H115," ") ->  | V115: =+IF(C115="T5",I115," ") ->  | W115: =+IF(C115="T6",H115," ") ->  | X115: =+IF(C115="T6",I115," ") ->  | Z115: 7.101 | AA115: =IF(B115="B",H115," ") -> 0.000000 | AB115: =IF(B115="B",I115," ") -> 0.004782 | AC115: =IF(AA115="NOT SCORED","NOT SCORED",IF(B115="B",AA115/AB115," ")) -> 0%
A116: 7.102 | B116: B | C116: T6 | D116: Does the agency provide active public outreach for security awareness and emergency preparedness (e.g., Transit Watch, “If You See Something, Say Something”, message boards, brochures, channel cards, posters, fliers)? | E116: =+IF(Checklist!D121="",0,Checklist!D121) -> 0 | F116: =Weights!E116 -> 0.001186 | G116: =IF(Checklist!C121="X", 0, 1) -> 1 | H116: 0 | I116: 0.004742 | J116: 0% | L116: 7.102 | M116: =+IF(C116="T1",H116," ") ->  | N116: =+IF(C116="T1",I116," ") ->  | O116: =+IF(C116="T2",H116," ") ->  | P116: =+IF(C116="T2",I116," ") ->  | Q116: =+IF(C116="T3",H116," ") ->  | R116: =+IF(C116="T3",I116," ") ->  | S116: =+IF(C116="T4",H116," ") ->  | T116: =+IF(C116="T4",I116," ") ->  | U116: =+IF(C116="T5",H116," ") ->  | V116: =+IF(C116="T5",I116," ") ->  | W116: =+IF(C116="T6",H116," ") -> 0 | X116: =+IF(C116="T6",I116," ") -> 0.004742283063 | Z116: 7.102 | AA116: =IF(B116="B",H116," ") -> 0.000000 | AB116: =IF(B116="B",I116," ") -> 0.004742 | AC116: 0%
A117: 7.103 | C117: T6 | D117: Is the above consistent with agency's overall announcement program? | E117: =+IF(Checklist!D122="",0,Checklist!D122) -> 0 | F117: =Weights!E117 -> 0.001020 | G117: =IF(Checklist!C122="X", 0, 1) -> 1 | H117: 0 | I117: 0.004079 | J117: 0% | L117: 7.103 | W117: 0 | X117: 0.00407855392 | Z117: 7.103
A118: 7.104 | B118: B | C118: T6 | D118: Are general security awareness and emergency preparedness messages included in public announcement messages at stations and on board vehicles? | E118: =+IF(Checklist!D123="",0,Checklist!D123) -> 0 | F118: =Weights!E118 -> 0.001065 | G118: =IF(Checklist!C123="X", 0, 1) -> 1 | H118: 0 | I118: 0.004260 | J118: 0% | L118: 7.104 | W118: 0 | X118: 0.004259996327 | Z118: 7.104 | AA118: 0.000000 | AB118: 0.004260 | AC118: 0%
A119: 7.105 | B119: B | C119: T6 | D119: Are passengers urged to report unattended property, suspicious behavior, and security concerns to uniformed crew members, law enforcement or security personnel, and/or a contact telephone number? If so, summarize the type of materials used and content in the justification. | E119: =+IF(Checklist!D124="",0,Checklist!D124) -> 0 | F119: =Weights!E119 -> 0.001194 | G119: =IF(Checklist!C124="X", 0, 1) -> 1 | H119: 0 | I119: 0.004774 | J119: 0% | L119: 7.105 | W119: 0 | X119: 0.00477413738 | Z119: 7.105 | AA119: 0.000000 | AB119: 0.004774 | AC119: 0%
A120: 7.106 | B120: B | C120: T6 | D120: Does the agency have an appropriate mechanism in place for passengers to communicate an (e.g., 1-800 number, smart phone applications, social media, etc.) that can be called or used to report security concerns? If so, is this information indicated in public awareness materials and messages? | E120: =+IF(Checklist!D125="",0,Checklist!D125) -> 0 | F120: =Weights!E120 -> 0.001069 | G120: =IF(Checklist!C125="X", 0, 1) -> 1 | H120: =E120*F120*G120 -> 0 | I120: =F120*G120*4 -> 0.004276 | J120: =H120/I120 -> 0% | L120: 7.106 | M120: =+IF(C120="T1",H120," ") ->  | N120: =+IF(C120="T1",I120," ") ->  | O120: =+IF(C120="T2",H120," ") ->  | P120: =+IF(C120="T2",I120," ") ->  | Q120: =+IF(C120="T3",H120," ") ->  | R120: =+IF(C120="T3",I120," ") ->  | S120: =+IF(C120="T4",H120," ") ->  | T120: =+IF(C120="T4",I120," ") ->  | U120: =+IF(C120="T5",H120," ") ->  | V120: =+IF(C120="T5",I120," ") ->  | W120: =+IF(C120="T6",H120," ") -> 0 | X120: =+IF(C120="T6",I120," ") -> 0.004275877015 | Z120: 7.106 | AA120: =IF(B120="B",H120," ") -> 0.000000 | AB120: =IF(B120="B",I120," ") -> 0.004276 | AC120: =IF(AA120="NOT SCORED","NOT SCORED",IF(B120="B",AA120/AB120," ")) -> 0%
A121: 7.107 | D121: Does the agency issue public service announcements or press releases to social media (e.g. Twitter/ Facebook/etc., QRC codes, and/or apps for smart phones) regarding security and emergency protocols? | E121: =+IF(Checklist!D126="",0,Checklist!D126) -> 0 | F121: =Weights!E121 -> 0.001039 | G121: =IF(Checklist!C126="X", 0, 1) -> 1 | H121: 0 | I121: 0.004157 | J121: 0% | L121: 7.107 | Z121: 7.107
A122: 7.108 | C122: T6 | D122: Does the agency issue public service announcements or press releases to local media (e.g. newspaper, radio and/or television) regarding security or emergency protocols? | E122: =+IF(Checklist!D127="",0,Checklist!D127) -> 0 | F122: =Weights!E122 -> 0.001024 | G122: =IF(Checklist!C127="X", 0, 1) -> 1 | H122: 0 | I122: 0.004094 | J122: 0% | L122: 7.108 | W122: 0 | X122: 0.00409433495 | Z122: 7.108
A123: 7.109 | D123: Does the transit agency conduct a volunteer training program for non-employees to aid with system evacuations and emergency response? | E123: =+IF(Checklist!D128="",0,Checklist!D128) -> 0 | F123: =Weights!E123 -> 0.001090 | G123: =IF(Checklist!C128="X", 0, 1) -> 1 | H123: 0 | I123: 0.004362 | J123: 0% | L123: 7.109 | Z123: 7.109
A124: 7.110 | D124: Does the transit agency conduct an outreach program to enlist members of the public as security awareness volunteers, similar to Neighborhood Watch programs? | E124: =+IF(Checklist!D129="",0,Checklist!D129) -> 0 | F124: =Weights!E124 -> 0.001089 | G124: =IF(Checklist!C129="X", 0, 1) -> 1 | H124: 0 | I124: 0.004356 | J124: 0% | L124: 7.110 | Z124: 7.110
A125: 7.111 | B125: B | C125: T1 | D125: Do public awareness materials and/or messages inform passengers on the means to evacuate safely from transit vehicles and underwater/underground facilities? | E125: =+IF(Checklist!D130="",0,Checklist!D130) -> 0 | F125: =Weights!E125 -> 0.001178 | G125: =IF(Checklist!C130="X", 0, 1) -> 1 | H125: 0 | I125: 0.004712 | J125: 0% | L125: 7.111 | M125: 0 | N125: 0.004712 | Z125: 7.111 | AA125: 0.000000 | AB125: 0.004712 | AC125: 0%
A126: 7.112 | D126: Does the agency track and monitor customer complaints reported by passengers? | E126: =+IF(Checklist!D131="",0,Checklist!D131) -> 0 | F126: =Weights!E126 -> 0.001042 | G126: =IF(Checklist!C131="X", 0, 1) -> 1 | H126: =E126*F126*G126 -> 0 | I126: =F126*G126*4 -> 0.004169 | J126: =H126/I126 -> 0% | L126: 7.112 | M126: =+IF(C126="T1",H126," ") ->  | N126: =+IF(C126="T1",I126," ") ->  | O126: =+IF(C126="T2",H126," ") ->  | P126: =+IF(C126="T2",I126," ") ->  | Q126: =+IF(C126="T3",H126," ") ->  | R126: =+IF(C126="T3",I126," ") ->  | S126: =+IF(C126="T4",H126," ") ->  | T126: =+IF(C126="T4",I126," ") ->  | U126: =+IF(C126="T5",H126," ") ->  | V126: =+IF(C126="T5",I126," ") ->  | W126: =+IF(C126="T6",H126," ") ->  | X126: =+IF(C126="T6",I126," ") ->  | Z126: 7.112 | AA126: =IF(B126="B",H126," ") ->  | AB126: =IF(B126="B",I126," ") ->  | AC126: =IF(AA126="NOT SCORED","NOT SCORED",IF(B126="B",AA126/AB126," ")) -> 
D127: RISK MANAGEMENT
A128: 8.000 | D128: Establish and use a risk management process | H128: =SUM(H129:H135) -> 0.0000 | I128: =SUM(I129:I135) -> 0.0492 | J128: =H128/I128 -> 0% | L128: 8.000 | Z128: 8.000 | AA128: =SUM(AA129:AA135) -> 0.000000 | AB128: =SUM(AB129:AB135) -> 0.042280 | AC128: =AA128/AB128 -> 0%
A129: 8.101 | B129: B | C129: T2 | D129: Does the agency have a risk assessment process approved by its management, for managing threats and vulnerabilities? If so, summarize the process in the justification. | E129: =+IF(Checklist!D134="",0,Checklist!D134) -> 0 | F129: =Weights!E129 -> 0.001800 | G129: =IF(Checklist!C134="X", 0, 1) -> 1 | H129: =E129*F129*G129 -> 0 | I129: =F129*G129*4 -> 0.007200 | J129: =H129/I129 -> 0% | L129: 8.101 | M129: =+IF(C129="T1",H129," ") ->  | N129: =+IF(C129="T1",I129," ") ->  | O129: =+IF(C129="T2",H129," ") -> 0 | P129: =+IF(C129="T2",I129," ") -> 0.0072 | Q129: =+IF(C129="T3",H129," ") ->  | R129: =+IF(C129="T3",I129," ") ->  | S129: =+IF(C129="T4",H129," ") ->  | T129: =+IF(C129="T4",I129," ") ->  | U129: =+IF(C129="T5",H129," ") ->  | V129: =+IF(C129="T5",I129," ") ->  | W129: =+IF(C129="T6",H129," ") ->  | X129: =+IF(C129="T6",I129," ") ->  | Z129: 8.101 | AA129: =IF(B129="B",H129," ") -> 0.000000 | AB129: =IF(B129="B",I129," ") -> 0.007200 | AC129: =IF(AA129="NOT SCORED","NOT SCORED",IF(B129="B",AA129/AB129," ")) -> 0%
A130: 8.102 | B130: B | D130: Has the agency identified facilities and systems it considers to be its critical assets? | E130: =+IF(Checklist!D135="",0,Checklist!D135) -> 0 | F130: =Weights!E130 -> 0.001790 | G130: =IF(Checklist!C135="X", 0, 1) -> 1 | H130: 0 | I130: 0.007160 | J130: 0% | L130: 8.102 | M130: =+IF(C130="T1",H130," ") ->  | N130: =+IF(C130="T1",I130," ") ->  | O130: =+IF(C130="T2",H130," ") ->  | P130: =+IF(C130="T2",I130," ") ->  | Q130: =+IF(C130="T3",H130," ") ->  | R130: =+IF(C130="T3",I130," ") ->  | S130: =+IF(C130="T4",H130," ") ->  | T130: =+IF(C130="T4",I130," ") ->  | U130: =+IF(C130="T5",H130," ") ->  | V130: =+IF(C130="T5",I130," ") ->  | W130: =+IF(C130="T6",H130," ") ->  | X130: =+IF(C130="T6",I130," ") ->  | Z130: 8.102 | AA130: =IF(B130="B",H130," ") -> 0.000000 | AB130: =IF(B130="B",I130," ") -> 0.007160 | AC130: 0%
A131: 8.103 | B131: B | C131: T2 | D131: Has the agency had an internal or external vulnerability assessment on its critical assets within the past 3 years? Specify the dates of the most recent assessments and the entity(ies) that conducted the assessment(s). | E131: =+IF(Checklist!D136="",0,Checklist!D136) -> 0 | F131: =Weights!E131 -> 0.001750 | G131: =IF(Checklist!C136="X", 0, 1) -> 1 | H131: 0 | I131: 0.007000 | J131: 0% | L131: 8.103 | O131: 0 | P131: 0.007 | Z131: 8.103 | AA131: 0.000000 | AB131: 0.007000 | AC131: 0%
A132: 8.104 | B132: B | C132: T1 | D132: Has the agency had an internal or external Risk Assessment, analyzing threat, vulnerability, & consequence, for critical assets and infrastructure, and systems within the past 3 years? Have management and staff responsible for the risk assessment process been properly trained to manage the process? | E132: =+IF(Checklist!D137="",0,Checklist!D137) -> 0 | F132: =Weights!E132 -> 0.001770 | G132: =IF(Checklist!C137="X", 0, 1) -> 1 | H132: 0 | I132: 0.007080 | J132: 0% | L132: 8.104 | M132: 0 | N132: 0.007080 | Z132: 8.104 | AA132: 0.000000 | AB132: 0.007080 | AC132: 0%
A133: 8.105 | B133: B | C133: T2 | D133: Has the system implemented procedures to limit and monitor authorized access to underground and underwater tunnels? If so, summarize procedures in the justification. | E133: =+IF(Checklist!D138="",0,Checklist!D138) -> 0 | F133: =Weights!E133 -> 0.001720 | G133: =IF(Checklist!C138="X", 0, 1) -> 1 | H133: 0 | I133: 0.006880 | J133: 0% | L133: 8.105 | O133: 0 | P133: 0.00688 | Z133: 8.105 | AA133: 0.000000 | AB133: 0.006880 | AC133: 0%
A134: 8.106 | D134: Are security investments prioritized using information developed in the risk assessment process? | E134: =+IF(Checklist!D139="",0,Checklist!D139) -> 0 | F134: =Weights!E134 -> 0.001740 | G134: =IF(Checklist!C139="X", 0, 1) -> 1 | H134: 0 | I134: 0.006960 | J134: 0% | L134: 8.106 | Z134: 8.106
A135: 8.107 | B135: B | C135: T1 | D135: Upon request, has TSA been provided access to the agency's vulnerability assessments, Security Plan and related documents? | E135: =+IF(Checklist!D140="",0,Checklist!D140) -> 0 | F135: =Weights!E135 -> 0.001740 | G135: =IF(Checklist!C140="X", 0, 1) -> 1 | H135: 0 | I135: 0.006960 | J135: 0% | L135: 8.107 | M135: 0 | N135: 0.006960 | Z135: 8.107 | AA135: 0.000000 | AB135: 0.006960 | AC135: 0%
D136: ESTABLISH A RISK ASSESSMENT AND INFORMATION SHARING PROCESS
A137: 9.000 | D137: Establish and use an information sharing process for threat and intelligence information. | H137: =SUM(H138:H142) -> 0.0000 | I137: =SUM(I138:I142) -> 0.0387 | J137: =H137/I137 -> 0% | L137: 9.000 | Z137: 9.000 | AA137: =SUM(AA138:AA142) -> 0.000000 | AB137: =SUM(AB138:AB142) -> 0.023680 | AC137: =AA137/AB137 -> 0%
A138: 9.101 | B138: B | D138: Does the agency have a formalized process and procedures for reporting and exchange of threat and intelligence information with Federal, State, and/or local law enforcement agencies? | E138: =+IF(Checklist!D143="",0,Checklist!D143) -> 0 | F138: =Weights!E138 -> 0.002010 | G138: =IF(Checklist!C143="X", 0, 1) -> 1 | H138: =E138*F138*G138 -> 0 | I138: =F138*G138*4 -> 0.008040 | J138: =H138/I138 -> 0% | L138: 9.101 | M138: =+IF(C138="T1",H138," ") ->  | N138: =+IF(C138="T1",I138," ") ->  | O138: =+IF(C138="T2",H138," ") ->  | P138: =+IF(C138="T2",I138," ") ->  | Q138: =+IF(C138="T3",H138," ") ->  | R138: =+IF(C138="T3",I138," ") ->  | S138: =+IF(C138="T4",H138," ") ->  | T138: =+IF(C138="T4",I138," ") ->  | U138: =+IF(C138="T5",H138," ") ->  | V138: =+IF(C138="T5",I138," ") ->  | W138: =+IF(C138="T6",H138," ") ->  | X138: =+IF(C138="T6",I138," ") ->  | Z138: 9.101 | AA138: =IF(B138="B",H138," ") -> 0.000000 | AB138: =IF(B138="B",I138," ") -> 0.008040 | AC138: =IF(AA138="NOT SCORED","NOT SCORED",IF(B138="B",AA138/AB138," ")) -> 0%
A139: 9.102 | B139: B | C139: T2 | D139: Does the system report threat and intelligence information directly to FBI Joint Terrorism Task Force (JTTF) or other regional anti-terrorism task force? | E139: =+IF(Checklist!D144="",0,Checklist!D144) -> 0 | F139: =Weights!E139 -> 0.001950 | G139: =IF(Checklist!C144="X", 0, 1) -> 1 | H139: 0 | I139: 0.007800 | J139: 0% | L139: 9.102 | M139: =+IF(C139="T1",H139," ") ->  | N139: =+IF(C139="T1",I139," ") ->  | O139: =+IF(C139="T2",H139," ") -> 0 | P139: =+IF(C139="T2",I139," ") -> 0.0078 | Q139: =+IF(C139="T3",H139," ") ->  | R139: =+IF(C139="T3",I139," ") ->  | S139: =+IF(C139="T4",H139," ") ->  | T139: =+IF(C139="T4",I139," ") ->  | U139: =+IF(C139="T5",H139," ") ->  | V139: =+IF(C139="T5",I139," ") ->  | W139: =+IF(C139="T6",H139," ") ->  | X139: =+IF(C139="T6",I139," ") ->  | Z139: 9.102 | AA139: =IF(B139="B",H139," ") -> 0.000000 | AB139: =IF(B139="B",I139," ") -> 0.007800 | AC139: 0%
A140: 9.103 | B140: B | C140: T2 | D140: Does the system have a protocol to report threats or significant security concerns to appropriate law enforcement authorities, and TSA's Transportation Security Operations Center (TSOC)? | E140: =+IF(Checklist!D145="",0,Checklist!D145) -> 0 | F140: =Weights!E140 -> 0.001960 | G140: =IF(Checklist!C145="X", 0, 1) -> 1 | H140: 0 | I140: 0.007840 | J140: 0% | L140: 9.103 | O140: 0 | P140: 0.00784 | Z140: 9.103 | AA140: =IF(B140="B",H140," ") -> 0.000000 | AB140: =IF(B140="B",I140," ") -> 0.007840 | AC140: 0%
A141: 9.104 | D141: Does the agency routinely receive threat and intelligence information directly from any Federal government agency, State Homeland Security Office, Regional or State Intelligence Fusion Center, PT-ISAC, or other transit agencies? | E141: =+IF(Checklist!D146="",0,Checklist!D146) -> 0 | F141: =Weights!E141 -> 0.001860 | G141: =IF(Checklist!C146="X", 0, 1) -> 1 | H141: 0 | I141: 0.007440 | J141: 0% | L141: 9.104 | Z141: 9.104 | AA141: =IF(B141="B",H141," ") ->  | AB141: =IF(B141="B",I141," ") -> 
A142: 9.105 | D142: =IF('Profile Sheet'!E14="X","N/A Not Governed By 49 CFR Part 659","Does the agency report their NTA security data to FTA as required by 49 CFR 659?") -> Does the agency report their NTA security data to FTA as required by 49 CFR 659? | E142: =+IF(Checklist!D147="",0,Checklist!D147) -> 0 | F142: =Weights!E142 -> 0.001900 | G142: =IF(Checklist!C147="X", 0, 1) -> 1 | H142: 0 | I142: 0.007600 | J142: 0% | L142: 9.105 | Z142: 9.105 | AA142: =IF(B142="B",H142," ") ->  | AB142: =IF(B142="B",I142," ") -> 
D143: DRILLS AND EXERCISES
A144: 10.000 | D144: Conduct Tabletop and Functional Drills | H144: =SUM(H145:H157) -> 0.0000 | I144: =SUM(I145:I157) -> 0.0578 | J144: =H144/I144 -> 0% | L144: 10.000 | Z144: 10.000 | AA144: =SUM(AA145:AA157) -> 0.000000 | AB144: =SUM(AB145:AB157) -> 0.035720 | AC144: =AA144/AB144 -> 0%
A145: 10.101 | B145: B | D145: Does the agency’s System Safety Program Plan (SSPP) contain or reference a document describing the process used by the agency to develop an approved, coordinated schedule for all emergency management program activities, including local/regional emergency planning and participation in exercises and drills? | E145: =+IF(Checklist!D150="",0,Checklist!D150) -> 0 | F145: =Weights!E144 -> 0.001160 | G145: =IF(Checklist!C150="X", 0, 1) -> 1 | H145: =E145*F145*G145 -> 0 | I145: =F145*G145*4 -> 0.004640 | J145: =H145/I145 -> 0% | L145: 10.101 | M145: =+IF(C145="T1",H145," ") ->  | N145: =+IF(C145="T1",I145," ") ->  | O145: =+IF(C145="T2",H145," ") ->  | P145: =+IF(C145="T2",I145," ") ->  | Q145: =+IF(C145="T3",H145," ") ->  | R145: =+IF(C145="T3",I145," ") ->  | S145: =+IF(C145="T4",H145," ") ->  | T145: =+IF(C145="T4",I145," ") ->  | U145: =+IF(C145="T5",H145," ") ->  | V145: =+IF(C145="T5",I145," ") ->  | W145: =+IF(C145="T6",H145," ") ->  | X145: =+IF(C145="T6",I145," ") ->  | Z145: 10.101 | AA145: =IF(B145="B",H145," ") -> 0.000000 | AB145: =IF(B145="B",I145," ") -> 0.004640 | AC145: 0%
A146: 10.102 | B146: B | D146: Does the agency’s SSPP or SSP describe or reference how the agency performs its emergency planning responsibilities and requirements regarding emergency drills and exercises? | E146: =+IF(Checklist!D151="",0,Checklist!D151) -> 0 | F146: =Weights!E145 -> 0.001140 | G146: =IF(Checklist!C151="X", 0, 1) -> 1 | H146: 0 | I146: 0.004560 | J146: 0% | L146: 10.102 | M146: =+IF(C146="T1",H146," ") ->  | N146: =+IF(C146="T1",I146," ") ->  | O146: =+IF(C146="T2",H146," ") ->  | P146: =+IF(C146="T2",I146," ") ->  | Q146: =+IF(C146="T3",H146," ") ->  | R146: =+IF(C146="T3",I146," ") ->  | S146: =+IF(C146="T4",H146," ") ->  | T146: =+IF(C146="T4",I146," ") ->  | U146: =+IF(C146="T5",H146," ") ->  | V146: =+IF(C146="T5",I146," ") ->  | W146: =+IF(C146="T6",H146," ") ->  | X146: =+IF(C146="T6",I146," ") ->  | Z146: 10.102 | AA146: =IF(B146="B",H146," ") -> 0.000000 | AB146: =IF(B146="B",I146," ") -> 0.004560 | AC146: 0%
A147: 10.103 | B147: B | C147: T5 | D147: Does the agency evaluate its emergency preparedness by using annual field exercises, tabletop exercises, and/or drills? If so, please summarize the exercise events held in the past year. | E147: =+IF(Checklist!D152="",0,Checklist!D152) -> 0 | F147: =Weights!E146 -> 0.001170 | G147: =IF(Checklist!C152="X", 0, 1) -> 1 | H147: 0 | I147: 0.004680 | J147: 0% | L147: 10.103 | U147: 0 | V147: 0.00468 | Z147: 10.103 | AA147: 0.000000 | AB147: 0.004680 | AC147: 0%
A148: 10.104 | B148: B | D148: Does the agency's SSPP or a related document include a requirement for annual field exercises, tabletops and drills? | E148: =+IF(Checklist!D153="",0,Checklist!D153) -> 0 | F148: =Weights!E147 -> 0.001000 | G148: =IF(Checklist!C153="X", 0, 1) -> 1 | H148: 0 | I148: 0.004000 | J148: 0% | L148: 10.104 | Z148: 10.104 | AA148: 0.000000 | AB148: 0.004000 | AC148: 0%
A149: 10.105 | B149: B | D149: Does the agency’s SSPP or SSP describe or reference how the agency documents the results of its emergency preparedness evaluations (i.e., briefings, after action reports and implementation of findings)? | E149: =+IF(Checklist!D154="",0,Checklist!D154) -> 0 | F149: =Weights!E148 -> 0.001140 | G149: =IF(Checklist!C154="X", 0, 1) -> 1 | H149: 0 | I149: 0.004560 | J149: 0% | L149: 10.105 | Z149: 10.105 | AA149: 0.000000 | AB149: 0.004560 | AC149: 0%
A150: 10.106 | D150: Does the agency’s SSPP or a related document describe or reference its program for providing employee training on emergency response protocols and procedures? | E150: =+IF(Checklist!D155="",0,Checklist!D155) -> 0 | F150: =Weights!E149 -> 0.001130 | G150: =IF(Checklist!C155="X", 0, 1) -> 1 | H150: 0 | I150: 0.004520 | J150: 0% | L150: 10.106 | Z150: 10.106
A151: 10.107 | B151: B | D151: Does the agency participate as an active player in full-scale, regional exercises held at least annually? | E151: =+IF(Checklist!D156="",0,Checklist!D156) -> 0 | F151: =Weights!E150 -> 0.001010 | G151: =IF(Checklist!C156="X", 0, 1) -> 1 | H151: 0 | I151: 0.004040 | J151: 0% | L151: 10.107 | Z151: 10.107 | AA151: 0.000000 | AB151: 0.004040 | AC151: 0%
A152: 10.108 | C152: T5 | D152: In the last year, has the agency conducted and/or participated in a drill, tabletop exercise, and/or field exercise including scenarios involving (i) IED's and (ii) WMD (chemical, biological, radiological, nuclear) with other transit agencies and first responders (e.g., NTAS scenarios)? | E152: =+IF(Checklist!D157="",0,Checklist!D157) -> 0 | F152: =Weights!E151 -> 0.000990 | G152: =IF(Checklist!C157="X", 0, 1) -> 1 | H152: 0 | I152: 0.003960 | J152: 0% | L152: 10.108 | U152: 0 | V152: 0.00396 | Z152: 10.108
A153: 10.109 | C153: T5 | D153: In the last year, has the agency reviewed results and prepared after-action reports to assess performance and develop lessons learned for all drills, tabletop, and/or field exercises? | E153: =+IF(Checklist!D158="",0,Checklist!D158) -> 0 | F153: =Weights!E152 -> 0.001110 | G153: =IF(Checklist!C158="X", 0, 1) -> 1 | H153: 0 | I153: 0.004440 | J153: 0% | L153: 10.109 | U153: 0 | V153: 0.00444 | Z153: 10.109
A154: 10.110 | C154: T5 | D154: In the last 12 months, has the agency updated plans, protocols and processes to incorporate after-action report recommendations/findings and corrective actions? If so, summarize the actions taken in the justification. | E154: =+IF(Checklist!D159="",0,Checklist!D159) -> 0 | F154: =Weights!E153 -> 0.001160 | G154: =IF(Checklist!C159="X", 0, 1) -> 1 | H154: 0 | I154: 0.004640 | J154: 0% | L154: 10.110 | U154: 0 | V154: 0.00464 | Z154: 10.110
A155: 10.111 | D155: Has the agency established metrics to assess its performance during emergency exercises and to measure improvements? | E155: =+IF(Checklist!D160="",0,Checklist!D160) -> 0 | F155: =Weights!E154 -> 0.001130 | G155: =IF(Checklist!C160="X", 0, 1) -> 1 | H155: 0 | I155: 0.004520 | J155: 0% | L155: 10.111 | Z155: 10.111
A156: 10.112 | B156: B | C156: T1 | D156: Does the system conduct drills and exercises of its security and emergency response plans to test capabilities of i.) employees and ii.) first responders to operate effectively in underwater/underground infrastructure and other critical systems? | E156: =+IF(Checklist!D161="",0,Checklist!D161) -> 0 | F156: =Weights!E155 -> 0.001140 | G156: =IF(Checklist!C161="X", 0, 1) -> 1 | H156: 0 | I156: 0.004560 | J156: 0% | L156: 10.112 | M156: 0 | N156: 0.004560 | Z156: 10.112 | AA156: 0.000000 | AB156: 0.004560 | AC156: 0%
A157: 10.113 | B157: B | C157: T5 | D157: Does the transit system integrate local and regional first responders (law enforcement, firefighters, emergency medical teams) in drills, tabletop exercises, and/or field exercises? If so, summarize each joint event and state when it took place. | E157: =+IF(Checklist!D162="",0,Checklist!D162) -> 0 | F157: =Weights!E156 -> 0.001170 | G157: =IF(Checklist!C162="X", 0, 1) -> 1 | H157: 0 | I157: 0.004680 | J157: 0% | L157: 10.113 | U157: 0 | V157: 0.00468 | Z157: 10.113 | AA157: 0.000000 | AB157: 0.004680 | AC157: 0%
A158: 11.000 | D158: Developing a Comprehensive Cyber Security Strategy | H158: =SUM(H159:H165) -> 0.0000 | I158: =SUM(I159:I165) -> 0.0600 | J158: =H158/I158 -> 0% | L158: 11.000 | Z158: 11.000 | AA158: =SUM(AA159:AA165) -> 0.000000 | AB158: =SUM(AB159:AB165) -> 0.017040 | AC158: =AA158/AB158 -> 0%
A159: 11.101 | B159: B | D159: Has the agency conducted a risk assessment to identify operational control and communication/business enterprise IT assets and potential vulnerabilities? | E159: =+IF(Checklist!D164="",0,Checklist!D164) -> 0 | F159: =Weights!E158 -> 0.002137 | G159: =IF(Checklist!C164="X", 0, 1) -> 1 | H159: =E159*F159*G159 -> 0 | I159: =F159*G159*4 -> 0.008548 | J159: =H159/I159 -> 0% | L159: 11.101 | M159: =+IF(C159="T1",H159," ") ->  | N159: =+IF(C159="T1",I159," ") ->  | O159: =+IF(C159="T2",H159," ") ->  | P159: =+IF(C159="T2",I159," ") ->  | Q159: =+IF(C159="T3",H159," ") ->  | R159: =+IF(C159="T3",I159," ") ->  | S159: =+IF(C159="T4",H159," ") ->  | T159: =+IF(C159="T4",I159," ") ->  | U159: =+IF(C159="T5",H159," ") ->  | V159: =+IF(C159="T5",I159," ") ->  | W159: =+IF(C159="T6",H159," ") ->  | X159: =+IF(C159="T6",I159," ") ->  | Z159: 11.101 | AA159: =IF(B159="B",H159," ") -> 0.000000 | AB159: =IF(B159="B",I159," ") -> 0.008548 | AC159: 0%
A160: 11.102 | D160: Has the agency implemented protocols to ensure that all IT facilities (e.g., data centers, server rooms, etc.) and equipment are properly secured to guard against internal or external threats or attacks? | E160: =+IF(Checklist!D165="",0,Checklist!D165) -> 0 | F160: =Weights!E159 -> 0.002186 | G160: =IF(Checklist!C165="X", 0, 1) -> 1 | H160: 0 | I160: 0.008744 | J160: 0% | L160: 11.102 | M160: =+IF(C160="T1",H160," ") ->  | N160: =+IF(C160="T1",I160," ") ->  | O160: =+IF(C160="T2",H160," ") ->  | P160: =+IF(C160="T2",I160," ") ->  | Q160: =+IF(C160="T3",H160," ") ->  | R160: =+IF(C160="T3",I160," ") ->  | S160: =+IF(C160="T4",H160," ") ->  | T160: =+IF(C160="T4",I160," ") ->  | U160: =+IF(C160="T5",H160," ") ->  | V160: =+IF(C160="T5",I160," ") ->  | W160: =+IF(C160="T6",H160," ") ->  | X160: =+IF(C160="T6",I160," ") ->  | Z160: 11.102 | AA160: =IF(B160="B",H160," ") ->  | AB160: =IF(B160="B",I160," ") -> 
A161: 11.103 | D161: Has a written strategy been developed and integrated into the overall security program to mitigate the cyber risk identified? | E161: =+IF(Checklist!D166="",0,Checklist!D166) -> 0 | F161: =Weights!E160 -> 0.002108 | G161: =IF(Checklist!C166="X", 0, 1) -> 1 | H161: 0 | I161: 0.008432 | J161: 0% | L161: 11.103 | Z161: 11.103
A162: 11.104 | D162: Does the agency have a designated representative to secure the internal network through appropriate access controls for employees, a strong authentication (i.e., password) policy, encrypting sensitive data, and employing network security infrastructure (example: firewalls, intrusion detection systems, IT security audits, antivirus, etc.)? | E162: =+IF(Checklist!D167="",0,Checklist!D167) -> 0 | F162: =Weights!E161 -> 0.002166 | G162: =IF(Checklist!C167="X", 0, 1) -> 1 | H162: 0 | I162: 0.008664 | J162: 0% | L162: 11.104 | Z162: 11.104
A163: 11.105 | D163: Does the agency ensure that recurring cyber security training reinforces security roles, responsibilities, and duties of employees at all levels to protect against and recognize cyber threats? | E163: =+IF(Checklist!D168="",0,Checklist!D168) -> 0 | F163: =Weights!E162 -> 0.002123 | G163: =IF(Checklist!C168="X", 0, 1) -> 1 | H163: 0 | I163: 0.008492 | J163: 0% | L163: 11.105 | Z163: 11.105
A164: 11.106 | B164: B | D164: Has the agency established a cyber-incident response and reporting protocol? | E164: =+IF(Checklist!D169="",0,Checklist!D169) -> 0 | F164: =Weights!E163 -> 0.002123 | G164: =IF(Checklist!C169="X", 0, 1) -> 1 | H164: 0 | I164: 0.008492 | J164: 0% | L164: 11.106 | Z164: 11.106 | AA164: 0.000000 | AB164: 0.008492 | AC164: 0%
A165: 11.107 | D165: Is the agency aware of and using available resources (e.g., standards, PT-ISAC, US CERT, National Cyber Security Communication and Integration Center, etc.)? | E165: =+IF(Checklist!D170="",0,Checklist!D170) -> 0 | F165: =Weights!E164 -> 0.002148 | G165: =IF(Checklist!C170="X", 0, 1) -> 1 | H165: 0 | I165: 0.008592 | J165: 0% | L165: 11.107 | Z165: 11.107
D166: FACILITY SECURITY AND ACCESS CONTROLS
A167: 12.000 | D167: Control Access to Security Critical Facilities with ID badges for all visitors, employees and contractors | H167: =SUM(H168:H194) -> 0.0000 | I167: =SUM(I168:I194) -> 0.0565 | J167: =H167/I167 -> 0% | L167: 12.000 | Z167: 12.000 | AA167: =SUM(AA168:AA194) -> 0.000000 | AB167: =SUM(AB168:AB194) -> 0.017332 | AC167: =AA167/AB167 -> 0%
A168: 12.101 | B168: B | D168: Have assets and facilities requiring restricted access been identified? | E168: =+IF(Checklist!D173="",0,Checklist!D173) -> 0 | F168: =Weights!E167 -> 0.000549 | G168: =IF(Checklist!C173="X", 0, 1) -> 1 | H168: =E168*F168*G168 -> 0 | I168: =F168*G168*4 -> 0.002196 | J168: =H168/I168 -> 0% | L168: 12.101 | M168: =+IF(C168="T1",H168," ") ->  | N168: =+IF(C168="T1",I168," ") ->  | O168: =+IF(C168="T2",H168," ") ->  | P168: =+IF(C168="T2",I168," ") ->  | Q168: =+IF(C168="T3",H168," ") ->  | R168: =+IF(C168="T3",I168," ") ->  | S168: =+IF(C168="T4",H168," ") ->  | T168: =+IF(C168="T4",I168," ") ->  | U168: =+IF(C168="T5",H168," ") ->  | V168: =+IF(C168="T5",I168," ") ->  | W168: =+IF(C168="T6",H168," ") ->  | X168: =+IF(C168="T6",I168," ") ->  | Z168: 12.101 | AA168: =IF(B168="B",H168," ") -> 0.000000 | AB168: =IF(B168="B",I168," ") -> 0.002196 | AC168: =IF(AA168="NOT SCORED","NOT SCORED",IF(B168="B",AA168/AB168," ")) -> 0%
A169: 12.102 | B169: B | D169: Are ID badges or other measures employed to restrict access to facilities not open to the public? | E169: =+IF(Checklist!D174="",0,Checklist!D174) -> 0 | F169: =Weights!E168 -> 0.000541 | G169: =IF(Checklist!C174="X", 0, 1) -> 1 | H169: 0 | I169: 0.002164 | J169: 0% | L169: 12.102 | M169: =+IF(C169="T1",H169," ") ->  | N169: =+IF(C169="T1",I169," ") ->  | O169: =+IF(C169="T2",H169," ") ->  | P169: =+IF(C169="T2",I169," ") ->  | Q169: =+IF(C169="T3",H169," ") ->  | R169: =+IF(C169="T3",I169," ") ->  | S169: =+IF(C169="T4",H169," ") ->  | T169: =+IF(C169="T4",I169," ") ->  | U169: =+IF(C169="T5",H169," ") ->  | V169: =+IF(C169="T5",I169," ") ->  | W169: =+IF(C169="T6",H169," ") ->  | X169: =+IF(C169="T6",I169," ") ->  | Z169: 12.102 | AA169: =IF(B169="B",H169," ") -> 0.000000 | AB169: =IF(B169="B",I169," ") -> 0.002164 | AC169: 0%
A170: 12.103 | B170: B | C170: T2 | D170: Has the transit agency developed and implemented procedures to monitor, update and document access control (e.g. card key, ID badges, keys, safe combinations, etc.)? | E170: =+IF(Checklist!D175="",0,Checklist!D175) -> 0 | F170: =Weights!E169 -> 0.000541 | G170: =IF(Checklist!C175="X", 0, 1) -> 1 | H170: 0 | I170: 0.002164 | J170: 0% | L170: 12.103 | O170: 0 | P170: 0.002164 | Z170: 12.103 | AA170: 0.000000 | AB170: 0.002164 | AC170: 0%
A171: 12.104 | B171: B | D171: Does the agency have procedures to issue ID badges for visitors and contractors? | E171: =+IF(Checklist!D176="",0,Checklist!D176) -> 0 | F171: =Weights!E170 -> 0.000543 | G171: =IF(Checklist!C176="X", 0, 1) -> 1 | H171: 0 | I171: 0.002172 | J171: 0% | L171: 12.104 | Z171: 12.104 | AA171: 0.000000 | AB171: 0.002172 | AC171: 0%
A172: 12.105 | D172: Does the agency require escorts for visitors accessing non-public areas? | E172: =+IF(Checklist!D177="",0,Checklist!D177) -> 0 | F172: =Weights!E171 -> 0.000541 | G172: =IF(Checklist!C177="X", 0, 1) -> 1 | H172: 0 | I172: 0.002164 | J172: 0% | L172: 12.105 | Z172: 12.105
A173: 12.106 | D173: Is CCTV equipment installed in transit agency facilities? | E173: =+IF(Checklist!D178="",0,Checklist!D178) -> 0 | F173: =Weights!E172 -> 0.000541 | G173: =IF(Checklist!C178="X", 0, 1) -> 1 | H173: 0 | I173: 0.002164 | J173: 0% | L173: 12.106 | Z173: 12.106
A174: 12.107 | D174: Is CCTV equipment protecting critical assets interfaced with an access control system? | E174: =+IF(Checklist!D179="",0,Checklist!D179) -> 0 | F174: =Weights!E173 -> 0.000539 | G174: =IF(Checklist!C179="X", 0, 1) -> 1 | H174: 0 | I174: 0.002156 | J174: 0% | L174: 12.107 | Z174: 12.107
A175: 12.108 | D175: Is CCTV equipment installed on transit vehicles? | E175: =+IF(Checklist!D180="",0,Checklist!D180) -> 0 | F175: =Weights!E174 -> 0.000487 | G175: =IF(Checklist!C180="X", 0, 1) -> 1 | H175: 0 | I175: 0.001948 | J175: 0% | L175: 12.108 | Z175: 12.108
A176: 12.109 | D176: Are Crime Prevention through Environmental Design (CPTED) and technology (e.g., CCTV, access control, intrusion detection, bollards, etc.) incorporated into design criteria for all new and/or existing capital projects? | E176: =+IF(Checklist!D181="",0,Checklist!D181) -> 0 | F176: =Weights!E175 -> 0.000532 | G176: =IF(Checklist!C181="X", 0, 1) -> 1 | H176: 0 | I176: 0.002128 | J176: 0% | L176: 12.109 | Z176: 12.109
A177: 12.110 | D177: Based on the risk assessment, does the agency use fencing, barriers, and/or intrusion detection to protect against unauthorized entry into stations, facilities, and other identified critical assets? | E177: =+IF(Checklist!D182="",0,Checklist!D182) -> 0 | F177: =Weights!E176 -> 0.000532 | G177: =IF(Checklist!C182="X", 0, 1) -> 1 | H177: 0 | I177: 0.002128 | J177: 0% | L177: 12.110 | Z177: 12.110
A178: 12.111 | B178: B | C178: T2 | D178: Has the system implemented protective measures to secure high risk/high consequence assets and systems identified in risk assessments? Examples of protective measures include but are not limited to CCTV, intrusion detection systems, smart camera technology, fencing, enhanced lighting, access control, LE patrols, K-9s, protection of ventilation systems. If protective measures for this infrastructure are employed, summarize type and location in in the justification. | E178: =+IF(Checklist!D183="",0,Checklist!D183) -> 0 | F178: =Weights!E177 -> 0.000540 | G178: =IF(Checklist!C183="X", 0, 1) -> 1 | H178: 0 | I178: 0.002160 | J178: 0% | L178: 12.111 | O178: 0 | P178: 0.00216 | Z178: 12.111 | AA178: 0.000000 | AB178: 0.002160 | AC178: 0%
A179: 12.112 | D179: Does the transit agency monitor a network of security, fire, duress, intrusion, utility and internal 911 alarm systems? | E179: =+IF(Checklist!D184="",0,Checklist!D184) -> 0 | F179: =Weights!E178 -> 0.000528 | G179: =IF(Checklist!C184="X", 0, 1) -> 1 | H179: 0 | I179: 0.002112 | J179: 0% | L179: 12.112 | Z179: 12.112
A180: 12.113 | D180: Are emergency call boxes provided for passengers? | E180: =+IF(Checklist!D185="",0,Checklist!D185) -> 0 | F180: =Weights!E179 -> 0.000481 | G180: =IF(Checklist!C185="X", 0, 1) -> 1 | H180: 0 | I180: 0.001924 | J180: 0% | L180: 12.113 | Z180: 12.113
A181: 12.114 | D181: Do transit agency personnel administer an automated employee access control system and perform corrective analysis of security breaches? | E181: =+IF(Checklist!D186="",0,Checklist!D186) -> 0 | F181: =Weights!E180 -> 0.000540 | G181: =IF(Checklist!C186="X", 0, 1) -> 1 | H181: 0 | I181: 0.002160 | J181: 0% | L181: 12.114 | Z181: 12.114
A182: 12.115 | D182: Does the agency have policies and procedures for screening of mail and/or outside deliveries? | E182: =+IF(Checklist!D187="",0,Checklist!D187) -> 0 | F182: =Weights!E181 -> 0.000508 | G182: =IF(Checklist!C187="X", 0, 1) -> 1 | H182: 0 | I182: 0.002032 | J182: 0% | L182: 12.115 | Z182: 12.115
A183: 12.116 | D183: Have locks, bullet resistant materials and anti-fragmentation materials been installed/used at critical locations? | E183: =+IF(Checklist!D188="",0,Checklist!D188) -> 0 | F183: =Weights!E182 -> 0.000525 | G183: =IF(Checklist!C188="X", 0, 1) -> 1 | H183: 0 | I183: 0.002100 | J183: 0% | L183: 12.116 | Z183: 12.116
A184: 12.117 | D184: Does the agency use National Fire Protection Association (NFPA) Standard 130 or equivalent to evaluate fire/life safety in station design or modification (including fire detection systems, firewalls and flame-resistant materials, back-up powered emergency lighting, defaults in turnstile and other systems supporting emergency exists, and pre-recorded public announcements)? | E184: =+IF(Checklist!D189="",0,Checklist!D189) -> 0 | F184: =Weights!E183 -> 0.000499 | G184: =IF(Checklist!C189="X", 0, 1) -> 1 | H184: 0 | I184: 0.001996 | J184: 0% | L184: 12.117 | Z184: 12.117
A185: 12.118 | D185: Is directional signage with adequate lighting provided in a consistent manner in all stations, both to provide orientation and to support emergency evacuation? | E185: =+IF(Checklist!D190="",0,Checklist!D190) -> 0 | F185: =Weights!E184 -> 0.000532 | G185: =IF(Checklist!C190="X", 0, 1) -> 1 | H185: 0 | I185: 0.002128 | J185: 0% | L185: 12.118 | Z185: 12.118
A186: 12.119 | D186: Are gates and locks used on all facility doors to prevent unauthorized access? | E186: =+IF(Checklist!D191="",0,Checklist!D191) -> 0 | F186: =Weights!E185 -> 0.000539 | G186: =IF(Checklist!C191="X", 0, 1) -> 1 | H186: 0 | I186: 0.002156 | J186: 0% | L186: 12.119 | Z186: 12.119
A187: 12.120 | D187: Are keys controlled through an established program managed by the security/police function? | E187: =+IF(Checklist!D192="",0,Checklist!D192) -> 0 | F187: =Weights!E186 -> 0.000531 | G187: =IF(Checklist!C192="X", 0, 1) -> 1 | H187: 0 | I187: 0.002124 | J187: 0% | L187: 12.120 | Z187: 12.120
A188: 12.121 | B188: B | D188: Are gates and locks also used to close down system facilities after operating hours? | E188: =+IF(Checklist!D193="",0,Checklist!D193) -> 0 | F188: =Weights!E187 -> 0.000540 | G188: =IF(Checklist!C193="X", 0, 1) -> 1 | H188: 0 | I188: 0.002160 | J188: 0% | L188: 12.121 | Z188: 12.121 | AA188: 0.000000 | AB188: 0.002160 | AC188: 0%
A189: 12.122 | D189: Do transit vehicles have radios, silent alarms, and/or passenger communication systems? | E189: =+IF(Checklist!D194="",0,Checklist!D194) -> 0 | F189: =Weights!E188 -> 0.000526 | G189: =IF(Checklist!C194="X", 0, 1) -> 1 | H189: 0 | I189: 0.002104 | J189: 0% | L189: 12.122 | Z189: 12.122
A190: 12.123 | D190: Does the transit agency use graffiti-resistant/etch-resistant materials for walls, ceilings, and windows? | E190: =+IF(Checklist!D195="",0,Checklist!D195) -> 0 | F190: =Weights!E189 -> 0.000403 | G190: =IF(Checklist!C195="X", 0, 1) -> 1 | H190: 0 | I190: 0.001612 | J190: 0% | L190: 12.123 | Z190: 12.123
A191: 12.124 | B191: B | D191: Are Uninterruptible Power Supply (UPS) or redundant power sources provided for safety and security of critical equipment, such as but not limited to: exit and platform lighting; parking lot lighting; ancillary space and shop lighting; intrusion detection (alarmed rooms and spaces, fare collection equipment, etc.); fire detection, alarm and suppression systems; public address (shop and public areas); call-for-aid telephones; CCTV; emergency trip stations; vital train control functions; etc.? | E191: =+IF(Checklist!D196="",0,Checklist!D196) -> 0 | F191: =Weights!E190 -> 0.000538 | G191: =IF(Checklist!C196="X", 0, 1) -> 1 | H191: 0 | I191: 0.002152 | J191: 0% | L191: 12.124 | Z191: 12.124 | AA191: 0.000000 | AB191: 0.002152 | AC191: 0%
A192: 12.125 | D192: At passenger stations at which a vulnerability assessment has identified a significant risk, and to the extent practicable, has the owner/operator removed trash receptacles and other non-essential receptacles or containers (with the exception of bomb resistant receptacles or clear plastic containers) from the platform areas of passenger terminals and stations? | E192: =+IF(Checklist!D197="",0,Checklist!D197) -> 0 | F192: =Weights!E191 -> 0.000467 | G192: =IF(Checklist!C197="X", 0, 1) -> 1 | H192: 0 | I192: 0.001868 | J192: 0% | L192: 12.125 | Z192: 12.125
A193: 12.126 | B193: B | D193: Does the agency employ specific protective measures for all critical infrastructure (e.g., tunnels, bridges, stations, control centers, etc) identified through the risk assessment particularly at access points and ventilation infrastructure in place and maintained in optimal condition? Examples of protective measures include, but are not limited to, CCTV, intrusion detection systems, smart camera technology, fencing, lighting, access control, law enforcement patrols, canine patrols, physical protection for ventilation systems. If protective measures for this infrastructure are employed, summarize type and location in the justification. | E193: =+IF(Checklist!D198="",0,Checklist!D198) -> 0 | F193: =Weights!E192 -> 0.000541 | G193: =IF(Checklist!C198="X", 0, 1) -> 1 | H193: 0 | I193: 0.002164 | J193: 0% | L193: 12.126 | Z193: 12.126 | AA193: 0.000000 | AB193: 0.002164 | AC193: 0%
A194: 12.127 | C194: T1 | D194: Does the agency have or utilize explosive detection canine teams, either maintained by the system or made available from other law enforcement agencies? If so, has the system implemented procedures for reporting of and response to positive reactions by the canine? | E194: =+IF(Checklist!D199="",0,Checklist!D199) -> 0 | F194: =Weights!E193 -> 0.000529 | G194: =IF(Checklist!C199="X", 0, 1) -> 1 | H194: 0 | I194: 0.002116 | J194: 0% | L194: 12.127 | M194: 0 | N194: 0.002116 | Z194: 12.127
A195: 13.000 | D195: Conduct Physical Security Inspections | H195: =SUM(H196:H204) -> 0.0000 | I195: =SUM(I196:I204) -> 0.0626 | J195: =H195/I195 -> 0% | L195: 13.000 | Z195: 13.000 | AA195: =SUM(AA196:AA201) -> 0 | AB195: =SUM(AB196:AB201) -> 0.02588 | AC195: =AA195/AB195 -> 0%
A196: 13.101 | B196: B | C196: T1 | D196: Does the agency conduct frequent inspections of key facilities, stations, terminals, trains and vehicles, or other critical assets for persons, materials, and items that do not belong? | E196: =+IF(Checklist!D201="",0,Checklist!D201) -> 0 | F196: =Weights!E195 -> 0.002180 | G196: =IF(Checklist!C201="X", 0, 1) -> 1 | H196: =E196*F196*G196 -> 0 | I196: =F196*G196*4 -> 0.008720 | J196: =H196/I196 -> 0% | L196: 13.101 | M196: =+IF(C196="T1",H196," ") -> 0 | N196: =+IF(C196="T1",I196," ") -> 0.008720 | O196: =+IF(C196="T2",H196," ") ->  | P196: =+IF(C196="T2",I196," ") ->  | Q196: =+IF(C196="T3",H196," ") ->  | R196: =+IF(C196="T3",I196," ") ->  | S196: =+IF(C196="T4",H196," ") ->  | T196: =+IF(C196="T4",I196," ") ->  | U196: =+IF(C196="T5",H196," ") ->  | V196: =+IF(C196="T5",I196," ") ->  | W196: =+IF(C196="T6",H196," ") ->  | X196: =+IF(C196="T6",I196," ") ->  | Z196: 13.101 | AA196: =IF(B196="B",H196," ") -> 0.000000 | AB196: =IF(B196="B",I196," ") -> 0.008720 | AC196: 0%
A197: 13.102 | B197: B | D197: Has the transit agency established procedures for inspecting/sweeping vehicles and stations to identify and manage suspicious items, based on HOT characteristics (hidden, obviously suspicious, not typical) or equivalent system? | E197: =+IF(Checklist!D202="",0,Checklist!D202) -> 0 | F197: =Weights!E196 -> 0.002150 | G197: =IF(Checklist!C202="X", 0, 1) -> 1 | H197: 0 | I197: 0.008600 | J197: 0% | L197: 13.102 | M197: =+IF(C197="T1",H197," ") ->  | N197: =+IF(C197="T1",I197," ") ->  | O197: =+IF(C197="T2",H197," ") ->  | P197: =+IF(C197="T2",I197," ") ->  | Q197: =+IF(C197="T3",H197," ") ->  | R197: =+IF(C197="T3",I197," ") ->  | S197: =+IF(C197="T4",H197," ") ->  | T197: =+IF(C197="T4",I197," ") ->  | U197: =+IF(C197="T5",H197," ") ->  | V197: =+IF(C197="T5",I197," ") ->  | W197: =+IF(C197="T6",H197," ") ->  | X197: =+IF(C197="T6",I197," ") ->  | Z197: 13.102 | AA197: =IF(B197="B",H197," ") -> 0.000000 | AB197: =IF(B197="B",I197," ") -> 0.008600 | AC197: 0%
A198: 13.103 | D198: Has the transit agency developed a form or quick reference guide for operations and personnel to conduct pre-trip, post-trip, and within-trip inspections? | E198: =+IF(Checklist!D203="",0,Checklist!D203) -> 0 | F198: =Weights!E197 -> 0.002050 | G198: =IF(Checklist!C203="X", 0, 1) -> 1 | H198: 0 | I198: 0.008200 | J198: 0% | L198: 13.103 | Z198: 13.103
A199: 13.104 | D199: Has the transit agency developed a form or quick reference guide for station attendants and others regarding station and facility inspections? | E199: =+IF(Checklist!D204="",0,Checklist!D204) -> 0 | F199: =Weights!E198 -> 0.001860 | G199: =IF(Checklist!C204="X", 0, 1) -> 1 | H199: 0 | I199: 0.007440 | J199: 0% | L199: 13.104 | Z199: 13.104
A200: 13.105 | C200: T2 | D200: Does the system document the results of inspections and implement any changes to policies and procedures or implement corrective actions, based on the findings? | E200: =+IF(Checklist!D205="",0,Checklist!D205) -> 0 | F200: =Weights!E199 -> 0.002080 | G200: =IF(Checklist!C205="X", 0, 1) -> 1 | H200: 0 | I200: 0.008320 | J200: 0% | L200: 13.105 | O200: 0 | P200: 0.00832 | Z200: 13.105
A201: 13.106 | B201: B | C201: T2 | D201: Does the agency conduct frequent inspections of access points, ventilation systems, and the interior of underground/underwater assets and systems for indications of suspicious activity? | E201: =+IF(Checklist!D206="",0,Checklist!D206) -> 0 | F201: =Weights!E200 -> 0.002140 | G201: =IF(Checklist!C206="X", 0, 1) -> 1 | H201: 0 | I201: 0.008560 | J201: 0% | L201: 13.106 | O201: 0 | P201: 0.00856 | Z201: 13.106 | AA201: 0.000000 | AB201: 0.008560 | AC201: 0%
... 42 more rows

Sheet Weights (hidden)
A1: BASE Technical Weights Sheet
A3: Top 17 Scoring Detail
A4: Category | D4: Questions | E4: Weight
D5: MANAGEMENT AND ACCOUNTABILITY
A6: 1.000 | D6: Establish Written System Security Plans (SSPs) and Emergency Response Plans (ERPs)
A7: 1.100 | D7: System Security Plan (SSP)
A8: 1.101 | B8: B | D8: Does the transit agency have a System Security Plan (SSP)? | E8: 0.000472
A9: 1.102 | D9: Does the SSP identify the goals and objectives for the security program? | E9: 0.000465
A10: 1.103 | B10: B | D10: Does a written policy statement exist that endorses and adopts the policies and procedures of the SSP that is approved and signed by top management, including the agency's chief executive? | E10: 0.000466
A11: 1.104 | B11: B | D11: Is the SSP separate from the agency’s System Safety Program Plan (SSPP)? | E11: 0.000385
A12: 1.105 | B12: B | C12: T1 | D12: Do the Security and Emergency Response Plans address protection and response for critical underwater tunnels, underground stations/ tunnels and other critical systems, where applicable? | E12: 0.000459
A13: 1.106 | D13: Does the SSP contain or reference other documents establishing procedures for the management of security incidents by the operations control center (or dispatch center)? | E13: 0.000445
A14: 1.107 | B14: B | D14: Does the SSP contain or reference other documents establishing plans, procedures, or protocols for responding to security events with external agencies (such as law enforcement, local EMA, fire departments, etc.)? | E14: 0.000450
A15: 1.108 | D15: Does the SSP contain or reference other documents that establish protocols addressing specific threats from (i) Improvised Explosive Devices (IED) and (ii) Weapons of Mass Destruction (chemical, biological, radiological hazards)? | E15: 0.000463
A16: 1.109 | C16: T3 | D16: Are visible, random security measures integrated into security plans to introduce unpredictability into security activities for deterrent effect? | E16: 0.000454
A17: 1.110 | D17: Does the SSP include provisions requiring that security be addressed in extensions, major projects, new vehicles and equipment procurement and other capital projects, and including integration with the transit agency’s safety certification process? | E17: 0.000465
A18: 1.111 | D18: Does the SSP include or reference other documents adopting Crime Prevention Through Environmental Design (CPTED) principles as part of the agency's engineering practices? | E18: 0.000454
A19: 1.112 | D19: Does the SSP require an annual review? | E19: 0.000449
A20: 1.113 | D20: Does the transit agency produce periodic reports reviewing its progress in meeting its SSP goals and objectives? | E20: 0.000438
A21: 1.114 | D21: Has an annual review of the SSP been performed and documented in the preceding 12 months? | E21: 0.000447
A22: 1.115 | D22: =IF('Profile Sheet'!E14="X","N/A Not Governed By 49 CFR Part 659","Does the SSP outline a process for securing SSO agency review and approval of updates to the SSP?") -> Does the SSP outline a process for securing SSO agency review and approval of updates to the SSP? | E22: 0.000400
A23: 1.116 | D23: =IF('Profile Sheet'!E14="X","N/A Not Governed By 49 CFR Part 659","Has the transit agency submitted and received documentation from the SSO confirming its review and approval of the SSP currently in effect?") -> Has the transit agency submitted and received documentation from the SSO confirming its review and approval of the SSP currently in effect? | E23: 0.000406
A24: 1.200 | D24: Emergency Response Plan (ERP)
A25: 1.201 | B25: B | D25: Does the transit agency have an Emergency Response Plan (ERP)? | E25: 0.000652
A26: 1.202 | B26: B | D26: Does a written policy statement exist that endorses and adopts the policies and procedures of the ERP that is approved and signed by top management, including the agency's chief executive? | E26: 0.000643
A27: 1.203 | B27: B | D27: Does the ERP require an annual review to determine if it needs to be updated? | E27: 0.000631
A28: 1.204 | D28: Has an annual review of the ERP been performed and documented in the preceding 12 months? | E28: 0.000631
A29: 1.205 | B29: B | D29: Does the ERP include a process or review provision to ensure coordination with the rail transit agency’s SSPP and SSP? | E29: 0.000612
A30: 1.206 | D30: =IF('Profile Sheet'!E14="X","N/A Not Governed By 49 CFR Part 659","Has the transit agency received documentation from the SSO confirming its review and approval of the ERP currently in effect?") -> Has the transit agency received documentation from the SSO confirming its review and approval of the ERP currently in effect? | E30: 0.000585
A31: 1.207 | B31: B | D31: Does the ERP contain or reference other documents establishing plans, procedures, or protocols for responding to emergency events with external agencies (such as law enforcement, local EMA, fire departments, etc.)? | E31: 0.000629
A32: 1.208 | B32: B | D32: Does the ERP contain or reference other documents that establish procedures for the management of emergency events, including those to be employed by the operations control center (or dispatch center)? | E32: 0.000623
A33: 1.209 | D33: Does the ERP contain or reference other documents to provide for Continuity of Operations (COOP) while responding to emergency events? | E33: 0.000634
A34: 1.210 | D34: Does the agency have a written Business Recovery Plan to guide restoration of facilities and services following an emergency event? | E34: 0.000628
A35: 1.211 | D35: Does the agency have a written Business Continuity Plan and COOP to guide restoration of facilities and services following an emergency event? | E35: 0.000629
A36: 1.212 | B36: B | D36: Does the agency have a back-up operations control center capability? | E36: 0.000626
A37: 2.000 | D37: Define Roles and Responsibilities for Security and Emergency Management
A38: 2.100 | D38: System Security Plan (SSP)
A39: 2.101 | D39: Does the SSP establish and assign responsibility for implementation of the security program to a Senior Manager who is a "direct report" to the agency's Chief Executive Officer? | E39: 0.000761
A40: 2.102 | D40: Has the agency established lines of delegated authority/succession of security responsibilities and, if so, has that information been distributed to agency managers? | E40: 0.000730
A41: 2.103 | B41: B | D41: Are roles and responsibilities for security and/or law enforcement personnel assigned by title and/or position established in the SSP or other documents? | E41: 0.000744
A42: 2.104 | B42: B | D42: Are security-related roles and responsibilities for non-security and/or law enforcement personnel (i.e., operators, conductors, maintenance workers and station attendants) established in the SSP or other documents? | E42: 0.000731
A43: 2.105 | C43: T2 | D43: Do senior staff and middle management conduct security meetings to review recommendations for changes to plans and processes? | E43: 0.000727
A44: 2.106 | D44: Does a Security Review Committee (or other designated group) regularly review security incident reports, trends, and program audit findings? | E44: 0.000718
A45: 2.107 | B45: B | D45: Are informational briefings with appropriate personnel held whenever security protocols, threat levels, or protective measures are updated or as security conditions warrant? | E45: 0.000757
A46: 2.108 | B46: B | D46: Have appropriate reference guides or other written instructions or procedures been distributed to transit employees to implement the requirements of the SSP? | E46: 0.000694
A47: 2.109 | B47: B | D47: Has the agency appointed a Primary and Alternate Security Coordinator to serve as its primary and immediate 24-hr contact for intelligence and security-related contact with TSA and are the names of those Coordinators on file with TSA OSPIE office correct? | E47: 0.000758
A48: 2.11 | D48: Does the agency maintain a record of security related incidents that are reported within the agency? | E48: 0.000744
A49: 2.200 | D49: 2.b. Emergency Response Plan (ERP):
A50: 2.201 | D50: Does the ERP establish and assign responsibility for implementation of the security program to a Senior Manager who is a "direct report" to the agency's Chief Executive Officer? | E50: 0.00098
A51: 2.202 | B51: B | D51: Are emergency response roles and responsibilities for all departments identified in the ERP or other supporting documents? | E51: 0.00095
A52: 2.203 | B52: B | C52: T5 | D52: Are roles and responsibilities for front-line personnel (i.e. system law enforcement, system security officials, train or vehicle operators, conductors, station attendants, maintenance workers) described in the system's Emergency Response Plan (ERP)? | E52: 0.00095
A53: 2.204 | B53: B | D53: Has the ERP been distributed to appropriate departments in the organization? | E53: 0.00096
A54: 2.205 | B54: B | D54: Have appropriate reference guides or other written instructions or procedures been distributed to transit employees to implement the requirements of the ERP? | E54: 0.00095
A55: 2.206 | D55: Are senior staff and middle management ERP coordination meetings held on a regular basis? | E55: 0.00093
A56: 2.207 | B56: B | D56: Are informational briefings with appropriate personnel held whenever emergency response protocols are substantially changed or updated? | E56: 0.00095
A57: 3.000 | D57: Ensure that operations and maintenance supervisors, forepersons and managers are held accountable for security issues under their control
A58: 3.101 | B58: B | D58: Do managers and supervisors routinely provide information to front-line personnel regarding security and emergency response issues? | E58: 0.0037
A59: 3.102 | D59: Are regular supervisor, manager, and/or foreperson security review and coordination briefings held? If so, detail frequency and subjects covered in the justification. | E59: 0.0036
A60: 3.103 | B60: B | D60: Does the agency have a program for confirming that personnel have a working knowledge of security protocols? If so, summarize program in the justification. | E60: 0.0036
A61: 3.104 | B61: B | D61: Are managers and/or supervisors required to debrief front-line employees regarding their involvement in or management of any security or emergency incidents? | E61: 0.0036
A62: 4.000 | D62: Coordinate Security and Emergency Management Plan(s) with local and regional agencies
A63: 4.101 | D63: Have Mutual Aid agreements been established between the transit agency and entities in the area that would be called upon to supplement the agency's resources in the event of an emergency event? | E63: 0.001331
A64: 4.102 | B64: B | D64: Does the agency participate in a regional Emergency Management Working Group or similar regional coordinating body for emergency preparedness and response? | E64: 0.001336
A65: 4.103 | B65: B | D65: Have regional incident management protocols been shared with the agency and incorporated into the agency's ERP/SSP/SEPP? | E65: 0.001293
A66: 4.104 | D66: Have agency resources been appropriately identified and provided to the regional EMA? | E66: 0.001263
A67: 4.105 | B67: B | D67: Does the agency have a designated point-of-contact or liaison with the local/regional Emergency Operations Center (EOC)? | E67: 0.001394
A68: 4.106 | D68: Does the agency send a representative to the local/regional EOC, should it be activated? | E68: 0.001347
A69: 4.107 | D69: Does the agency have information sharing capabilities with the regional/local EOC (i.e., contacts, procedures, resource inventories, etc.)? | E69: 0.001343
A70: 4.108 | B70: B | D70: Has the agency developed internal incident management protocols that comply with the National Response Plan and the National Incident Management System (NIMS)? | E70: 0.001314
A71: 4.109 | D71: Have the agency's emergency response protocols been shared with the EMA and appropriate first responder agencies? | E71: 0.001286
A72: 4.110 | B72: B | C72: T5 | D72: Has the transit system tested its communications systems for interoperability with appropriate emergency response agencies? | E72: 0.001325
A73: 4.111 | B73: B | D73: If the agency's communications systems are NOT inter-operable with appropriate emergency response agencies, have alternate communication protocols been established? Describe the alternate communication protocols in the justification. | E73: 0.001372
D74: SECURITY AND EMERGENCY RESPONSE TRAINING
A75: 5.000 | D75: Establish and Maintain a Security and Emergency Training Program
A76: 5.101 | B76: B | C76: T4 | D76: Is initial training provided to all new agency employees regarding security orientation/awareness? | E76: 0.0004879287465
A77: 5.102 | C77: T4 | D77: Is annual refresher training provided regarding security orientation/awareness to Senior Management staff, managers and supervisors? | E77: 0.000473125758
A78: 5.103 | B78: B | C78: T4 | D78: Is annual refresher training provided regarding security orientation/awareness to managers and supervisors? | E78: 0.0004755413793
A79: 5.104 | B79: B | C79: T4 | D79: Is annual refresher training provided regarding security orientation/awareness to front-line employees? | E79: 0.0004724568503
A80: 5.105 | D80: Is ongoing advanced security training focused on job function provided at least annually? | E80: 0.0004678833524
A81: 5.106 | B81: B | C81: T4 | D81: Is initial training provided to all new transit employees regarding emergency response? | E81: 0.0004844890804
A82: 5.107 | C82: T4 | D82: Is annual refresher training provided regarding emergency response to Senior Management staff, supervisors, and managers? | E82: 0.0004723311559
A83: 5.108 | B83: B | C83: T4 | D83: Is annual refresher training provided regarding emergency response to Managers and Supervisors? | E83: 0.0004772006019
A84: 5.109 | B84: B | C84: T4 | D84: Is annual refresher training provided regarding emergency response to front-line Employees? | E84: 0.0004721767769
A85: 5.110 | B85: B | C85: T4 | D85: Have agency employees received general training on Incident Command System (ICS) procedures in accordance with National Incident Management System at least annually? | E85: 0.0004620408471
A86: 5.111 | D86: Has ICS and NIMS training appropriate to the position been provided to Senior Management staff, supervisors, and managers at least annually? | E86: 0.0004401906219
A87: 5.112 | B87: B | D87: Has ICS and NIMS training appropriate to the position been provided to managers and supervisors at least annually? | E87: 0.0004655048773
A88: 5.113 | D88: Has ICS and NIMS training appropriate to the position been provided to front-line employees at least annually? | E88: 0.0004498053846
A89: 5.114 | B89: B | D89: Has the agency developed a program and provided annual training on its own incident response protocols? | E89: 0.0004738009903
A90: 5.115 | C90: T4 | D90: Has training on the agency's incident response protocols appropriate to the position been provided to Senior Management staff, managers and supervisors at least annually? | E90: 0.0004649696817
A91: 5.116 | B91: B | C91: T4 | D91: Has training on the agency's incident response protocols appropriate to the position been provided to managers and supervisors? | E91: 0.0004705525635
A92: 5.117 | B92: B | C92: T4 | D92: Has training on the agency's incident response protocols appropriate to the position been provided to front-line employees at least annually? | E92: 0.0004678562969
A93: 5.118 | C93: T4 | D93: Has the transit system implemented an annual training program for personnel regarding response to terrorism, including (i) Improvised Explosive Devices and ii) Weapons of Mass Destruction (chemical, biological, radiological, nuclear)? If so, summarize the relevant programs in the justification? | E93: 0.0004304554257
A94: 5.119 | D94: Has training focused on IEDs and WMDs appropriate to the position been provided to Senior Management staff, managers, and supervisors at least annually? | E94: 0.000460300555
A95: 5.120 | D95: Has training focused on IEDs and WMDs appropriate to the position been provided to manager and supervisors? | E95: 0.0004755920789
A96: 5.121 | D96: Has training focused on IEDs and WMDs appropriate to the position been provided to front-line employees at least annually? | E96: 0.0004703369601
A97: 5.122 | D97: Do law enforcement/security department personnel at the agency receive specialized training in counter-terrorism annually? Summarize program in the justification. | E97: 0.0004839312237
A98: 5.123 | D98: Do law enforcement/security department personnel at the agency receive specialized training supporting their incident management and emergency response roles at least annually? Summarize program in the justification. | E98: 0.0004855208619
A99: 5.124 | B99: B | D99: Does the agency have an established program to monitor employee training and to schedule employees for training? | E99: 0.0004645919627
A100: 5.125 | D100: Does the agency have a system that records and tracks personnel training for all security-related courses (including initial, annual, periodic and other)? | E100: 0.00046054098
A101: 5.126 | D101: Does the transit agency have a system that records and tracks personnel training for emergency response courses (including initial, periodic and other)? | E101: 0.0004613164804
A102: 5.127 | D102: Does the agency have a program to regularly review and update security awareness and emergency response training materials? | E102: 0.0004573623545
A103: 5.128 | B103: B | C103: T4 | D103: Are all appropriate personnel notified via briefings, email, voicemail, or signage of changes in threat condition, protective measures or the employee watch programs? | E103: 0.0004789105241
A104: 5.129 | B104: B | C104: T1 | D104: Do the agency's security awareness and emergency response training programs cover response and recovery operations in critical facilities and infrastructure? If so, summarize relevant provisions of program in the justification. | E104: 0.0004592505168
A105: 5.130 | B105: B | C105: T1 | D105: Has the agency provided training to regional first responders (law enforcement agencies, firefighters, and emergency medical response teams) to enable them to operate in critical facilities and infrastructure? | E105: 0.0004320796392
A106: 5.131 | C106: T3 | D106: Does training of transit system law enforcement and/or security personnel integrate the concept and employment of visible, random security measures? | E106: 0.0004807450785
A107: 5.132 | B107: B | C107: T4 | D107: Has the agency implemented a program to train or orient first responders (law enforcement, firefighters, emergency medical teams) and other potential supporting assets (e.g., TSA regional personnel for VIPR exercises) on their system vehicle familiarization? | E107: 0.0004343030607
D108: HOMELAND SECURITY ADVISORY SYSTEM (HSAS)
A109: 6.000 | D109: Establish plans and protocols to respond to the National Terrorism Advisory System (NTAS) alert system
A110: 6.101 | B110: B | D110: Does the SSP contain or reference other documents identifying incremental actions (imminent or elevated) to be implemented for a NTAS threat? | E110: 0.00439
A111: 6.102 | B111: B | C111: T2 | D111: Does the agency have actionable operational response protocols for the specific threat scenarios from NTAS? | E111: 0.00474
A112: 6.103 | D112: Has the agency provided annual training and/or instruction focused on job function regarding the incremental activities to be performed by employees? | E112: 0.00483
D113: PUBLIC AWARENESS
A114: 7.000 | D114: Implement and reinforce a Public Security and Emergency Awareness program
A115: 7.101 | B115: B | D115: Has the transit agency developed and implemented a public security and emergency awareness program? | E115: 0.001195403866
A116: 7.102 | B116: B | C116: T6 | D116: Does the agency provide active public outreach for security awareness and emergency preparedness (e.g., Transit Watch, “If You See Something, Say Something”, message boards, brochures, channel cards, posters, fliers)? | E116: 0.001185570766
A117: 7.103 | C117: T6 | D117: Is the above consistent with agency's overall announcement program? | E117: 0.00101963848
A118: 7.104 | B118: B | C118: T6 | D118: Are general security awareness and emergency preparedness messages included in public announcement messages at stations and on board vehicles? | E118: 0.001064999082
A119: 7.105 | B119: B | C119: T6 | D119: Are passengers urged to report unattended property, suspicious behavior, and security concerns to uniformed crew members, law enforcement or security personnel, and/or a contact telephone number? If so, summarize the type of materials used and content in the justification. | E119: 0.001193534345
A120: 7.106 | B120: B | C120: T6 | D120: Does the agency have an appropriate mechanism in place for passengers to communicate an (e.g., 1-800 number, smart phone applications, social media, etc.) that can be called or used to report security concerns? If so, is this information indicated in public awareness materials and messages? | E120: 0.001068969254
A121: 7.107 | D121: Does the agency issue public service announcements or press releases to social media (e.g. Twitter/ Facebook/etc., QRC codes, and/or apps for smart phones) regarding security and emergency protocols? | E121: 0.001039354387
A122: 7.108 | C122: T6 | D122: Does the agency issue public service announcements or press releases to local media (e.g. newspaper, radio and/or television) regarding security or emergency protocols? | E122: 0.001023583737
A123: 7.109 | D123: Does the transit agency conduct a volunteer training program for non-employees to aid with system evacuations and emergency response? | E123: 0.001090415974
A124: 7.110 | D124: Does the transit agency conduct an outreach program to enlist members of the public as security awareness volunteers, similar to Neighborhood Watch programs? | E124: 0.001089114267
A125: 7.111 | B125: B | C125: T1 | D125: Do public awareness materials and/or messages inform passengers on the means to evacuate safely from transit vehicles and underwater/underground facilities? | E125: 0.001178078907
A126: 7.112 | D126: Does the agency track and monitor customer complaints reported by passengers? | E126: 0.001042263501
D127: RISK MANAGEMENT
A128: 8.000 | D128: Establish and use a risk management process
A129: 8.101 | B129: B | C129: T2 | D129: Does the agency have a risk assessment process approved by its management, for managing threats and vulnerabilities? If so, summarize the process in the justification. | E129: 0.00180
A130: 8.102 | B130: B | D130: Has the agency identified facilities and systems it considers to be its critical assets? | E130: 0.00179
A131: 8.103 | B131: B | C131: T2 | D131: Has the agency had an internal or external vulnerability assessment on its critical assets within the past 3 years? Specify the dates of the most recent assessments and the entity(ies) that conducted the assessment(s). | E131: 0.00175
A132: 8.104 | B132: B | C132: T1 | D132: Has the agency had an internal or external Risk Assessment, analyzing threat, vulnerability, & consequence, for critical assets and infrastructure, and systems within the past 3 years? Have management and staff responsible for the risk assessment process been properly trained to manage the process? | E132: 0.00177
A133: 8.105 | B133: B | C133: T2 | D133: Has the system implemented procedures to limit and monitor authorized access to underground and underwater tunnels? If so, summarize procedures in the justification. | E133: 0.00172
A134: 8.106 | D134: Are security investments prioritized using information developed in the risk assessment process? | E134: 0.00174
A135: 8.107 | B135: B | C135: T1 | D135: Upon request, has TSA been provided access to the agency's vulnerability assessments, Security Plan and related documents? | E135: 0.00174
D136: ESTABLISH A RISK ASSESSMENT AND INFORMATION SHARING PROCESS
A137: 9.000 | D137: Establish and use an information sharing process for threat and intelligence information.
A138: 9.101 | B138: B | D138: Does the agency have a formalized process and procedures for reporting and exchange of threat and intelligence information with Federal, State, and/or local law enforcement agencies? | E138: 0.00201
A139: 9.102 | B139: B | C139: T2 | D139: Does the system report threat and intelligence information directly to FBI Joint Terrorism Task Force (JTTF) or other regional anti-terrorism task force? | E139: 0.00195
A140: 9.103 | B140: B | C140: T2 | D140: Does the system have a protocol to report threats or significant security concerns to appropriate law enforcement authorities, and TSA's Transportation Security Operations Center (TSOC)? | E140: 0.00196
A141: 9.104 | D141: Does the agency routinely receive threat and intelligence information directly from any Federal government agency, State Homeland Security Office, Regional or State Intelligence Fusion Center, PT-ISAC, or other transit agencies? | E141: 0.00186
A142: 9.105 | D142: =IF('Profile Sheet'!E14="X","N/A Not Governed By 49 CFR Part 659","Does the agency report their NTA security data to FTA as required by 49 CFR 659?") -> Does the agency report their NTA security data to FTA as required by 49 CFR 659? | E142: 0.00190
A143: 10.000 | D143: Conduct Tabletop and Functional Drills
A144: 10.101 | B144: B | D144: Does the agency’s System Safety Program Plan (SSPP) contain or reference a document describing the process used by the agency to develop an approved, coordinated schedule for all emergency management program activities, including local/regional emergency planning and participation in exercises and drills? | E144: 0.00116
A145: 10.102 | B145: B | D145: Does the agency’s SSPP or SSP describe or reference how the agency performs its emergency planning responsibilities and requirements regarding emergency drills and exercises? | E145: 0.00114
A146: 10.103 | B146: B | C146: T5 | D146: Does the agency evaluate its emergency preparedness by using annual field exercises, tabletop exercises, and/or drills? If so, please summarize the exercise events held in the past year. | E146: 0.00117
A147: 10.104 | B147: B | D147: Does the agency's SSPP or a related document include a requirement for annual field exercises, tabletops and drills? | E147: 0.00100
A148: 10.105 | B148: B | D148: Does the agency’s SSPP or SSP describe or reference how the agency documents the results of its emergency preparedness evaluations (i.e., briefings, after action reports and implementation of findings)? | E148: 0.00114
A149: 10.106 | D149: Does the agency’s SSPP or a related document describe or reference its program for providing employee training on emergency response protocols and procedures? | E149: 0.00113
A150: 10.107 | B150: B | D150: Does the agency participate as an active player in full-scale, regional exercises held at least annually? | E150: 0.00101
A151: 10.108 | C151: T5 | D151: In the last year, has the agency conducted and/or participated in a drill, tabletop exercise, and/or field exercise including scenarios involving (i) IED's and (ii) WMD (chemical, biological, radiological, nuclear) with other transit agencies and first responders (e.g., NTAS scenarios)? | E151: 0.00099
A152: 10.109 | C152: T5 | D152: In the last year, has the agency reviewed results and prepared after-action reports to assess performance and develop lessons learned for all drills, tabletop, and/or field exercises? | E152: 0.00111
A153: 10.110 | C153: T5 | D153: In the last 12 months, has the agency updated plans, protocols and processes to incorporate after-action report recommendations/findings and corrective actions? If so, summarize the actions taken in the justification. | E153: 0.00116
A154: 10.111 | D154: Has the agency established metrics to assess its performance during emergency exercises and to measure improvements? | E154: 0.00113
A155: 10.112 | B155: B | C155: T1 | D155: Does the system conduct drills and exercises of its security and emergency response plans to test capabilities of i.) employees and ii.) first responders to operate effectively in underwater/underground infrastructure and other critical systems? | E155: 0.00114
A156: 10.113 | B156: B | C156: T5 | D156: Does the transit system integrate local and regional first responders (law enforcement, firefighters, emergency medical teams) in drills, tabletop exercises, and/or field exercises? If so, summarize each joint event and state when it took place. | E156: 0.00117
A157: 11.000 | D157: Developing a Comprehensive Cyber Security Strategy
A158: 11.101 | B158: B | D158: Has the agency conducted a risk assessment to identify operational control and communication/business enterprise IT assets and potential vulnerabilities? | E158: 0.002137
A159: 11.102 | D159: Has the agency implemented protocols to ensure that all IT facilities (e.g., data centers, server rooms, etc.) and equipment are properly secured to guard against internal or external threats or attacks? | E159: 0.002186
A160: 11.103 | D160: Has a written strategy been developed and integrated into the overall security program to mitigate the cyber risk identified? | E160: 0.002108
A161: 11.104 | D161: Does the agency have a designated representative to secure the internal network through appropriate access controls for employees, a strong authentication (i.e., password) policy, encrypting sensitive data, and employing network security infrastructure (example: firewalls, intrusion detection systems, IT security audits, antivirus, etc.)? | E161: 0.002166
A162: 11.105 | D162: Does the agency ensure that recurring cyber security training reinforces security roles, responsibilities, and duties of employees at all levels to protect against and recognize cyber threats? | E162: 0.002123
A163: 11.106 | B163: B | D163: Has the agency established a cyber-incident response and reporting protocol? | E163: 0.002123
A164: 11.107 | D164: Is the agency aware of and using available resources (e.g., standards, PT-ISAC, US CERT, National Cyber Security Communication and Integration Center, etc.)? | E164: 0.002148
D165: FACILITY SECURITY AND ACCESS CONTROLS
A166: 12.000 | D166: Control Access to Security Critical Facilities with ID badges for all visitors, employees and contractors
A167: 12.101 | B167: B | D167: Have assets and facilities requiring restricted access been identified? | E167: 0.000549
A168: 12.102 | B168: B | D168: Are ID badges or other measures employed to restrict access to facilities not open to the public? | E168: 0.000541
A169: 12.103 | B169: B | C169: T2 | D169: Has the transit agency developed and implemented procedures to monitor, update and document access control (e.g. card key, ID badges, keys, safe combinations, etc.)? | E169: 0.000541
A170: 12.104 | B170: B | D170: Does the agency have procedures to issue ID badges for visitors and contractors? | E170: 0.000543
A171: 12.105 | D171: Does the agency require escorts for visitors accessing non-public areas? | E171: 0.000541
A172: 12.106 | D172: Is CCTV equipment installed in transit agency facilities? | E172: 0.000541
A173: 12.107 | D173: Is CCTV equipment protecting critical assets interfaced with an access control system? | E173: 0.000539
A174: 12.108 | D174: Is CCTV equipment installed on transit vehicles? | E174: 0.000487
A175: 12.109 | D175: Are Crime Prevention through Environmental Design (CPTED) and technology (e.g., CCTV, access control, intrusion detection, bollards, etc.) incorporated into design criteria for all new and/or existing capital projects? | E175: 0.000532
A176: 12.110 | D176: Based on the risk assessment, does the agency use fencing, barriers, and/or intrusion detection to protect against unauthorized entry into stations, facilities, and other identified critical assets? | E176: 0.000532
A177: 12.111 | B177: B | C177: T2 | D177: Has the system implemented protective measures to secure high risk/high consequence assets and systems identified in risk assessments? Examples of protective measures include but are not limited to CCTV, intrusion detection systems, smart camera technology, fencing, enhanced lighting, access control, LE patrols, K-9s, protection of ventilation systems. If protective measures for this infrastructure are employed, summarize type and location in in the justification. | E177: 0.000540
A178: 12.112 | D178: Does the transit agency monitor a network of security, fire, duress, intrusion, utility and internal 911 alarm systems? | E178: 0.000528
A179: 12.113 | D179: Are emergency call boxes provided for passengers? | E179: 0.000481
A180: 12.114 | D180: Do transit agency personnel administer an automated employee access control system and perform corrective analysis of security breaches? | E180: 0.000540
A181: 12.115 | D181: Does the agency have policies and procedures for screening of mail and/or outside deliveries? | E181: 0.000508
A182: 12.116 | D182: Have locks, bullet resistant materials and anti-fragmentation materials been installed/used at critical locations? | E182: 0.000525
A183: 12.117 | D183: Does the agency use National Fire Protection Association (NFPA) Standard 130 or equivalent to evaluate fire/life safety in station design or modification (including fire detection systems, firewalls and flame-resistant materials, back-up powered emergency lighting, defaults in turnstile and other systems supporting emergency exists, and pre-recorded public announcements)? | E183: 0.000499
A184: 12.118 | D184: Is directional signage with adequate lighting provided in a consistent manner in all stations, both to provide orientation and to support emergency evacuation? | E184: 0.000532
A185: 12.119 | D185: Are gates and locks used on all facility doors to prevent unauthorized access? | E185: 0.000539
A186: 12.120 | D186: Are keys controlled through an established program managed by the security/police function? | E186: 0.000531
A187: 12.121 | B187: B | D187: Are gates and locks also used to close down system facilities after operating hours? | E187: 0.000540
A188: 12.122 | D188: Do transit vehicles have radios, silent alarms, and/or passenger communication systems? | E188: 0.000526
A189: 12.123 | D189: Does the transit agency use graffiti-resistant/etch-resistant materials for walls, ceilings, and windows? | E189: 0.000403
A190: 12.124 | B190: B | D190: Are Uninterruptible Power Supply (UPS) or redundant power sources provided for safety and security of critical equipment, such as but not limited to: exit and platform lighting; parking lot lighting; ancillary space and shop lighting; intrusion detection (alarmed rooms and spaces, fare collection equipment, etc.); fire detection, alarm and suppression systems; public address (shop and public areas); call-for-aid telephones; CCTV; emergency trip stations; vital train control functions; etc.? | E190: 0.000538
A191: 12.125 | D191: At passenger stations at which a vulnerability assessment has identified a significant risk, and to the extent practicable, has the owner/operator removed trash receptacles and other non-essential receptacles or containers (with the exception of bomb resistant receptacles or clear plastic containers) from the platform areas of passenger terminals and stations? | E191: 0.000467
A192: 12.126 | B192: B | D192: Does the agency employ specific protective measures for all critical infrastructure (e.g., tunnels, bridges, stations, control centers, etc) identified through the risk assessment particularly at access points and ventilation infrastructure in place and maintained in optimal condition? Examples of protective measures include, but are not limited to, CCTV, intrusion detection systems, smart camera technology, fencing, lighting, access control, law enforcement patrols, canine patrols, physical protection for ventilation systems. If protective measures for this infrastructure are employed, summarize type and location in the justification. | E192: 0.000541
A193: 12.127 | C193: T1 | D193: Does the agency have or utilize explosive detection canine teams, either maintained by the system or made available from other law enforcement agencies? If so, has the system implemented procedures for reporting of and response to positive reactions by the canine? | E193: 0.000529
A194: 13.000 | D194: Conduct Physical Security Inspections
A195: 13.101 | B195: B | C195: T1 | D195: Does the agency conduct frequent inspections of key facilities, stations, terminals, trains and vehicles, or other critical assets for persons, materials, and items that do not belong? | E195: 0.00218
A196: 13.102 | B196: B | D196: Has the transit agency established procedures for inspecting/sweeping vehicles and stations to identify and manage suspicious items, based on HOT characteristics (hidden, obviously suspicious, not typical) or equivalent system? | E196: 0.00215
A197: 13.103 | D197: Has the transit agency developed a form or quick reference guide for operations and personnel to conduct pre-trip, post-trip, and within-trip inspections? | E197: 0.00205
A198: 13.104 | D198: Has the transit agency developed a form or quick reference guide for station attendants and others regarding station and facility inspections? | E198: 0.00186
A199: 13.105 | C199: T2 | D199: Does the system document the results of inspections and implement any changes to policies and procedures or implement corrective actions, based on the findings? | E199: 0.00208
A200: 13.106 | B200: B | C200: T2 | D200: Does the agency conduct frequent inspections of access points, ventilation systems, and the interior of underground/underwater assets and systems for indications of suspicious activity? | E200: 0.00214
A201: 13.107 | D201: Does the system integrate randomness and unpredictability into its security activities to enhance deterrent effect? | E201: 0.00214
... 42 more rows

Sheet Pivot Stats (hidden)
A1: Date | B1: Airport | C1: Region | D1: Type Visit | E1: Revisit | F1: Last Date | G1: Agency | H1: Street | I1: City | J1: State | K1: Zip | L1: HTUA Name | M1: HTUA | N1: Chosen By | O1: Not Governed by | P1: 60K Club | Q1: Ridership | R1: Grant Funding | S1: Funding Year | T1: Light Rail | U1: Heavy Rail | V1: Rapid Rail | W1: Monorail | X1: Inclined Plane | Y1: Funicular | Z1: Trolley | AA1: Automated Guideway | AB1: Tourist / Scenic | AC1: Commuter | AD1: Intercity | AE1: Transit Bus | AF1: Sec Coor Name | AG1: Sec Coor Title | AH1: Sec Coor Phone | AI1: Sec Coor Cell | AJ1: Sec Coor Email | AK1: Alt Sec Coor Name | AL1: Alt Sec Coor Title | AM1: Alt Sec Coor Phone | AN1: Alt Sec Coor Cell | AO1: Alt Sec Coor Email | AP1: Alt Lead TSI Name | AQ1: Alt Lead TSI Title | AR1: Alt Lead TSI Airport | AS1: Alt Lead TSI Phone | AT1: Alt Lead TSI Email | AU1: Alt Sec TSI Name | AV1: Alt Sec TSI Title | AW1: Alt Sec TSI Airport | AX1: Alt Sec TSI Phone | AY1: Alt Sec TSI Email | AZ1: 1.101 | BA1: 1.102 | BB1: 1.103 | BC1: 1.104 | BD1: 1.105 / T1 | BE1: 1.106 | BF1: 1.107 | BG1: 1.108 | BH1: 1.109 / T3 | BI1: 1.110 | BJ1: 1.111 | BK1: 1.112 | BL1: 1.113 | BM1: 1.114 | BN1: 1.115 | BO1: 1.116 | BP1: 1.117 | BQ1: 1.201 | BR1: 1.202 | BS1: 1.203 | BT1: 1.204 | BU1: 1.205 | BV1: 1.206 | BW1: 1.207 | BX1: 1.208 | BY1: 1.209 | BZ1: 1.210 | CA1: 1.211 | CB1: 1.212 | CC1: 2.101 | CD1: 2.102 | CE1: 2.103 | CF1: 2.104 | CG1: 2.105 / T2 | CH1: 2.106 | CI1: 2.107 | CJ1: 2.108 | CK1: 2.109 | CL1: 2.110 | CM1: 2.201 | CN1: 2.202 | CO1: 2.203 / T5 | CP1: 2.204 | CQ1: 2.205 | CR1: 2.206 | CS1: 2.207 | CT1: 3.101 | CU1: 3.102 | CV1: 3.103 | CW1: 3.104 | CX1: 4.101 | CY1: 4.102 | CZ1: 4.103 | DA1: 4.104 | DB1: 4.105 | DC1: 4.106 | DD1: 4.107 | DE1: 4.108 | DF1: 4.109 | DG1: 4.11 / T5 | DH1: 4.111 | DI1: 5.101 / T4 | DJ1: 5.102 / T4 | DK1: 5.103 / T4 | DL1: 5.104 / T4 | DM1: 5.105 | DN1: 5.106 / T4 | DO1: 5.107 / T4 | DP1: 5.108 / T4 | DQ1: 5.109 / T4 | DR1: 5.110 / T4 | DS1: 5.111 | DT1: 5.112 | DU1: 5.113 | DV1: 5.114 | DW1: 5.115 / T4 | DX1: 5.116 / T4 | DY1: 5.117 / T4 | DZ1: 5.118 / T4 | EA1: 5.119 | EB1: 5.120 | EC1: 5.121 | ED1: 5.122 | EE1: 5.123 | EF1: 5.124 | EG1: 5.125 | EH1: 5.126 | EI1: 5.127 | EJ1: 5.128 / T4 | EK1: 5.129 / T1 | EL1: 5.13 / T1 | EM1: 5.131 / T3 | EN1: 5.132 / T4 | EO1: 6.101 | EP1: 6.102 / T2 | EQ1: 6.103 | ER1: 7.101 | ES1: 7.102 / T6 | ET1: 7.103 / T6 | EU1: 7.104 / T6 | EV1: 7.105 / T6 | EW1: 7.106 / T6 | EX1: 7.107 | EY1: 7.108 / T6 | EZ1: 7.109 | FA1: 7.110 | FB1: 7.111 / T1 | FC1: 7.112 | FD1: 8.101 / T2 | FE1: 8.102 | FF1: 8.103 / T2 | FG1: 8.104 / T1 | FH1: 8.105 / T2 | FI1: 8.106 | FJ1: 8.107 / T1 | FK1: 9.101 | FL1: 9.102 / T2 | FM1: 9.103 / T2 | FN1: 9.104 | FO1: 9.105 | FP1: 10.101 | FQ1: 10.102 | FR1: 10.103 / T5 | FS1: 10.104 | FT1: 10.105 | FU1: 10.106 | FV1: 10.107 | FW1: 10.108 / T5 | FX1: 10.109 / T5 | FY1: 10.11 / T5 | FZ1: 10.111 | GA1: 10.112 / T1 | GB1: 10.113 / T5 | GC1: 11.101 | GD1: 11.102 | GE1: 11.103 | GF1: 11.104 | GG1: 11.105 | GH1: 11.106 | GI1: 11.107 | GJ1: 12.101 | GK1: 12.102 | GL1: 12.103 / T2 | GM1: 12.104 | GN1: 12.105 | GO1: 12.106 | GP1: 12.107 | GQ1: 12.108 | GR1: 12.109 | GS1: 12.110 | GT1: 12.111 / T2 | GU1: 12.112 | GV1: 12.113 | GW1: 12.114 | GX1: 12.115 | GY1: 12.116 | GZ1: 12.117 | HA1: 12.118 | HB1: 12.119 | HC1: 12.120 | HD1: 12.121 | HE1: 12.122 | HF1: 12.123 | HG1: 12.124 | HH1: 12.125 | HI1: 12.126 | HJ1: 12.127 / T1 | HK1: 12.128 | HL1: 12.129 | HM1: 13.101 / T1 | HN1: 13.102 | HO1: 13.103 | HP1: 13.104 | HQ1: 13.105 / T2 | HR1: 13.106 / T2 | HS1: 13.107 | HT1: 13.108 | HU1: 13.109 | HV1: 14.101 / T2 | HW1: 14.102 / T2 | HX1: 14.103 | HY1: 14.104 | HZ1: 14.105 | IA1: 15.101 / T2 | IB1: 15.102 | IC1: 15.103 | ID1: 16.101 | IE1: 16.102 | IF1: 16.103 | IG1: 16.104 | IH1: 17.101 | II1: 17.102 | IJ1: 17.103 | IK1: 17.104 | IL1: 17.105 | IM1: 17.106 | IN1: 17.107 | IO1: 17.108 | IP1: 17.109 | IQ1: 17.110 | IR1: 17.111 | IS1: 17.112 | IT1: 17.113 | IU1: 17.114 | IV1: SAI 1 | IW1: SAI 2 | IX1: SAI 3 | IY1: SAI 4 | IZ1: SAI 5 | JA1: SAI 6 | JB1: SAI 7 | JC1: SAI 8 | JD1: SAI 9 | JE1: SAI 10 | JF1: SAI 11 | JG1: SAI 12 | JH1: SAI 13 | JI1: SAI 14 | JJ1: SAI 15 | JK1: SAI 16 | JL1: SAI 17 | JM1: SAI Overall | JN1: Gold Standard | JO1: TSF 1 | JP1: TSF 2 | JQ1: TSF 3 | JR1: TSF 4 | JS1: TSF 5 | JT1: TSF 6 | JU1: TSF Overall | JV1: Smart Practice | JW1: Crit Inf A | JX1: Crit Inf B | JY1: Crit Inf C | JZ1: Crit Inf D | KA1: Crit Inf E | KB1: Crit Inf F | KC1: Crit Inf G
A2: ='Profile Sheet'!G5 -> 00:00:00 | B2: ='Profile Sheet'!J5 -> 0 | C2: ='Profile Sheet'!M5 -> 0 | D2: ='Profile Sheet'!A11 -> Corporate Review | E2: ='Profile Sheet'!A13 -> 0 | F2: ='Profile Sheet'!C13 -> 00:00:00 | G2: ='Profile Sheet'!G11 -> 0 | H2: ='Profile Sheet'!H12 -> 0 | I2: ='Profile Sheet'!H13 -> 0 | J2: ='Profile Sheet'!K13 -> 0 | K2: ='Profile Sheet'!M13 -> 00000 | L2: =IF('Profile Sheet'!I16="", "", 'Profile Sheet'!I16) ->  | M2: =IF(OR(L2="<Please Select>", L2="Not an HTUA"), "", "X") -> X | N2: ='Profile Sheet'!I15 -> 0 | O2: ='Profile Sheet'!E14 -> 0 | P2: =IF(P3="Over 60K Daily Ridership", "Yes", "No") -> No | Q2: ='Profile Sheet'!E16 -> 0 | R2: =IF(R3="Agency has received Grant Funding", "Yes", "No") -> No | S2: ='Profile Sheet'!L17 -> 0 | T2: =IF('Profile Sheet'!$D$19="X", "X", "") ->  | U2: =IF('Profile Sheet'!$D$20="X", "X", "") ->  | V2: =IF('Profile Sheet'!$D$21="X", "X", "") ->  | W2: =IF('Profile Sheet'!$D$22="X", "X", "") ->  | X2: =IF('Profile Sheet'!$G$19="X", "X", "") ->  | Y2: =IF('Profile Sheet'!$G$20="X", "X", "") ->  | Z2: =IF('Profile Sheet'!$G$21="X", "X", "") ->  | AA2: =IF('Profile Sheet'!$G$22="X", "X", "") ->  | AB2: =IF('Profile Sheet'!$J$19="X", "X", "") ->  | AC2: =IF('Profile Sheet'!$J$20="X", "X", "") ->  | AD2: =IF('Profile Sheet'!$J$21="X", "X", "") ->  | AE2: =IF('Profile Sheet'!$J$22="X", "X", "") ->  | AF2: ='Profile Sheet'!A25 -> 0 | AG2: ='Profile Sheet'!D25 -> Security Coordinator | AH2: ='Profile Sheet'!G25 -> 0 | AI2: ='Profile Sheet'!I25 -> 0 | AJ2: ='Profile Sheet'!K25 -> 0 | AK2: ='Profile Sheet'!A26 -> 0 | AL2: ='Profile Sheet'!D26 -> Alternate Security Coordinator | AM2: ='Profile Sheet'!G26 -> 0 | AN2: ='Profile Sheet'!I26 -> 0 | AO2: ='Profile Sheet'!K26 -> 0 | AP2: ='Profile Sheet'!A40 -> 0 | AQ2: ='Profile Sheet'!D40 -> Lead TSI | AR2: ='Profile Sheet'!G40 -> 0 | AS2: ='Profile Sheet'!I40 -> 0 | AT2: ='Profile Sheet'!K40 -> 0 | AU2: ='Profile Sheet'!A41 -> 0 | AV2: ='Profile Sheet'!D41 -> Secondary TSI | AW2: ='Profile Sheet'!G41 -> 0 | AX2: ='Profile Sheet'!I41 -> 0 | AY2: ='Profile Sheet'!K41 -> 0 | AZ2: =IF(AZ4="X", "", AZ3) -> 0 | BA2: =IF(BA4="X", "", BA3) -> 0 | BB2: 0 | BC2: 0 | BD2: 0 | BE2: 0 | BF2: 0 | BG2: 0 | BH2: 0 | BI2: 0 | BJ2: 0 | BK2: 0 | BL2: 0 | BM2: 0 | BN2: 0 | BO2: 0 | BQ2: 0 | BR2: 0 | BS2: 0 | BT2: 0 | BU2: 0 | BV2: 0 | BW2: 0 | BX2: 0 | BY2: 0 | BZ2: 0 | CA2: 0 | CB2: 0 | CC2: 0 | CD2: 0 | CE2: 0 | CF2: 0 | CG2: 0 | CH2: 0 | CI2: 0 | CJ2: 0 | CK2: 0 | CL2: 0 | CM2: 0 | CN2: 0 | CO2: 0 | CP2: 0 | CQ2: 0 | CR2: 0 | CS2: 0 | CT2: 0 | CU2: 0 | CV2: 0 | CW2: 0 | CX2: 0 | CY2: 0 | CZ2: 0 | DA2: 0 | DB2: 0 | DC2: 0 | DD2: 0 | DE2: 0 | DF2: 0 | DG2: 0 | DH2: 0 | DI2: 0 | DJ2: 0 | DK2: 0 | DL2: 0 | DM2: =IF(DM4="X", "", DM3) -> 0 | DN2: 0 | DO2: 0 | DP2: 0 | DQ2: 0 | DR2: 0 | DS2: 0 | DT2: 0 | DU2: 0 | DV2: 0 | DW2: 0 | DX2: 0 | DY2: 0 | DZ2: 0 | EA2: 0 | EB2: 0 | EC2: 0 | ED2: 0 | EE2: 0 | EF2: 0 | EG2: 0 | EH2: 0 | EI2: 0 | EJ2: 0 | EK2: 0 | EL2: 0 | EM2: 0 | EN2: 0 | EO2: 0 | EP2: 0 | EQ2: 0 | ER2: 0 | ES2: 0 | ET2: 0 | EU2: 0 | EV2: 0 | EW2: 0 | EX2: 0 | EY2: 0 | EZ2: 0 | FA2: 0 | FB2: 0 | FC2: 0 | FD2: 0 | FE2: 0 | FF2: 0 | FG2: 0 | FH2: 0 | FI2: 0 | FJ2: 0 | FK2: 0 | FL2: 0 | FM2: 0 | FN2: 0 | FO2: 0 | FP2: 0 | FQ2: 0 | FR2: 0 | FS2: 0 | FT2: 0 | FU2: 0 | FV2: 0 | FW2: 0 | FX2: 0 | FY2: =IF(FY4="X", "", FY3) -> 0 | FZ2: 0 | GA2: 0 | GB2: 0 | GC2: 0 | GD2: 0 | GE2: 0 | GF2: 0 | GG2: 0 | GH2: 0 | GI2: 0 | GJ2: 0 | GK2: 0 | GL2: 0 | GM2: 0 | GN2: 0 | GO2: 0 | GP2: 0 | GQ2: 0 | GR2: 0 | GS2: 0 | GT2: 0 | GU2: 0 | GV2: 0 | GW2: 0 | GX2: 0 | GY2: 0 | GZ2: 0 | HA2: 0 | HB2: 0 | HC2: 0 | HD2: 0 | HE2: 0 | HF2: 0 | HG2: 0 | HH2: 0 | HI2: 0 | HJ2: 0 | HM2: 0 | HN2: 0 | HO2: 0 | HP2: 0 | HQ2: 0 | HR2: 0 | HS2: 0 | HT2: 0 | HU2: 0 | HV2: 0 | HW2: 0 | HX2: 0 | HY2: 0 | HZ2: 0 | IA2: 0 | IB2: 0 | IC2: 0 | ID2: 0 | IE2: 0 | IF2: 0 | IG2: 0 | IH2: 0 | II2: 0 | IJ2: 0 | IK2: =IF(IK4="X", "", IK3) -> 0 | IL2: 0 | IM2: 0 | IN2: 0 | IO2: 0 | IP2: 0 | IQ2: 0 | IR2: 0 | IS2: 0 | IT2: 0 | IU2: 0 | IV2: ='Scoring Summary'!$C$18 -> 0% | IW2: ='Scoring Summary'!$C$19 -> 0% | IX2: ='Scoring Summary'!$C$20 -> 0% | IY2: ='Scoring Summary'!$C$21 -> 0% | IZ2: ='Scoring Summary'!$C$22 -> 0% | JA2: ='Scoring Summary'!$C$23 -> 0% | JB2: ='Scoring Summary'!$C$24 -> 0% | JC2: ='Scoring Summary'!$C$25 -> 0% | JD2: ='Scoring Summary'!$C$26 -> 0% | JE2: ='Scoring Summary'!$C$27 -> 0% | JF2: ='Scoring Summary'!$C$28 -> 0% | JG2: ='Scoring Summary'!$C$29 -> 0% | JH2: ='Scoring Summary'!$C$30 -> 0% | JI2: ='Scoring Summary'!$C$31 -> 0% | JJ2: ='Scoring Summary'!$C$32 -> 0% | JK2: ='Scoring Summary'!$C$33 -> 0% | JL2: ='Scoring Summary'!$C$34 -> 0% | JM2: ='Scoring Summary'!$C$36 -> 0% | JN2: =IF(JN3="This Agency Received Scores Worthy of the Gold Standard Award!", "YES", "No") -> No | JO2: ='Scoring Summary'!$C$8 -> 0% | JP2: ='Scoring Summary'!$C$9 -> 0% | JQ2: ='Scoring Summary'!$C$10 -> 0% | JR2: ='Scoring Summary'!$C$11 -> 0% | JS2: ='Scoring Summary'!$C$12 -> 0% | JT2: ='Scoring Summary'!$C$13 -> 0% | JU2: ='Scoring Summary'!$C$15 -> 0% | JV2: ='Additional Information'!A22 -> 0 | JW2: ='Additional Information'!$A$27 -> a. | JX2: ='Additional Information'!$A$28 -> b. | JY2: ='Additional Information'!$A$29 -> c. | JZ2: ='Additional Information'!$A$30 -> d. | KA2: ='Additional Information'!$A$31 -> e. | KB2: ='Additional Information'!$A$32 -> f. | KC2: ='Additional Information'!$A$33 -> g.
P3: ='Profile Sheet'!D15 -> 0 | R3: ='Profile Sheet'!E17 -> 0 | AZ3: =Checklist!$D$13 -> 0 | BA3: =Checklist!$D$14 -> 0 | BB3: =Checklist!$D$15 -> 0 | BC3: =Checklist!$D$16 -> 0 | BD3: =Checklist!$D$17 -> 0 | BE3: =Checklist!$D$18 -> 0 | BF3: =Checklist!$D$19 -> 0 | BG3: =Checklist!$D$20 -> 0 | BH3: =Checklist!$D$21 -> 0 | BI3: =Checklist!$D$22 -> 0 | BJ3: =Checklist!$D$23 -> 0 | BK3: =Checklist!$D$24 -> 0 | BL3: =Checklist!$D$25 -> 0 | BM3: =Checklist!$D$26 -> 0 | BN3: =Checklist!$D$27 -> 0 | BO3: =Checklist!$D$28 -> 0 | BP3: =Checklist!#REF! ->  | BQ3: =Checklist!$D$30 -> 0 | BR3: =Checklist!$D$31 -> 0 | BS3: =Checklist!$D$32 -> 0 | BT3: =Checklist!$D$33 -> 0 | BU3: =Checklist!$D$34 -> 0 | BV3: =Checklist!$D$35 -> 0 | BW3: =Checklist!$D$36 -> 0 | BX3: =Checklist!$D$37 -> 0 | BY3: =Checklist!$D$38 -> 0 | BZ3: =Checklist!$D$39 -> 0 | CA3: =Checklist!$D$40 -> 0 | CB3: =Checklist!$D$41 -> 0 | CC3: =Checklist!$D$44 -> 0 | CD3: =Checklist!$D$45 -> 0 | CE3: =Checklist!$D$46 -> 0 | CF3: =Checklist!$D$47 -> 0 | CG3: =Checklist!$D$48 -> 0 | CH3: =Checklist!$D$49 -> 0 | CI3: =Checklist!$D$50 -> 0 | CJ3: =Checklist!$D$51 -> 0 | CK3: =Checklist!$D$52 -> 0 | CL3: =Checklist!$D$53 -> 0 | CM3: =Checklist!$D$55 -> 0 | CN3: =Checklist!$D$56 -> 0 | CO3: =Checklist!$D$57 -> 0 | CP3: =Checklist!$D$58 -> 0 | CQ3: =Checklist!$D$59 -> 0 | CR3: =Checklist!$D$60 -> 0 | CS3: =Checklist!$D$61 -> 0 | CT3: =Checklist!$D$63 -> 0 | CU3: =Checklist!$D$64 -> 0 | CV3: =Checklist!$D$65 -> 0 | CW3: =Checklist!$D$66 -> 0 | CX3: =Checklist!$D$68 -> 0 | CY3: =Checklist!$D$69 -> 0 | CZ3: =Checklist!$D$70 -> 0 | DA3: =Checklist!$D$71 -> 0 | DB3: =Checklist!$D$72 -> 0 | DC3: =Checklist!$D$73 -> 0 | DD3: =Checklist!$D$74 -> 0 | DE3: =Checklist!$D$75 -> 0 | DF3: =Checklist!$D$76 -> 0 | DG3: =Checklist!$D$77 -> 0 | DH3: =Checklist!$D$78 -> 0 | DI3: =Checklist!$D$81 -> 0 | DJ3: =Checklist!$D$82 -> 0 | DK3: =Checklist!$D$83 -> 0 | DL3: =Checklist!$D$84 -> 0 | DM3: =Checklist!$D$85 -> 0 | DN3: =Checklist!$D$86 -> 0 | DO3: =Checklist!$D$87 -> 0 | DP3: =Checklist!$D$88 -> 0 | DQ3: =Checklist!$D$89 -> 0 | DR3: =Checklist!$D$90 -> 0 | DS3: =Checklist!$D$91 -> 0 | DT3: =Checklist!$D$92 -> 0 | DU3: =Checklist!$D$93 -> 0 | DV3: =Checklist!$D$94 -> 0 | DW3: =Checklist!$D$95 -> 0 | DX3: =Checklist!$D$96 -> 0 | DY3: =Checklist!$D$97 -> 0 | DZ3: =Checklist!$D$98 -> 0 | EA3: =Checklist!$D$99 -> 0 | EB3: =Checklist!$D$100 -> 0 | EC3: =Checklist!$D$101 -> 0 | ED3: =Checklist!$D$102 -> 0 | EE3: =Checklist!$D$103 -> 0 | EF3: =Checklist!$D$104 -> 0 | EG3: =Checklist!$D$105 -> 0 | EH3: =Checklist!$D$106 -> 0 | EI3: =Checklist!$D$107 -> 0 | EJ3: =Checklist!$D$108 -> 0 | EK3: =Checklist!$D$109 -> 0 | EL3: =Checklist!$D$110 -> 0 | EM3: =Checklist!$D$111 -> 0 | EN3: =Checklist!$D$112 -> 0 | EO3: =Checklist!$D$115 -> 0 | EP3: =Checklist!$D$116 -> 0 | EQ3: =Checklist!$D$117 -> 0 | ER3: =Checklist!$D$120 -> 0 | ES3: =Checklist!$D$121 -> 0 | ET3: =Checklist!$D$122 -> 0 | EU3: =Checklist!$D$123 -> 0 | EV3: =Checklist!$D$124 -> 0 | EW3: =Checklist!$D$125 -> 0 | EX3: =Checklist!$D$126 -> 0 | EY3: =Checklist!$D$127 -> 0 | EZ3: =Checklist!$D$128 -> 0 | FA3: =Checklist!$D$129 -> 0 | FB3: =Checklist!$D$130 -> 0 | FC3: =Checklist!$D$131 -> 0 | FD3: =Checklist!$D$134 -> 0 | FE3: =Checklist!$D$135 -> 0 | FF3: =Checklist!$D$136 -> 0 | FG3: =Checklist!$D$137 -> 0 | FH3: =Checklist!$D$138 -> 0 | FI3: =Checklist!$D$139 -> 0 | FJ3: =Checklist!$D$140 -> 0 | FK3: =Checklist!$D$143 -> 0 | FL3: =Checklist!$D$144 -> 0 | FM3: =Checklist!$D$145 -> 0 | FN3: =Checklist!$D$146 -> 0 | FO3: =Checklist!$D$147 -> 0 | FP3: =Checklist!$D$150 -> 0 | FQ3: =Checklist!$D$151 -> 0 | FR3: =Checklist!$D$152 -> 0 | FS3: =Checklist!$D$153 -> 0 | FT3: =Checklist!$D$154 -> 0 | FU3: =Checklist!$D$155 -> 0 | FV3: =Checklist!$D$156 -> 0 | FW3: =Checklist!$D$157 -> 0 | FX3: =Checklist!$D$158 -> 0 | FY3: =Checklist!$D$159 -> 0 | FZ3: =Checklist!$D$160 -> 0 | GA3: =Checklist!$D$161 -> 0 | GB3: =Checklist!$D$162 -> 0 | GC3: =Checklist!$D$164 -> 0 | GD3: =Checklist!$D$165 -> 0 | GE3: =Checklist!$D$166 -> 0 | GF3: =Checklist!$D$167 -> 0 | GG3: =Checklist!$D$168 -> 0 | GH3: =Checklist!$D$169 -> 0 | GI3: =Checklist!$D$170 -> 0 | GJ3: =Checklist!$D$173 -> 0 | GK3: =Checklist!$D$174 -> 0 | GL3: =Checklist!$D$175 -> 0 | GM3: =Checklist!$D$176 -> 0 | GN3: =Checklist!$D$177 -> 0 | GO3: =Checklist!$D$178 -> 0 | GP3: =Checklist!$D$179 -> 0 | GQ3: =Checklist!$D$180 -> 0 | GR3: =Checklist!$D$181 -> 0 | GS3: =Checklist!$D$182 -> 0 | GT3: =Checklist!$D$183 -> 0 | GU3: =Checklist!$D$184 -> 0 | GV3: =Checklist!$D$185 -> 0 | GW3: =Checklist!$D$186 -> 0 | GX3: =Checklist!$D$187 -> 0 | GY3: =Checklist!$D$188 -> 0 | GZ3: =Checklist!$D$189 -> 0 | HA3: =Checklist!$D$190 -> 0 | HB3: =Checklist!$D$191 -> 0 | HC3: =Checklist!$D$192 -> 0 | HD3: =Checklist!$D$193 -> 0 | HE3: =Checklist!$D$194 -> 0 | HF3: =Checklist!$D$195 -> 0 | HG3: =Checklist!$D$196 -> 0 | HH3: =Checklist!$D$197 -> 0 | HI3: =Checklist!$D$198 -> 0 | HJ3: =Checklist!$D$199 -> 0 | HK3: =Checklist!#REF! ->  | HL3: =Checklist!#REF! ->  | HM3: =Checklist!$D$201 -> 0 | HN3: =Checklist!$D$202 -> 0 | HO3: =Checklist!$D$203 -> 0 | HP3: =Checklist!$D$204 -> 0 | HQ3: =Checklist!$D$205 -> 0 | HR3: =Checklist!$D$206 -> 0 | HS3: =Checklist!$D$207 -> 0 | HT3: =Checklist!$D$208 -> 0 | HU3: =Checklist!$D$209 -> 0 | HV3: =Checklist!$D$212 -> 0 | HW3: =Checklist!$D$213 -> 0 | HX3: =Checklist!$D$214 -> 0 | HY3: =Checklist!$D$215 -> 0 | HZ3: =Checklist!$D$216 -> 0 | IA3: =Checklist!$D$219 -> 0 | IB3: =Checklist!$D$220 -> 0 | IC3: =Checklist!$D$221 -> 0 | ID3: =Checklist!$D$223 -> 0 | IE3: =Checklist!$D$224 -> 0 | IF3: =Checklist!$D$225 -> 0 | IG3: =Checklist!$D$226 -> 0 | IH3: =Checklist!$D$229 -> 0 | II3: =Checklist!$D$230 -> 0 | IJ3: =Checklist!$D$231 -> 0 | IK3: =Checklist!$D$232 -> 0 | IL3: =Checklist!$D$233 -> 0 | IM3: =Checklist!$D$234 -> 0 | IN3: =Checklist!$D$235 -> 0 | IO3: =Checklist!$D$236 -> 0 | IP3: =Checklist!$D$237 -> 0 | IQ3: =Checklist!$D$238 -> 0 | IR3: =Checklist!$D$239 -> 0 | IS3: =Checklist!$D$240 -> 0 | IT3: =Checklist!$D$241 -> 0 | IU3: =Checklist!$D$242 -> 0 | JN3: ='Gold Standard Award'!A1 -> This Agency Did Not Meet the Requirements of the Gold Standard Award.
AZ4: =Checklist!$C$13 -> 0 | BA4: =Checklist!$C$14 -> 0 | BB4: =Checklist!$C$15 -> 0 | BC4: =Checklist!$C$16 -> 0 | BD4: =Checklist!$C$17 -> 0 | BE4: =Checklist!$C$18 -> 0 | BF4: =Checklist!$C$19 -> 0 | BG4: =Checklist!$C$20 -> 0 | BH4: =Checklist!$C$21 -> 0 | BI4: =Checklist!$C$22 -> 0 | BJ4: =Checklist!$C$23 -> 0 | BK4: =Checklist!$C$24 -> 0 | BL4: =Checklist!$C$25 -> 0 | BM4: =Checklist!$C$26 -> 0 | BN4: =Checklist!$C$27 ->  | BO4: =Checklist!$C$28 ->  | BP4: =Checklist!#REF! ->  | BQ4: =Checklist!$C$30 -> 0 | BR4: =Checklist!$C$31 -> 0 | BS4: =Checklist!$C$32 -> 0 | BT4: =Checklist!$C$33 -> 0 | BU4: =Checklist!$C$34 -> 0 | BV4: =Checklist!$C$35 -> 0 | BW4: =Checklist!$C$36 -> 0 | BX4: =Checklist!$C$37 -> 0 | BY4: =Checklist!$C$38 -> 0 | BZ4: =Checklist!$C$39 -> 0 | CA4: =Checklist!$C$40 -> 0 | CB4: =Checklist!$C$41 -> 0 | CC4: =Checklist!$C$44 -> 0 | CD4: =Checklist!$C$45 -> 0 | CE4: =Checklist!$C$46 -> 0 | CF4: =Checklist!$C$47 -> 0 | CG4: =Checklist!$C$48 -> 0 | CH4: =Checklist!$C$49 -> 0 | CI4: =Checklist!$C$50 -> 0 | CJ4: =Checklist!$C$51 -> 0 | CK4: =Checklist!$C$52 -> 0 | CL4: =Checklist!$C$53 -> 0 | CM4: =Checklist!$C$55 -> 0 | CN4: =Checklist!$C$56 -> 0 | CO4: =Checklist!$C$57 -> 0 | CP4: =Checklist!$C$58 -> 0 | CQ4: =Checklist!$C$59 -> 0 | CR4: =Checklist!$C$60 -> 0 | CS4: =Checklist!$C$61 -> 0 | CT4: =Checklist!$C$63 -> 0 | CU4: =Checklist!$C$64 -> 0 | CV4: =Checklist!$C$65 -> 0 | CW4: =Checklist!$C$66 -> 0 | CX4: =Checklist!$C$68 -> 0 | CY4: =Checklist!$C$69 -> 0 | CZ4: =Checklist!$C$70 -> 0 | DA4: =Checklist!$C$71 -> 0 | DB4: =Checklist!$C$72 -> 0 | DC4: =Checklist!$C$73 -> 0 | DD4: =Checklist!$C$74 -> 0 | DE4: =Checklist!$C$75 -> 0 | DF4: =Checklist!$C$76 -> 0 | DG4: =Checklist!$C$77 -> 0 | DH4: =Checklist!$C$78 -> 0 | DI4: =Checklist!$C$81 -> 0 | DJ4: =Checklist!$C$82 -> 0 | DK4: =Checklist!$C$83 -> 0 | DL4: =Checklist!$C$84 -> 0 | DM4: =Checklist!$C$85 -> 0 | DN4: =Checklist!$C$86 -> 0 | DO4: =Checklist!$C$87 -> 0 | DP4: =Checklist!$C$88 -> 0 | DQ4: =Checklist!$C$89 -> 0 | DR4: =Checklist!$C$90 -> 0 | DS4: =Checklist!$C$91 -> 0 | DT4: =Checklist!$C$92 -> 0 | DU4: =Checklist!$C$93 -> 0 | DV4: =Checklist!$C$94 -> 0 | DW4: =Checklist!$C$95 -> 0 | DX4: =Checklist!$C$96 -> 0 | DY4: =Checklist!$C$97 -> 0 | DZ4: =Checklist!$C$98 -> 0 | EA4: =Checklist!$C$99 -> 0 | EB4: =Checklist!$C$100 -> 0 | EC4: =Checklist!$C$101 -> 0 | ED4: =Checklist!$C$102 -> 0 | EE4: =Checklist!$C$103 -> 0 | EF4: =Checklist!$C$104 -> 0 | EG4: =Checklist!$C$105 -> 0 | EH4: =Checklist!$C$106 -> 0 | EI4: =Checklist!$C$107 -> 0 | EJ4: =Checklist!$C$108 -> 0 | EK4: =Checklist!$C$109 -> 0 | EL4: =Checklist!$C$110 -> 0 | EM4: =Checklist!$C$111 -> 0 | EN4: =Checklist!$C$112 -> 0 | EO4: =Checklist!$C$115 -> 0 | EP4: =Checklist!$C$116 -> 0 | EQ4: =Checklist!$C$117 -> 0 | ER4: =Checklist!$C$120 -> 0 | ES4: =Checklist!$C$121 -> 0 | ET4: =Checklist!$C$122 -> 0 | EU4: =Checklist!$C$123 -> 0 | EV4: =Checklist!$C$124 -> 0 | EW4: =Checklist!$C$125 -> 0 | EX4: =Checklist!$C$126 -> 0 | EY4: =Checklist!$C$127 -> 0 | EZ4: =Checklist!$C$128 -> 0 | FA4: =Checklist!$C$129 -> 0 | FB4: =Checklist!$C$130 -> 0 | FC4: =Checklist!$C$131 -> 0 | FD4: =Checklist!$C$134 -> 0 | FE4: =Checklist!$C$135 -> 0 | FF4: =Checklist!$C$136 -> 0 | FG4: =Checklist!$C$137 -> 0 | FH4: =Checklist!$C$138 -> 0 | FI4: =Checklist!$C$139 -> 0 | FJ4: =Checklist!$C$140 -> 0 | FK4: =Checklist!$C$143 -> 0 | FL4: =Checklist!$C$144 -> 0 | FM4: =Checklist!$C$145 -> 0 | FN4: =Checklist!$C$146 -> 0 | FO4: =Checklist!$C$147 ->  | FP4: =Checklist!$C$150 -> 0 | FQ4: =Checklist!$C$151 -> 0 | FR4: =Checklist!$C$152 -> 0 | FS4: =Checklist!$C$153 -> 0 | FT4: =Checklist!$C$154 -> 0 | FU4: =Checklist!$C$155 -> 0 | FV4: =Checklist!$C$156 -> 0 | FW4: =Checklist!$C$157 -> 0 | FX4: =Checklist!$C$158 -> 0 | FY4: =Checklist!$C$159 -> 0 | FZ4: =Checklist!$C$160 -> 0 | GA4: =Checklist!$C$161 -> 0 | GB4: =Checklist!$C$162 -> 0 | GC4: =Checklist!$C$164 -> 0 | GD4: =Checklist!$C$165 -> 0 | GE4: =Checklist!$C$166 -> 0 | GF4: =Checklist!$C$167 -> 0 | GG4: =Checklist!$C$168 -> 0 | GH4: =Checklist!$C$169 -> 0 | GI4: =Checklist!$C$170 -> 0 | GJ4: =Checklist!$C$173 -> 0 | GK4: =Checklist!$C$174 -> 0 | GL4: =Checklist!$C$175 -> 0 | GM4: =Checklist!$C$176 -> 0 | GN4: =Checklist!$C$177 -> 0 | GO4: =Checklist!$C$178 -> 0 | GP4: =Checklist!$C$179 -> 0 | GQ4: =Checklist!$C$180 -> 0 | GR4: =Checklist!$C$181 -> 0 | GS4: =Checklist!$C$182 -> 0 | GT4: =Checklist!$C$183 -> 0 | GU4: =Checklist!$C$184 -> 0 | GV4: =Checklist!$C$185 -> 0 | GW4: =Checklist!$C$186 -> 0 | GX4: =Checklist!$C$187 -> 0 | GY4: =Checklist!$C$188 -> 0 | GZ4: =Checklist!$C$189 -> 0 | HA4: =Checklist!$C$190 -> 0 | HB4: =Checklist!$C$191 -> 0 | HC4: =Checklist!$C$192 -> 0 | HD4: =Checklist!$C$193 -> 0 | HE4: =Checklist!$C$194 -> 0 | HF4: =Checklist!$C$195 -> 0 | HG4: =Checklist!$C$196 -> 0 | HH4: =Checklist!$C$197 -> 0 | HI4: =Checklist!$C$198 -> 0 | HJ4: =Checklist!$C$199 -> 0 | HK4: =Checklist!#REF! ->  | HL4: =Checklist!#REF! ->  | HM4: =Checklist!$C$201 -> 0 | HN4: =Checklist!$C$202 -> 0 | HO4: =Checklist!$C$203 -> 0 | HP4: =Checklist!$C$204 -> 0 | HQ4: =Checklist!$C$205 -> 0 | HR4: =Checklist!$C$206 -> 0 | HS4: =Checklist!$C$207 -> 0 | HT4: =Checklist!$C$208 -> 0 | HU4: =Checklist!$C$209 -> 0 | HV4: =Checklist!$C$212 -> 0 | HW4: =Checklist!$C$213 -> 0 | HX4: =Checklist!$C$214 -> 0 | HY4: =Checklist!$C$215 -> 0 | HZ4: =Checklist!$C$216 -> 0 | IA4: =Checklist!$C$219 -> 0 | IB4: =Checklist!$C$220 -> 0 | IC4: =Checklist!$C$221 -> 0 | ID4: =Checklist!$C$223 -> 0 | IE4: =Checklist!$C$224 -> 0 | IF4: =Checklist!$C$225 -> 0 | IG4: =Checklist!$C$226 -> 0 | IH4: =Checklist!$C$229 -> 0 | II4: =Checklist!$C$230 -> 0 | IJ4: =Checklist!$C$231 -> 0 | IK4: =Checklist!$C$232 -> 0 | IL4: =Checklist!$C$233 -> 0 | IM4: =Checklist!$C$234 -> 0 | IN4: =Checklist!$C$235 -> 0 | IO4: =Checklist!$C$236 ->  | IP4: =Checklist!$C$237 ->  | IQ4: =Checklist!$C$238 ->  | IR4: =Checklist!$C$239 ->  | IS4: =Checklist!$C$240 ->  | IT4: =Checklist!$C$241 ->  | IU4: =Checklist!$C$242 -> 
B5: When transferring to database, | AZ5: 13 | BA5: 14 | BB5: 15 | BC5: 16 | BD5: 17 | BE5: 18 | BF5: 19 | BG5: 20 | BH5: 21 | BI5: 22 | BJ5: 23 | BK5: 24 | BL5: 25 | BM5: 26 | BN5: 27 | BO5: 28 | BP5: 29 | BQ5: 31 | BR5: 32 | BS5: 33 | BT5: 34 | BU5: 35 | BV5: 36 | BW5: 37 | BX5: 38 | BY5: 39 | BZ5: 40 | CA5: 41 | CB5: 42 | CC5: 45 | CD5: 46 | CE5: 47 | CF5: 48 | CG5: 49 | CH5: 50 | CI5: 51 | CJ5: 52 | CK5: 53 | CL5: 54 | CM5: 56 | CN5: 57 | CO5: 58 | CP5: 59 | CQ5: 60 | CR5: 61 | CS5: 62 | CT5: 64 | CU5: 65 | CV5: 66 | CW5: 67 | CX5: 69 | CY5: 70 | CZ5: 71 | DA5: 72 | DB5: 73 | DC5: 74 | DD5: 75 | DE5: 76 | DF5: 77 | DG5: 78 | DH5: 79 | DI5: 82 | DJ5: 83 | DK5: 84 | DL5: 85 | DM5: 86 | DN5: 87 | DO5: 88 | DP5: 89 | DQ5: 90 | DR5: 91 | DS5: 92 | DT5: 93 | DU5: 94 | DV5: 95 | DW5: 96 | DX5: 97 | DY5: 98 | DZ5: 99 | EA5: 100 | EB5: 101 | EC5: 102 | ED5: 103 | EE5: 104 | EF5: 105 | EG5: 106 | EH5: 107 | EI5: 108 | EJ5: 109 | EK5: 110 | EL5: 111 | EM5: 112 | EN5: 113 | EO5: 116 | EP5: 117 | EQ5: 118 | ER5: 121 | ES5: 122 | ET5: 123 | EU5: 124 | EV5: 125 | EW5: 126 | EX5: 127 | EY5: 128 | EZ5: 129 | FA5: 130 | FB5: 131 | FC5: 132 | FD5: 135 | FE5: 136 | FF5: 137 | FG5: 138 | FH5: 139 | FI5: 140 | FJ5: 141 | FK5: 144 | FL5: 145 | FM5: 146 | FN5: 147 | FO5: 148 | FP5: 151 | FQ5: 152 | FR5: 153 | FS5: 154 | FT5: 155 | FU5: 156 | FV5: 157 | FW5: 158 | FX5: 159 | FY5: 160 | FZ5: 161 | GA5: 162 | GB5: 163 | GC5: 165 | GD5: 166 | GE5: 167 | GF5: 168 | GG5: 169 | GH5: 170 | GI5: 171 | GJ5: 174 | GK5: 175 | GL5: 176 | GM5: 177 | GN5: 178 | GO5: 179 | GP5: 180 | GQ5: 181 | GR5: 182 | GS5: 183 | GT5: 184 | GU5: 185 | GV5: 186 | GW5: 187 | GX5: 188 | GY5: 189 | GZ5: 190 | HA5: 191 | HB5: 192 | HC5: 193 | HD5: 194 | HE5: 195 | HF5: 196 | HG5: 197 | HH5: 198 | HI5: 199 | HJ5: 200 | HK5: 201 | HL5: 202 | HM5: 204 | HN5: 205 | HO5: 206 | HP5: 207 | HQ5: 208 | HR5: 209 | HS5: 210 | HT5: 211 | HU5: 212 | HV5: 215 | HW5: 216 | HX5: 217 | HY5: 218 | HZ5: 219 | IA5: 222 | IB5: 223 | IC5: 224 | ID5: 226 | IE5: 227 | IF5: 228 | IG5: 229 | IH5: 232 | II5: 233 | IJ5: 234 | IK5: 235 | IL5: 236 | IM5: 237 | IN5: 238 | IO5: 239 | IP5: 240 | IQ5: 241 | IR5: 242 | IS5: 243 | IT5: 244 | IU5: 245
B6: PASTE - "VALUES and NUMBER FORMATS" ONLY!!!

Sheet Dropdown Menus (hidden)
A1: Dropdown Menus | P1: FY2014 | R1: SAI 1 | S1: SAI 2 | T1: SAI 3 | U1: SAI 4 | V1: SAI 5 | W1: SAI 6 | X1: SAI 7 | Y1: SAI 8 | Z1: SAI 9 | AA1: SAI 10 | AB1: SAI 11 | AC1: SAI 12 | AD1: SAI 13 | AE1: SAI 14 | AF1: SAI 15 | AG1: SAI 16 | AH1: SAI 17 | AI1: Average
D2: <Please Select> | P2: 60K Club | Q2: Averages | R2: 91.47% | S2: 94.75% | T2: 92.09% | U2: 96.34% | V2: 88.55% | W2: 86.83% | X2: 86.05% | Y2: 90.58% | Z2: 93.67% | AA2: 93.13% | AB2: 94.80% | AC2: 93.11% | AD2: 91.89% | AE2: 92.52% | AF2: 92.30% | AG2: 85.17% | AH2: 86.59% | AI2: 91.19%
A3: Over 60K Daily Ridership | B3: X | C3: 1 | D3: Not an HTUA | E3: 0 | F3: No | G3: TSI Work Plan List | H3: Corporate Review | I3: AK | J3: Agency has received Grant Funding | K3: N/A | P3: Non-60K | Q3: Averages | R3: 72.81% | S3: 80.63% | T3: 77.29% | U3: 82.46% | V3: 73.32% | W3: 60.03% | X3: 64.76% | Y3: 66.50% | Z3: 72.78% | AA3: 67.21% | AB3: 79.12% | AC3: 80.75% | AD3: 81.41% | AE3: 85.90% | AF3: 80.41% | AG3: 44.46% | AH3: 66.91% | AI3: 72.77%
A4: Under 60K Daily Ridership | C4: 2 | D4: Albany NY | E4: 1 | F4: Yes | G4: Agency Chosen Outside of Workplan | H4: Facility Review | I4: AL | J4: Agency has NOT received Grant Funding | K4: FY16
C5: 3 | D5: Anaheim/Santa Ana CA | E5: 2 | I5: AR | K5: FY15
C6: 4 | D6: Atlanta GA | E6: 3 | I6: AZ | K6: FY14
C7: 5 | D7: Austin TX | E7: 4 | I7: CA | K7: FY13
C8: 6 | D8: Bakersfield CA | I8: CO | K8: FY12
C9: 7 | D9: Baltimore MD | I9: CT | K9: FY11
D10: Baton Rouge LA | I10: DC | K10: FY10
D11: Bay Area CA | I11: DE | K11: FY09
D12: Boston MA | I12: FL | K12: FY08
D13: Bridgeport CT | I13: GA | K13: FY07
D14: Buffalo NY | I14: HI | K14: FY06
D15: Charlotte NC | I15: IA
D16: Chicago IL | I16: ID
D17: Cincinatti OH | I17: IL
D18: Cleveland OH | I18: IN
D19: Columbus OH | I19: KS
D20: Dallas/Fort Worth/Arlington TX | I20: KY
D21: Denver CO | I21: LA
D22: Detroit MI | I22: MA
D23: El Paso TX | I23: MD
D24: Fort Lauderdale FL | I24: ME
D25: Hartford CT | I25: MI
D26: Honolulu HI | I26: MN
D27: Houston TX | I27: MO
D28: Indianapolis IN | I28: MS
D29: Jacksonville FL | I29: MT
D30: Jersey City/Newark NJ | I30: NC
D31: Kansas City MO | I31: ND
D32: Las Vegas NV | I32: NE
D33: Los Angeles/Long Beach CA | I33: NH
D34: Louisville KY | I34: NJ
D35: Memphis TN | I35: NM
D36: Miami FL | I36: NV
D37: Milwaukee WI | I37: NY
D38: Nashville TN | I38: OH
D39: National Capital Region DC | I39: OK
D40: New Orleans LA | I40: OR
D41: New York City NY | I41: PA
D42: Norfolk VA | I42: PR
D43: Oklahoma City OK | I43: RI
D44: Omaha NE | I44: SC
D45: Orlando FL | I45: SD
D46: Oxnard CA | I46: TN
D47: Philadelphia PA | I47: TX
D48: Phoenix AZ | I48: UT
D49: Pittsburgh PA | I49: VA
D50: Portland OR | I50: VT
D51: Providence RI | I51: WA
D52: Richmond VA | I52: WI
D53: Riverside CA | I53: WV
D54: Rochester NY | I54: WY
D55: Sacramento CA
D56: Salt Lake City UT
D57: San Antonio TX
D58: San Diego CA
D59: San Juan PR
D60: Seattle WA
D61: St. Louis MO
D62: Syracuse NY
D63: Tampa FL
D64: Toledo OH
D65: Tucson AZ
D66: Tulsa OK
D67: Twin Cities MN
